{"text_format":"1","workbook":"xlsx","n_sheets":4,"sheets":["Cerere de Finantare","Anexa 1 HG_907","Anexa 2 HG_907","Anexa 3 HG_907"],"not_rendered":{"charts":0,"images":1,"macros":1,"external_links":1,"defined_names":2,"comments":0,"pivot_tables":0},"unopened":[],"bounds":{"document_bytes":16777216,"sheet_cells":100000,"rows_first":2000,"rows_last":500,"rows_between":2000,"halvings":0,"cell_chars":16384,"cell_head_chars":4096},"cells_cut":0,"cells_raw":0,"read":"whole","date_system":"1900"}

{"sheet":"Cerere de Finantare","index":0,"n_rows":1311,"n_cols":64,"rows_kept":1311,"cut":false,"hidden":false,"merged":[[820,0,820,3],[820,4,820,41],[820,42,820,50],[820,51,820,60],[821,0,821,3],[821,4,821,41],[821,42,821,60],[824,0,824,44],[815,0,815,3],[815,4,815,41],[815,42,815,50],[815,51,815,60],[816,0,816,3],[816,4,816,41],[816,42,816,50],[816,51,816,60],[817,0,817,3],[817,4,817,41],[817,42,817,50],[817,51,817,60],[818,0,818,3],[818,4,818,41],[818,42,818,50],[818,51,818,60],[819,0,819,3],[819,4,819,41],[819,42,819,50],[819,51,819,60],[810,0,810,3],[810,4,810,41],[810,42,810,50],[810,51,810,60],[811,0,811,3],[811,4,811,41],[811,42,811,50],[811,51,811,60],[812,0,812,3],[812,4,812,41],[812,42,812,50],[812,51,812,60],[813,0,813,3],[813,4,813,41],[813,42,813,50],[813,51,813,60],[814,0,814,3],[814,4,814,41],[814,42,814,50],[814,51,814,60],[803,0,803,41],[803,42,803,60],[804,0,804,3],[804,4,804,41],[804,42,804,50],[804,51,804,60],[805,0,805,60],[806,0,806,3],[806,4,806,41],[806,42,806,50],[806,51,806,60],[807,0,807,60],[808,0,808,3],[808,4,808,41],[808,42,808,50],[808,51,808,60],[809,0,809,3],[809,4,809,41],[809,42,809,50],[809,51,809,60],[798,0,798,3],[798,4,798,41],[798,42,798,50],[798,51,798,60],[799,0,799,3],[799,4,799,41],[799,42,799,50],[799,51,799,60],[800,0,800,3],[800,4,800,41],[800,42,800,50],[800,51,800,60],[801,0,801,3],[801,4,801,41],[801,42,801,50],[801,51,801,60],[802,0,802,3],[802,4,802,41],[802,42,802,50],[802,51,802,60],[793,0,793,3],[793,4,793,41],[793,42,793,50],[793,51,793,60],[794,0,794,3],[794,4,794,41],[794,42,794,50],[794,51,794,60],[795,0,795,3],[795,4,795,41],[795,42,795,50],[795,51,795,60],[796,0,796,3],[796,4,796,41],[796,42,796,50],[796,51,796,60],[797,0,797,3],[797,4,797,41],[797,42,797,50],[797,51,797,60],[783,7,783,41],[783,42,784,60],[784,7,784,41],[785,7,785,41],[785,42,785,50],[785,51,785,60],[786,7,786,60],[787,0,787,60],[788,0,788,60],[789,0,789,60],[790,0,790,60],[791,0,791,3],[791,4,791,41],[791,42,791,50],[791,51,791,60],[792,0,792,3],[792,4,792,41],[792,42,792,50],[792,51,792,60],[770,0,770,3],[770,4,770,41],[770,42,770,50],[770,51,770,60],[771,0,771,3],[771,4,771,41],[771,42,771,50],[771,51,771,60],[772,0,772,41],[772,42,772,50],[772,51,772,60],[773,0,773,41],[773,42,773,50],[773,51,773,60],[774,0,774,41],[774,42,774,60],[778,0,778,43],[765,0,765,3],[765,4,765,41],[765,42,765,50],[765,51,765,60],[766,0,766,60],[767,0,767,3],[767,4,767,41],[767,42,767,50],[767,51,767,60],[768,0,768,3],[768,4,768,41],[768,42,768,50],[768,51,768,60],[769,0,769,3],[769,4,769,41],[769,42,769,50],[769,51,769,60],[760,0,760,3],[760,4,760,41],[760,42,760,50],[760,51,760,60],[761,0,761,3],[761,4,761,41],[761,42,761,50],[761,51,761,60],[762,0,762,3],[762,4,762,41],[762,42,762,50],[762,51,762,60],[763,0,763,60],[764,0,764,3],[764,4,764,41],[764,42,764,50],[764,51,764,60],[755,0,755,3],[755,4,755,41],[755,42,755,50],[755,51,755,60],[756,0,756,41],[756,42,756,50],[756,51,756,60],[757,0,757,3],[757,4,757,41],[757,42,757,50],[757,51,757,60],[758,0,758,3],[758,4,758,41],[758,42,758,50],[758,51,758,60],[759,0,759,3],[759,4,759,41],[759,42,759,50],[759,51,759,60],[739,0,739,41],[739,42,739,60],[741,0,741,42],[746,7,746,41],[747,7,747,41],[747,42,748,60],[748,7,748,41],[749,7,749,41],[749,42,749,50],[749,51,749,60],[750,7,750,60],[751,0,751,60],[752,0,752,60],[753,0,753,60],[754,0,754,3],[754,4,754,41],[754,42,754,60],[734,0,734,3],[734,4,734,41],[734,42,734,50],[734,51,734,60],[735,0,735,3],[735,4,735,41],[735,42,735,50],[735,51,735,60],[736,0,736,3],[736,4,736,41],[736,42,736,50],[736,51,736,60],[737,0,737,41],[737,42,737,50],[737,51,737,60],[738,0,738,41],[738,42,738,50],[738,51,738,60],[729,0,729,3],[729,4,729,41],[729,42,729,50],[729,51,729,60],[730,0,730,3],[730,4,730,41],[730,42,730,50],[730,51,730,60],[731,0,731,3],[731,4,731,41],[731,42,731,50],[731,51,731,60],[732,0,732,3],[732,4,732,41],[732,42,732,50],[732,51,732,60],[733,0,733,3],[733,4,733,41],[733,42,733,50],[733,51,733,60],[724,0,724,3],[724,4,724,41],[724,42,724,50],[724,51,724,60],[725,0,725,3],[725,4,725,41],[725,42,725,50],[725,51,725,60],[726,0,726,3],[726,4,726,41],[726,42,726,50],[726,51,726,60],[727,0,727,3],[727,4,727,41],[727,42,727,50],[727,51,727,60],[728,0,728,3],[728,4,728,41],[728,42,728,50],[728,51,728,60],[719,0,719,3],[719,4,719,41],[719,42,719,50],[719,51,719,60],[720,0,720,3],[720,4,720,41],[720,42,720,50],[720,51,720,60],[721,0,721,3],[721,4,721,41],[721,42,721,50],[721,51,721,60],[722,0,722,3],[722,4,722,41],[722,42,722,50],[722,51,722,60],[723,0,723,3],[723,4,723,41],[723,42,723,50],[723,51,723,60],[714,0,714,3],[714,4,714,41],[714,42,714,50],[714,51,714,60],[715,0,715,3],[715,4,715,41],[715,42,715,50],[715,51,715,60],[716,0,716,3],[716,4,716,41],[716,42,716,50],[716,51,716,60],[717,0,717,3],[717,4,717,41],[717,42,717,50],[717,51,717,60],[718,0,718,3],[718,4,718,41],[718,42,718,50],[718,51,718,60],[709,0,709,3],[709,4,709,41],[709,42,709,50],[709,51,709,60],[710,0,710,3],[710,4,710,41],[710,42,710,50],[710,51,710,60],[711,0,711,3],[711,4,711,41],[711,42,711,50],[711,51,711,60],[712,0,712,3],[712,4,712,41],[712,42,712,50],[712,51,712,60],[713,0,713,3],[713,4,713,41],[713,42,713,50],[713,51,713,60],[704,0,704,3],[704,4,704,41],[704,42,704,50],[704,51,704,60],[705,0,705,3],[705,4,705,41],[705,42,705,50],[705,51,705,60],[706,0,706,3],[706,4,706,41],[706,42,706,50],[706,51,706,60],[707,0,707,3],[707,4,707,41],[707,42,707,50],[707,51,707,60],[708,0,708,3],[708,4,708,41],[708,42,708,50],[708,51,708,60],[697,0,697,60],[698,0,698,60],[699,0,699,60],[700,0,700,3],[700,4,700,41],[700,42,700,50],[700,51,700,60],[701,0,701,3],[701,4,701,41],[701,42,701,50],[701,51,701,60],[702,0,702,3],[702,4,702,41],[702,42,702,50],[702,51,702,60],[703,0,703,3],[703,4,703,41],[703,42,703,50],[703,51,703,60],[688,0,688,31],[688,35,688,42],[688,44,688,60],[689,0,689,34],[689,35,689,43],[689,44,689,60],[690,0,690,32],[690,35,690,43],[690,44,690,60],[692,7,692,41],[693,7,693,41],[693,42,694,60],[694,7,694,41],[695,7,695,41],[695,42,695,50],[695,51,695,60],[696,7,696,60],[684,0,684,13],[684,15,684,34],[684,35,684,43],[684,44,684,51],[684,52,684,60],[685,0,685,13],[685,15,685,34],[685,35,685,43],[685,44,685,51],[685,52,685,60],[686,0,686,13],[686,15,686,34],[686,35,686,43],[686,44,686,51],[686,52,686,60],[687,0,687,34],[687,35,687,43],[687,44,687,51],[687,52,687,60],[679,0,679,34],[679,35,679,43],[679,44,679,51],[679,52,679,60],[680,0,680,34],[680,35,680,43],[680,44,680,51],[680,52,680,60],[681,0,681,34],[681,35,681,43],[681,44,681,51],[681,52,681,60],[682,0,682,34],[682,35,682,43],[682,44,682,51],[682,52,682,60],[683,0,683,34],[683,35,683,43],[683,44,683,51],[683,52,683,60],[674,0,674,34],[674,35,674,43],[674,44,674,51],[674,52,674,60],[675,0,675,34],[675,35,675,43],[675,44,675,51],[675,52,675,60],[676,0,676,34],[676,35,676,60],[677,0,677,34],[677,35,677,43],[677,44,677,51],[677,52,677,60],[678,0,678,34],[678,35,678,43],[678,44,678,51],[678,52,678,60],[669,0,669,34],[669,35,669,43],[669,44,669,51],[669,52,669,60],[670,0,670,34],[670,35,670,43],[670,44,670,51],[670,52,670,60],[671,0,671,34],[671,35,671,43],[671,44,671,51],[671,52,671,60],[672,0,672,17],[672,35,672,60],[673,0,673,34],[673,35,673,43],[673,44,673,51],[673,52,673,60],[664,0,664,34],[664,35,664,43],[664,44,664,51],[664,52,664,60],[665,0,665,34],[665,35,665,43],[665,44,665,51],[665,52,665,60],[666,0,666,34],[666,35,666,43],[666,44,666,51],[666,52,666,60],[667,0,667,34],[667,35,667,60],[668,0,668,34],[668,35,668,43],[668,44,668,51],[668,52,668,60],[659,0,659,34],[659,35,659,43],[659,44,659,51],[659,52,659,60],[660,0,660,34],[660,35,660,43],[660,44,660,51],[660,52,660,60],[661,0,661,34],[661,35,661,43],[661,44,661,51],[661,52,661,60],[662,0,662,34],[662,35,662,43],[662,44,662,51],[662,52,662,60],[663,0,663,34],[663,35,663,43],[663,44,663,51],[663,52,663,60],[654,0,654,34],[654,35,654,43],[654,44,654,51],[654,52,654,60],[655,0,655,34],[655,35,655,43],[655,44,655,51],[655,52,655,60],[656,0,656,34],[656,35,656,43],[656,44,656,51],[656,52,656,60],[657,0,657,34],[657,35,657,43],[657,44,657,51],[657,52,657,60],[658,0,658,34],[658,35,658,43],[658,44,658,51],[658,52,658,60],[649,0,649,34],[649,35,649,43],[649,44,649,51],[649,52,649,60],[650,0,650,34],[650,35,650,43],[650,44,650,51],[650,52,650,60],[651,0,651,34],[651,35,651,43],[651,44,651,51],[651,52,651,60],[652,0,652,34],[652,35,652,43],[652,44,652,51],[652,52,652,60],[653,0,653,34],[653,35,653,43],[653,44,653,51],[653,52,653,60],[644,0,644,34],[644,35,644,43],[644,44,644,51],[644,52,644,60],[645,0,645,34],[645,35,645,43],[645,44,645,51],[645,52,645,60],[646,0,646,34],[646,35,646,43],[646,44,646,51],[646,52,646,60],[647,0,647,34],[647,35,647,43],[647,44,647,51],[647,52,647,60],[648,0,648,34],[648,35,648,43],[648,44,648,51],[648,52,648,60],[639,0,639,34],[639,35,639,43],[639,44,639,51],[639,52,639,60],[640,0,640,24],[640,35,640,60],[641,0,641,34],[641,35,641,43],[641,44,641,51],[641,52,641,60],[642,0,642,34],[642,35,642,43],[642,44,642,51],[642,52,642,60],[643,0,643,34],[643,35,643,43],[643,44,643,51],[643,52,643,60],[634,0,634,34],[634,35,634,43],[634,44,634,51],[634,52,634,60],[635,0,635,34],[635,35,635,43],[635,44,635,51],[635,52,635,60],[636,0,636,34],[636,35,636,43],[636,44,636,51],[636,52,636,60],[637,0,637,34],[637,35,637,43],[637,44,637,51],[637,52,637,60],[638,0,638,34],[638,35,638,43],[638,44,638,51],[638,52,638,60],[629,0,629,34],[629,35,629,43],[629,44,629,51],[629,52,629,60],[630,0,630,34],[630,35,630,43],[630,44,630,51],[630,52,630,60],[631,0,631,34],[631,35,631,43],[631,44,631,51],[631,52,631,60],[632,0,632,34],[632,35,632,43],[632,44,632,51],[632,52,632,60],[633,0,633,34],[633,35,633,43],[633,44,633,51],[633,52,633,60],[624,0,624,34],[624,35,624,43],[624,44,624,51],[624,52,624,60],[625,0,625,34],[625,35,625,43],[625,44,625,51],[625,52,625,60],[626,0,626,34],[626,35,626,43],[626,44,626,51],[626,52,626,60],[627,0,627,34],[627,35,627,43],[627,44,627,51],[627,52,627,60],[628,0,628,34],[628,35,628,43],[628,44,628,51],[628,52,628,60],[619,0,619,34],[619,35,619,43],[619,44,619,51],[619,52,619,60],[620,0,620,34],[620,35,620,43],[620,44,620,51],[620,52,620,60],[621,0,621,34],[621,35,621,43],[621,44,621,51],[621,52,621,60],[622,0,622,34],[622,35,622,43],[622,44,622,51],[622,52,622,60],[623,0,623,34],[623,35,623,43],[623,44,623,51],[623,52,623,60],[614,0,614,34],[614,35,614,43],[614,44,614,51],[614,52,614,60],[615,0,615,34],[615,35,615,43],[615,44,615,51],[615,52,615,60],[616,0,616,34],[616,35,616,43],[616,44,616,51],[616,52,616,60],[617,0,617,34],[617,35,617,43],[617,44,617,51],[617,52,617,60],[618,0,618,34],[618,35,618,43],[618,44,618,51],[618,52,618,60],[609,0,609,34],[609,35,609,43],[609,44,609,51],[609,52,609,60],[610,0,610,34],[610,35,610,43],[610,44,610,51],[610,52,610,60],[611,0,611,34],[611,35,611,43],[611,44,611,51],[611,52,611,60],[612,0,612,34],[612,35,612,43],[612,44,612,51],[612,52,612,60],[613,0,613,34],[613,35,613,43],[613,44,613,51],[613,52,613,60],[604,1,604,13],[604,15,604,17],[604,19,604,23],[604,25,604,30],[604,35,604,47],[604,50,604,59],[606,0,606,34],[606,35,606,43],[606,44,606,51],[606,52,606,60],[607,0,607,34],[607,35,607,43],[607,44,607,51],[607,52,607,60],[608,0,608,34],[608,35,608,43],[608,44,608,51],[608,52,608,60],[596,0,596,31],[596,35,596,42],[596,44,596,60],[597,0,597,34],[597,35,597,43],[597,44,597,60],[598,0,598,32],[598,35,598,43],[598,44,598,60],[599,1,599,45],[600,0,600,34],[600,35,600,60],[601,0,601,34],[601,35,601,43],[601,44,601,51],[601,52,601,60],[602,0,602,60],[592,0,592,13],[592,15,592,34],[592,35,592,43],[592,44,592,51],[592,52,592,60],[593,0,593,13],[593,15,593,34],[593,35,593,43],[593,44,593,51],[593,52,593,60],[594,0,594,13],[594,15,594,34],[594,35,594,43],[594,44,594,51],[594,52,594,60],[595,0,595,34],[595,35,595,43],[595,44,595,51],[595,52,595,60],[587,0,587,34],[587,35,587,43],[587,44,587,51],[587,52,587,60],[588,0,588,34],[588,35,588,43],[588,44,588,51],[588,52,588,60],[589,0,589,34],[589,35,589,43],[589,44,589,51],[589,52,589,60],[590,0,590,34],[590,35,590,43],[590,44,590,51],[590,52,590,60],[591,0,591,34],[591,35,591,43],[591,44,591,51],[591,52,591,60],[582,0,582,34],[582,35,582,43],[582,44,582,51],[582,52,582,60],[583,0,583,34],[583,35,583,43],[583,44,583,51],[583,52,583,60],[584,0,584,34],[584,35,584,60],[585,0,585,34],[585,35,585,43],[585,44,585,51],[585,52,585,60],[586,0,586,34],[586,35,586,43],[586,44,586,51],[586,52,586,60],[577,0,577,34],[577,35,577,43],[577,44,577,51],[577,52,577,60],[578,0,578,34],[578,35,578,43],[578,44,578,51],[578,52,578,60],[579,0,579,34],[579,35,579,43],[579,44,579,51],[579,52,579,60],[580,0,580,17],[580,35,580,60],[581,0,581,34],[581,35,581,43],[581,44,581,51],[581,52,581,60],[572,0,572,34],[572,35,572,43],[572,44,572,51],[572,52,572,60],[573,0,573,34],[573,35,573,43],[573,44,573,51],[573,52,573,60],[574,0,574,34],[574,35,574,43],[574,44,574,51],[574,52,574,60],[575,0,575,34],[575,35,575,60],[576,0,576,34],[576,35,576,43],[576,44,576,51],[576,52,576,60],[567,0,567,34],[567,35,567,43],[567,44,567,51],[567,52,567,60],[568,0,568,34],[568,35,568,43],[568,44,568,51],[568,52,568,60],[569,0,569,34],[569,35,569,43],[569,44,569,51],[569,52,569,60],[570,0,570,34],[570,35,570,43],[570,44,570,51],[570,52,570,60],[571,0,571,34],[571,35,571,43],[571,44,571,51],[571,52,571,60],[562,0,562,34],[562,35,562,43],[562,44,562,51],[562,52,562,60],[563,0,563,34],[563,35,563,43],[563,44,563,51],[563,52,563,60],[564,0,564,34],[564,35,564,43],[564,44,564,51],[564,52,564,60],[565,0,565,34],[565,35,565,43],[565,44,565,51],[565,52,565,60],[566,0,566,34],[566,35,566,43],[566,44,566,51],[566,52,566,60],[557,0,557,34],[557,35,557,43],[557,44,557,51],[557,52,557,60],[558,0,558,34],[558,35,558,43],[558,44,558,51],[558,52,558,60],[559,0,559,34],[559,35,559,43],[559,44,559,51],[559,52,559,60],[560,0,560,34],[560,35,560,43],[560,44,560,51],[560,52,560,60],[561,0,561,34],[561,35,561,43],[561,44,561,51],[561,52,561,60],[552,0,552,34],[552,35,552,43],[552,44,552,51],[552,52,552,60],[553,0,553,34],[553,35,553,43],[553,44,553,51],[553,52,553,60],[554,0,554,34],[554,35,554,43],[554,44,554,51],[554,52,554,60],[555,0,555,34],[555,35,555,43],[555,44,555,51],[555,52,555,60],[556,0,556,34],[556,35,556,43],[556,44,556,51],[556,52,556,60],[547,0,547,34],[547,35,547,43],[547,44,547,51],[547,52,547,60],[548,0,548,24],[548,35,548,60],[549,0,549,34],[549,35,549,43],[549,44,549,51],[549,52,549,60],[550,0,550,34],[550,35,550,43],[550,44,550,51],[550,52,550,60],[551,0,551,34],[551,35,551,43],[551,44,551,51],[551,52,551,60],[542,0,542,34],[542,35,542,43],[542,44,542,51],[542,52,542,60],[543,0,543,34],[543,35,543,43],[543,44,543,51],[543,52,543,60],[544,0,544,34],[544,35,544,43],[544,44,544,51],[544,52,544,60],[545,0,545,34],[545,35,545,43],[545,44,545,51],[545,52,545,60],[546,0,546,34],[546,35,546,43],[546,44,546,51],[546,52,546,60],[537,0,537,34],[537,35,537,43],[537,44,537,51],[537,52,537,60],[538,0,538,34],[538,35,538,43],[538,44,538,51],[538,52,538,60],[539,0,539,34],[539,35,539,43],[539,44,539,51],[539,52,539,60],[540,0,540,34],[540,35,540,43],[540,44,540,51],[540,52,540,60],[541,0,541,34],[541,35,541,43],[541,44,541,51],[541,52,541,60],[532,0,532,34],[532,35,532,43],[532,44,532,51],[532,52,532,60],[533,0,533,34],[533,35,533,43],[533,44,533,51],[533,52,533,60],[534,0,534,34],[534,35,534,43],[534,44,534,51],[534,52,534,60],[535,0,535,34],[535,35,535,43],[535,44,535,51],[535,52,535,60],[536,0,536,34],[536,35,536,43],[536,44,536,51],[536,52,536,60],[527,0,527,34],[527,35,527,43],[527,44,527,51],[527,52,527,60],[528,0,528,34],[528,35,528,43],[528,44,528,51],[528,52,528,60],[529,0,529,34],[529,35,529,43],[529,44,529,51],[529,52,529,60],[530,0,530,34],[530,35,530,43],[530,44,530,51]],"merged_total":4060,"flags":["merged_cut"]}
[null,null,null,null,null,null,"MINISTERUL AGRICULTURII ŞI DEZVOLTĂRII RURALE",null,null,null,null,null,null,null,null,null,null,null,null,null,null,null,null,null,null,null,null,null,null,null,null,null,null,null,null,null,null,null,null,null,null,null,null,null,null,null,null,null,null,null,null,null,null,null,null,null,null,null,null,null,null,5]
[null,null,null,null,null,null,"AGENŢIA PENTRU FINANŢAREA INVESTIŢIILOR RURALE",null,null,null,null,null,null,null,null,null,null,null,null,null,null,null,null,null,null,null,null,null,null,null,null,null,null,null,null,null,null,null,null,null,null,null,null,null,null,null,null,null,null,null,null,null,null,null,null,null,null,null,null,null,null,3]
[null,null,null,null,null,null,null,null,null,null,null,null,null,null,null,null,null,null,null,null,null,null,null,null,null,null,null,null,null,null,null,null,null,null,null,null,null,null,null,null,null,null,null,null,null,null,null,null,null,null,null,null,null,null,null,null,null,null,null,null,null,1]
[null,null,null,null,null,null,null,null,null,null,null,null,null,null,null,null,null,null,null,null,null,null,null,null,null,null,null,null,null,null,null,null,null,null,null,null,null,null,null,null,null,null,"SECŢIUNE GENERALĂ",null,null,null,null,null,null,null,null,null,null,null,null,null,null,null,null,null,null,1]
[null,null,null,null,null,null,null,null,null,null,null,null,null,null,null,null,null,null,null,null,null,null,null,null,null,null,null,null,null,null,null,null,null,null,null,null,null,null,null,null,null,null,null,null,null,null,null,null,null,null,null,null,null,null,null,null,null,null,null,null,null,5]
["DATE DE ÎNREGISTRARE",null,null,null,null,null,null,null,null,null,null,null,null,null,null,null,null,null,null,null,null,null,null,null,null,null,null,null,null,null,null,null,null,null,null,null,"NUME ŞI PRENUME DIRECTOR OJFIR/",null,null,null,null,null,null,null,null,null,null,null,null,null,null,null,null,null,null,null,null,null,null,null,null,5]
[null,null,null,null,null,null,null,null,null,null,null,null,null,null,null,null,null,null,null,null,null,null,null,null,null,null,null,null,null,null,null,null,null,null,null,null,"DIRECTOR GENERAL ADJUNCT CRFIR"]
["Se completează de către Agenția pentru Finanțarea Investițiilor Rurale - Oficiul"]
["Judeţean/ Centrul Regional - Programul FEADR pentru cereri de finanţare"]
[null,null,null,null,null,null,null,null,null,null,null,null,null,null,null,null,null,null,null,null,null,null,null,null,null,null,null,null,null,null,null,null,null,null,null,null,"Semnătura Director OJFIR/Director General Adjunct CRFIR"]
["OJFIR/CRFIR"]
[null,null,null,null,null,null,null,null,null,null,null,null,null,null,null,null,null,null,null,null,null,null,null,null,null,null,null,null,null,null,null,null,null,null,null,null,"Ştampila CRFIR"]
["Număr "]
["înregistrare"]
[]
[]
[]
[]
["Data Înregistrării"]
["Numele şi prenumele persoanei care înregistrează"]
["Semnătura:"]
["Data primirii cererii de finanţare la contractare:"]
["Se completează de către solicitant"]
["A PREZENTARE GENERALĂ"]
[]
[null,"A1 Măsura:",null,null,null,null,null,null,null,null,"Sub-măsura 19.2, Măsura M1/2A"]
[null,null,null,null,null,null,null,null,null,null,"              Investiții în exploatații agricole în teritoriul MVS"]
[]
[null,"A2 Nume prenume / Denumire solicitant:"]
[]
[null,"A3 Titlu proiect:"]
[]
[]
[]
[]
[null,"A4 Descrierea succintă a proiectului:"]
[]
[]
[]
[]
[]
[]
[]
[]
[]
[]
[null,"Denumire consultant"]
[null,null,null,null,null,null,null,null,null,null,null,null,null,null,null,null,null,null,null,null,null,null,null,null,null,null,null,"CUI"]
[null,null,null,null,null,null,null,null,null,null,null,null,null,null,null,null,null,null,null,null,null,null,null,null,null,null,null,"Nr inreg ONRC"]
[null,"Denumire Proiectant"]
[null,null,null,null,null,null,null,null,null,null,null,null,null,null,null,null,null,null,null,null,null,null,null,null,null,null,null,"CUI"]
[null,null,null,null,null,null,null,null,null,null,null,null,null,null,null,null,null,null,null,null,null,null,null,null,null,null,null,"Nr inreg ONRC"]
[]
[null,null,"A5 Amplasarea proiectului:"]
[]
["Regiunea de dezvoltare:",null,null,null,null,null,null,null,null,null,null,null,null,null,null,null,null,null,null,null,null,null,null,null,null,null,null,"Judeţ:"]
[]
[null,"Obiectivele investiţiei",null,null,null,null,null,null,null,null,null,null,null,null,null,"Judeţ",null,null,null,null,null,null,null,null,null,null,null,"Comună/Oraş",null,null,null,null,null,null,null,null,null,null,null,"Sat/Sector",null,null,null,null,null,null,null,null,null,null,"Sat/Sector"]
[]
[]
[]
[]
[]
[]
[]
[]
[]
[]
[]
[]
[]
[]
[]
[]
[]
[]
[]
[]
[]
[]
[]
[]
[]
[]
[]
[]
[]
[]
[]
[]
[]
[]
[]
[]
[]
[]
[]
[]
[null,"A6 Date despre tipul de proiect şi beneficiar:",null,null,null,null,null,null,null,null,null,null,null,null,null,null,null,null,null,null,null,null,null,null,null,null,null,null,null,null,null,null,null,null,null,null,null,null,null,null,"A 6.5 Sectoare vizate prin proiect"]
[]
[null,"A 6.1",null,null,null,null,"Proiect cu construcţii-montaj",null,null,null,null,null,null,null,null,null,null,null,null,null,null,null,"A 6.3",null,null,null,null,"Beneficiar public",null,null,null,null,null,null,null,null,null,null,null,null,null,null,null,null,null,"animal"]
[null,null,null,null,null,null,"Proiect fără construcţii-montaj",null,null,null,null,null,null,null,null,null,null,null,null,null,null,null,null,null,null,null,null,"Beneficiar privat",null,null,null,null,null,null,null,null,null,null,null,null,null,null,null,null,null,"vegetal"]
[null,null,null,null,null,null,null,null,null,null,null,null,null,null,null,null,null,null,null,null,null,null,null,null,null,null,null,null,null,null,null,null,null,null,null,null,null,null,null,null,null,null,null,null,null,"ferma de familie"]
[null,"A 6.2",null,null,null,null,"Modernizare şi/sau Extindere",null,null,null,null,null,null,null,null,null,null,null,null,null,null,null,"A 6.4",null,null,"Prescorare",null,null,null,null,null,null,null,null,null,null,null,null,null,null,null,null,null,null,null,"zonă montană"]
[null,null,null,null,null,null,"Investiţie nouă"]
[]
[]
[]
[null,null,null,null,null,null,null,"A6.6",null,null,null,null,"X",null,null,"Bugete indicative si anexe conform HG907/2016"]
[]
[null,null,null,null,null,null,null,null,null,null,null,null,null,"Proiect tehnic",null,null,null,null,null,null,null,null,null,"Acord de mediu",null,null,null,null,null,null,null,null,null,null,null,null,"Aviz Natura2000"]
[]
[]
[null,"Detaliere criterii de selecţie îndeplinite"]
[]
[]
[]
[]
[]
[]
[]
[]
[]
[]
[null,"A7",null,null,null,"Date necesare obtinerii extrasului de carte funciara pentru imobilul(cladirisi/sau terenuri) pe care sunt/vor fi realizate investitiile, pentru Cererile de Finantare care vizeaza investitii in lucrari privind contructii noi sau modernizari constructii.(daca este cazul, se va adauga cate o linie pentru fiecare extras de carte funciara necesar)."]
[null,null,null,null,null,null,null,null,null,null,null,"Judet/Mun. Bucuresti ",null,null,null,null,null,null,null,null,null,null,null,null,null,null,null,null,null,"Unitatea Administrativ Teritoriala (UAT : Oras/Comuna/Sector)"]
[]
[]
[]
[null,null,null,null,null,null,null,"Identificaror Electronic",null,null,null,null,null,null,null,null,null,null,null,null,null,"Nr carte funciara",null,null,null,null,null,null,null,null,null,null,null,"Nr cadastral",null,null,null,null,null,null,null,null,null,null,null,null,null,"Nr topografic"]
[]
[]
[null,null,null,null,null,null,"Observatii"]
[]
[]
["B INFORMAŢII PRIVIND SOLICITANTUL"]
["B1 Descrierea solicitantului"]
["B1.1 Informaţii privind solicitantul"]
[null,"Data înființării / Data de naştere",null,null,null,null,null,null,null,null,null,null,null,null,null,null,null,null,null,"Cod Unic de Înregistrare și/sau Codul de",null,null,null,null,null,null,null,null,null,null,null,null,null,null,null,null,null,null,null,null,null,null,null,"Statut juridic al solicitantului"]
[null,null,null,null,null,null,null,null,null,null,null,null,null,null,null,null,null,null,null,"Înregistrare Fiscală"]
[]
[]
[null,"Număr de înregistrare în registrul comerțului / Registrul asociaţiilor şi fundaţiilor"]
[]
[null,"Codul CAEN al activităţii/activităţilor finanţate prin proiect:"]
[]
[]
[]
[null,"Codul unic de înregistrare APIA",null,null,null,null,null,null,null,null,null,null,null,null,null,null,null,null,null,null,null,null,null,null,null,null,null,null,null,null,null,null,null,null,null,null,"Anul atribuirii codului"]
[]
[]
[null,"B1.2 Sediul social / Domiciliul stabil al solicitantului / Reşedinţa din România"]
[null,"Judeţ",null,null,null,null,null,null,null,null,null,null,null,null,null,null,null,null,null,null,null,null,"Localitate",null,null,null,null,null,null,null,null,null,null,null,null,null,null,null,null,null,null,null,"Sat"]
[]
[null,"Cod Poştal",null,null,null,null,null,null,null,null,null,null,null,null,null,"Strada",null,null,null,null,null,null,null,null,null,null,null,null,null,null,null,null,null,null,null,null,null,null,null,null,null,null,null,null,null,null,null,null,null,null,null,null,"Nr."]
[]
[null,"Bloc",null,null,null,null,null,null,null,null,null,null,null,null,null,null,null,"Scara",null,null,null,null,null,null,null,null,null,null,null,null,null,null,"Et. ",null,null,null,null,null,null,"Ap.",null,null,null,null,null,null,"Sector"]
[]
[null,"Telefon fix/ mobil",null,null,null,null,null,null,null,null,null,null,null,null,null,null,null,null,null,null,"Fax",null,null,null,null,null,null,null,null,null,null,null,null,null,null,null,"E-mail"]
[]
[]
[null,"B1.3 Numele şi prenumele reprezentantului legal şi funcţia acestuia în cadrul organizaţiei, precum şi"]
[null,"specimenul de semnatură:"]
[]
[null,null,null,"Numele",null,null,null,null,null,null,null,null,null,null,"Prenumele",null,null,null,null,null,null,null,null,null,null,"Funcţia",null,null,null,null,null,null,null,null,null,null,"Reprezentant legal",null,null,null,null,null,null,null,null,null,null,"Specimen de"]
[null,null,null,null,null,null,null,null,null,null,null,null,null,null,null,null,null,null,null,null,null,null,null,null,null,null,null,null,null,null,null,null,null,null,null,null,null,null,null,null,null,null,null,null,null,null,null,"semnătură"]
[]
[null,null,null,null,null,null,null,null,null,null,null,null,null,null,null,null,null,null,null,null,null,null,null,null,null,null,null,null,null,null,null,null,null,null,null,null,"LEGAL"]
[]
[]
["B2 Informaţii referitoare la reprezentantul legal de proiect"]
[null,"B2.1 Date de identitate ale reprezentantului legal de proiect"]
[]
[null,null,null,"Data naşterii",null,null,null,null,null,null,null,null,null,null,null,null,null,null,null,null,null,null,null,null,"Cod numeric personal"]
[]
[]
[]
[]
[null,null,null,null,"Act de identitate",null,null,null,null,null,null,null,null,null,null,null,null,null,"Seria",null,null,"Nr.",null,null,null,null,null,null,"Eliberat la data de",null,null,null,null,null,null,null,null,"de:",null,null,null,null,null,null,null,null,null,null,null,null,null,"Valabil până la:"]
[null,null,null,null,"B.I.",null,null,"C.I.",null,null,"Paşaport"]
[]
[]
[]
[null,null,null,"Studii şi coordonate:"]
[]
[]
[]
[]
[]
[]
[]
[]
[]
[]
[]
[]
[null,"B2.2 Domiciliul stabil al reprezentantului legal de proiect"]
[null,"Judeţ",null,null,null,null,null,null,null,null,null,null,null,null,null,null,null,null,null,null,null,null,"Localitate",null,null,null,null,null,null,null,null,null,null,null,null,null,null,null,null,null,null,null,"Sat"]
[]
[null,"Cod Poştal",null,null,null,null,null,null,null,null,null,null,"Strada",null,null,null,null,null,null,null,null,null,null,null,null,null,null,null,null,null,"Nr.",null,null,null,null,null,"Bloc",null,null,null,null,null,null,null,null,null,null,null,"Scara",null,null,null,null,null,"Ap."]
[]
[null,"Telefon fix",null,null,null,null,null,null,null,null,null,null,null,null,null,null,null,null,null,null,"Telefon mobil",null,null,null,null,null,null,null,null,null,null,null,null,null,null,null,null,null,"Fax"]
[]
[null,"E-mail"]
[]
[]
["B3 Informaţii privind contul bancar pentru proiect F.E.A.D.R."]
[]
[null,null,"B3.1 Denumirea Băncii",null,null,null,null,null,null,null,null,null,null,null,null,null,null,null,null,null,null,null,null,null,null,null,null,null,null,null,null,"Denumirea Sucursalei/Filialei"]
[]
[]
[null,null,"B3.2 Adresa Băncii/Sucursalei"]
[]
[]
[null,null,"B3.3 Cod IBAN",null,null,null,null,null,null,null,null,null,null,null,null,null,null,null,null,null,null,null,null,null,null,null,null,null,null,null,null,"B3.4 Titularul contului bancar"]
[]
[]
["REGULI DE COMPLETARE\nSolicitantul are posibilitatea să opteze pentru Buget indicativ şi anexe conform HG 907/2016, prin bifarea check-box-ului\ncorespunzător din câmpul A6 sau pentru Buget indicativ şi anexe conform HG 28/2008 prin nebifarea check-box-ului.\nCompletaţi devizele aferente capitolelor de cheltuieli, defalcat pe cheltuieli eligibile şi neeligibile prin completarea tabelelor\nincluse în acest document, respectiv:\n1. Tabelul \"Deviz financiar_cap3\" cuprinde cheltuielile aferente capitolului 3 - Cheltuieli pentru proiectare şi asistenţă tehnică, cheltuieli\ncare trebuie să se regăsească atât în Bugetul Indicativ (Tabel \"Buget indicativ\" din cererea de finanţare, partea specifică) cât şi în Devizul\nGeneral din Studiul de Fezabilitate.\n2. Tabelul \"Devize obiect\" cuprinde formatul cadru al devizului pe obiect, iar solicitantul va completa atâtea devize pe obiect câte obiecte\nde investiţie sunt incluse în proiect. Suma tuturor devizelor pe obiect trebuie să se regăseasca atat in Bugetul Indicativ (tabelul \"Buget\nindicativ\" din cererea de finanţare, partea specifică) cât şi în Devizul General din Studiul de Fezabilitate\nÎn cazul în care proiectul de investiţii presupune mai multe devize pe obiect, solicitantul va crea în documentul curent câte o copie a\ntabelului \"Devize obiect\" pentru fiecare deviz pe obiect şi va detalia cheltuielile eligibile şi neeligibile pe fiecare în parte.\n3. Tabelul \"cap.2+cap.5\" cuprinde cheltuieli aferente capitolelor 2 şi 5 şi trebuie să se regăsească atât în Bugetul Indicativ (tabel \"Buget\nindicativ\" din cererea de finanţare, partea specifică) cât şi Devizul General din Studiul de Fezabilitate.\n4. Tabelul \"Deviz culturi\" cuprinde devizele aferente tuturor tipurilor de culturi, plantaţii, vizate de proiect.\n5. Câmpul \"Prescorare\" de la secţiunea A6 este obligatoriu.\n6. Pentru \"Plantaţiile specifice pentru struguri de masă\", se completează Deviz pe obiect separat.\n7. În cazul art 28 (Agromediu), intensitatea suplimentară se acordă după cum urmează:\n1 - Pentru investiţiile adresate terenurilor arabile cu condiția ca suprafața aflată sub angajament sa reprezinte mai mult de 50% din\nterenul arabil aparținand exploataţiei agricole.\nIntensitatea mărită se acordă pentru utilajele si echipamentele specifice lucrărilor de arat, grăpat, discuit, semănat/însămânţat, tocat resturi\nvegetale, încorporat resturi vegetale în sol, numai în cazul în care peste 50% din terenul arabil deținut în cadrul fermei se află sub un\nangajament în derulare in cazul următoarelor pachete promovate prin Măsura 10 - Agromediu și climă (AGM): Pachetul 4 - culturi verzi,\nPachetul 7 - terenuri arabile importante ca zone de hrănire pentru gâsca cu gât roșu (Branta ruficollis), suprafețe pe care se realizează\nlucrări de tehnologie a culturilor;Intensitatea mărită se acordă pentru facilităţi necesare depozitării şi compostării gunoiului de grajd numai\nîn cazul în care peste 50% din terenul arabil deținut în cadrul fermei se află sub un angajament în derulare in cazul Pachetului 4 - culturi\nverzi, Pachetului 5 - adaptarea la efectele schimbărilor climatice şi Pachetului 7 - terenuri arabile importante ca zone de hrănire pentru\ngâsca cu gât roșu (Branta ruficollis).\n2 -Pentru investiţiile adresate pajiștilor cu condiția ca suprafața aflată sub angajament să reprezinte mai mult de 50% din suprafața\nde pajiști aparținând fermei.\nIntensitatea suplimentară se acordă doar pentru contravaloarea următoarelor:\n- utilajelor folosite pentru cosit, strâns, balotat şi transportat fânul și a altor asemenea investitii utilizate in cazul pajistilor care fac\nobiectul sprijinului acordat prin Pachetul 1 - pajiști cu înaltă valoare naturală (HNV) fără Pachetul 2 - practici agricole tradiţionale,\n- utilajelor uşoare (utilaje cu lama scurtă, greutate redusă și viteză mică de deplasare) folosite pentru cosit, strâns, balotat şi\ntransportat fânul și a altor asemenea investitii utilizate in cazul pajistilor care fac obiectul sprijinului acordat prin varianta 2.2 - utilaje\nușoare pe pajiști permanente utilizate ca fânețe din pachetul 2 - practici agricole tradiţionale, varianta 3.1.2 -utilaje ușoare pe pajiști\nimportante pentru Crex crex din sub-pachetul 3.1 - Crex crex, varianta 3.2.2 -utilaje ușoare pe pajiști importante pentru Lanius minor și\nFalco vespertinus din sub-pachetul 3.2 - Lanius minor și Falco vespertinus, varianta 6.2 - utilaje ușoare pe pajiști importante pentru\nfluturi (Maculinea sp.) din pachetul 6 - pajiști importante pentru fluturi (Maculinea sp.);\n- platformele pentru depozitarea şi/sau compostarea gunoiul de grajd şi utilajele/echipamentele de transport şi de împrăştiere a\ngunoiului de grajd - în cazul pachetelor 1, 3.1, 3.2 şi 6;\n3 -Pentru investitiile ce deservesc animalele care fac obiectul angajamentelor pachetului nr. 8 (rase locale în pericol de abandon)\n- contravaloarea investiţiei în cauză se obţine înmulțind procentul pe care îl detine nucleul de rase locale în pericol de abandon în\ntotal efective de animale, cu total valoare eligibilă a proiectului. Intensitatea mărită se acordă doar pentru această contravaloare.\nEx. dacă rasele în pericol de abandon reprezintă 10% din total efective (exprimate in UVM), se aplica acest procent la valoarea totala\neligibila, si se acorda 20 puncte procentuale suplimentare la intensitate sprijin doar pentru această cota de 10% din valoarea totala\neligibilă.\n8. Punctul A6.2 se va completa ţinând cont de următoarele:\nInvestiţie nouă - cuprinde lucrările de construcţii-montaj, utilaje, instalaţii, care se realizează pe amplasamente noi, lucrarile pentru\nconstrucţiile existente cărora li se schimbă destinaţia nefuncționale/dezafectate\nModernizarea - cuprinde lucrările de construcţii şi instalaţii privind retehnologizarea, reutilarea și refacerea sau extinderea construcţiilor\nexistente aferente unităţilor în funcţiune şi cu autorizaţii de funcţionare valabile, fără modificarea destinaţiei iniţiale, inclusiv utilarea/\nreutilarea cu mașini, utilaje și echipamente necesare unei exploatații agricole pentru producția agricolă primară și, după caz, pentru\nprocesare la nivel de fermă.\n9. Încadrarea cererii de finanțare în zona montană se va face dacă amplasarea investiției și, acolo unde este cazul, peste 50% din\nterenurile agricole ale exploatației se află în una dintre localitățile în dreptul cărora exista mențiunea ANC ZM în Anexa 3 la Ghidul\nsolicitantului.\n10. NOU A6.6 Daca se alege optiunea “Semnatură electronică” reprezentantul legal va trebui să aplice semnătura electronică în caseta\ndedicată din declarația F.\nIn acest caz specimenul de semnatură din secțiunea B1.3 și semnătura din formularul de înscriere în Registrul unic de identificare (dacă e\ncazul), nu mai sunt necesare.\n11.NOU –Sectiunea A7: Pentru imobilul (clădiri şi/sau terenuri) pe care sunt/vor fi realizate investiţiile, pentru Cererile de Finanţare care\nvizează investiţii în lucrări privind construcţiile noi sau modernizări ale constructiilor existente, cu lucrarile de cadastru finalizate se va\ncompleta sectiunea A7 din CF, cu informatiile\ncadastrale necesare obtinerii de catre AFIR a extrasului de carte funciara de la ANCPI.\nSe vor completa obligatoriu urmatoarele informatii :Judet, UAT cat si urmatoarele date de identificare:\nIdentificator electronic\nsau:\nNr carte funciara si Nr cadastral\nsau\nNr carte funciara si Nr topografic.\nDacă este cazul, se va adăuga câte o linie pentru fiecare extras de carte funciară necesar.\n12. Trebuie bifate şi anexate toate documentele de pe coloana “DEPUNERE-Obligatoriu pentru toate proiectele” din secțiunea E -\nLista documentelor anexate.\nIn coloana Nr. Pagini document, se va completa numarul paginilor aferente documentului anexat.\n(tip PDF: scanat sau semnat electronic, utilizand o semnatura electronica valida.)\n13. Fereastra cu mesajele de avertizare (dacă este cazul apare la închiderea formularului) se poate închide şi apăsând tasta\nENTER."]
[]
[]
[]
[]
[]
[]
[]
[]
[]
[]
[]
[]
[]
[]
[]
[]
[]
[]
[]
[]
[]
[]
[]
[]
[]
[]
[]
[]
[]
[]
[]
[]
[]
[]
[]
[]
[]
[]
[]
[]
[]
[]
[]
[]
[]
[]
[]
[]
[]
[]
[]
["9. Încadrarea cererii de finanțare în zona montană se va face dacă amplasarea investiției și, acolo unde este cazul, peste 50% din terenurile agricole ale exploatației se află în una dintre localitățile în dreptul cărora exista mențiunea ANC ZM în Anexa 3 la Ghidul solicitantului.\n10. Trebuie bifate şi anexate toate documentele de pe coloana “DEPUNERE-Obligatoriu pentru toate proiectele” din secțiunea E - Lista documentelor anexate."]
[]
[]
[]
[]
[]
[]
[]
[]
[]
[]
[]
[]
[]
[]
[]
[]
[]
[]
[]
[]
[]
[]
[]
[]
[]
[]
[]
[]
[]
[]
[]
[]
[]
[]
[]
[]
[]
[]
[]
[]
[]
[]
[]
[]
[]
[]
[]
[]
[]
[]
[]
[]
[null,"Buget Indicativ HG 907 (Euro) pentru INVESTIŢII în activitatea de producţie AGRICOLĂ "]
["MINISTERUL AGRICULTURII ŞI DEZVOLTĂRII RURALE"]
["AGENŢIA PENTRU FINANŢAREA INVESTIŢIILOR RURALE"]
[]
[]
[null,"Procentul aferent intensităţii",null,null,null,null,null,null,null,null,null,null,null,null,null,null,null,null,null,"Curs EURO",null,null,null,null,null,null,null,null,null,null,null,null,null,null,null,"Data întocmirii Studiului de Fezabilitate",null,null,null,null,null,null,null,null,null,null,null,null,null,null,null,null,null,null,null,null,null,null,null,null,null,null,null,"REGULI DE COMPLETARE\nSolicitantul are posibilitatea să opteze pentru Buget indicativ şi anexe conform HG 907/2016, prin bifarea check-box-ului\ncorespunzător din câmpul A6 sau pentru Buget indicativ şi anexe conform HG 28/2008 prin nebifarea check-box-ului.\nCompletaţi devizele aferente capitolelor de cheltuieli, defalcat pe cheltuieli eligibile şi neeligibile prin completarea tabelelor\nincluse în acest document, respectiv:\n1. Tabelul \"Deviz financiar_cap3\" cuprinde cheltuielile aferente capitolului 3 - Cheltuieli pentru proiectare şi asistenţă tehnică, cheltuieli\ncare trebuie să se regăsească atât în Bugetul Indicativ (Tabel \"Buget indicativ\" din cererea de finanţare, partea specifică) cât şi în Devizul\nGeneral din Studiul de Fezabilitate.\n2. Tabelul \"Devize obiect\" cuprinde formatul cadru al devizului pe obiect, iar solicitantul va completa atâtea devize pe obiect câte obiecte\nde investiţie sunt incluse în proiect. Suma tuturor devizelor pe obiect trebuie să se regăseasca atat in Bugetul Indicativ (tabelul \"Buget\nindicativ\" din cererea de finanţare, partea specifică) cât şi în Devizul General din Studiul de Fezabilitate\nÎn cazul în care proiectul de investiţii presupune mai multe devize pe obiect, solicitantul va crea în documentul curent câte o copie a\ntabelului \"Devize obiect\" pentru fiecare deviz pe obiect şi va detalia cheltuielile eligibile şi neeligibile pe fiecare în parte.\n3. Tabelul \"cap.2+cap.5\" cuprinde cheltuieli aferente capitolelor 2 şi 5 şi trebuie să se regăsească atât în Bugetul Indicativ (tabel \"Buget\nindicativ\" din cererea de finanţare, partea specifică) cât şi Devizul General din Studiul de Fezabilitate.\n4. Tabelul \"Deviz culturi\" cuprinde devizele aferente tuturor tipurilor de culturi, plantaţii, vizate de proiect.\n5. Câmpul \"Prescorare\" de la secţiunea A6 este obligatoriu.\n6. Pentru \"Plantaţiile specifice pentru struguri de masă\", se completează Deviz pe obiect separat.\n7. În cazul art 28 (Agromediu), intensitatea suplimentară se acordă după cum urmează:\n1 - Pentru investiţiile adresate terenurilor arabile cu condiția ca suprafața aflată sub angajament sa reprezinte mai mult de 50% din\nterenul arabil aparținand exploataţiei agricole.\nIntensitatea mărită se acordă pentru utilajele si echipamentele specifice lucrărilor de arat, grăpat, discuit, semănat/însămânţat, tocat resturi\nvegetale, încorporat resturi vegetale în sol, numai în cazul în care peste 50% din terenul arabil deținut în cadrul fermei se află sub un\nangajament în derulare in cazul următoarelor pachete promovate prin Măsura 10 - Agromediu și climă (AGM): Pachetul 4 - culturi verzi,\nPachetul 7 - terenuri arabile importante ca zone de hrănire pentru gâsca cu gât roșu (Branta ruficollis), suprafețe pe care se realizează+A218A218A218A218A218A218A218A218\nlucrări de tehnologie a culturilor;Intensitatea mărită se acordă pentru facilităţi necesare depozitării şi compostării gunoiului de grajd numai\nîn cazul în care peste 50% din terenul arabil deținut în cadrul fermei se află sub un angajament în derulare in cazul Pachetului 4 - culturi\nverzi, Pachetului 5 - adaptarea la efectele schimbărilor climatice şi Pachetului 7 - terenuri arabile importante ca zone de hrănire pentru\ngâsca cu gât roșu (Branta ruficollis).\n2 -Pentru investiţiile adresate pajiștilor cu condiția ca suprafața aflată sub angajament să reprezinte mai mult de 50% din suprafața\nde pajiști aparținând fermei.\nIntensitatea suplimentară se acordă doar pentru contravaloarea următoarelor:\n- utilajelor folosite pentru cosit, strâns, balotat şi transportat fânul și a altor asemenea investitii utilizate in cazul pajistilor care fac\nobiectul sprijinului acordat prin Pachetul 1 - pajiști cu înaltă valoare naturală (HNV) fără Pachetul 2 - practici agricole tradiţionale,\n- utilajelor uşoare (utilaje cu lama scurtă, greutate redusă și viteză mică de deplasare) folosite pentru cosit, strâns, balotat şi\ntransportat fânul și a altor asemenea investitii utilizate in cazul pajistilor care fac obiectul sprijinului acordat prin varianta 2.2 - utilaje\nușoare pe pajiști permanente utilizate ca fânețe din pachetul 2 - practici agricole tradiţionale, varianta 3.1.2 -utilaje ușoare pe pajiști\nimportante pentru Crex crex din sub-pachetul 3.1 - Crex crex, varianta 3.2.2 -utilaje ușoare pe pajiști importante pentru Lanius minor și\nFalco vespertinus din sub-pachetul 3.2 - Lanius minor și Falco vespertinus, varianta 6.2 - utilaje ușoare pe pajiști importante pentru\nfluturi (Maculinea sp.) din pachetul 6 - pajiști importante pentru fluturi (Maculinea sp.);\n- platformele pentru depozitarea şi/sau compostarea gunoiul de grajd şi utilajele/echipamentele de transport şi de împrăştiere a\ngunoiului de grajd - în cazul pachetelor 1, 3.1, 3.2 şi 6;\n3 -Pentru investitiile ce deservesc animalele care fac obiectul angajamentelor pachetului nr. 8 (rase locale în pericol de abandon)\n- contravaloarea investiţiei în cauză se obţine înmulțind procentul pe care îl detine nucleul de rase locale în pericol de abandon în\ntotal efective de animale, cu total valoare eligibilă a proiectului. Intensitatea mărită se acordă doar pentru această contravaloare.\nEx. dacă rasele în pericol de abandon reprezintă 10% din total efective (exprimate in UVM), se aplica acest procent la valoarea totala\neligibila, si se acorda 20 puncte procentuale suplimentare la intensitate sprijin doar pentru această cota de 10% din valoarea totala\neligibilă.\n8. Punctul A6.2 se va completa ţinând cont de următoarele:\nInvestiţie nouă - cuprinde lucrările de construcţii-montaj, utilaje, instalaţii, care se realizează pe amplasamente noi, lucrarile pentru\nconstrucţiile existente cărora li se schimbă destinaţia nefuncționale/dezafectate\nModernizarea - cuprinde lucrările de construcţii şi instalaţii privind retehnologizarea, reutilarea și refacerea sau extinderea construcţiilor\nexistente aferente unităţilor în funcţiune şi cu autorizaţii de funcţionare valabile, fără modificarea destinaţiei iniţiale, inclusiv utilarea/\nreutilarea cu mașini, utilaje și echipamente necesare unei exploatații agricole pentru producția agricolă primară și, după caz, pentru\nprocesare la nivel de fermă.\n9. Încadrarea cererii de finanțare în zona montană se va face dacă amplasarea investiției și, acolo unde este cazul, peste 50% din\nterenurile agricole ale exploatației se află în una dintre localitățile în dreptul cărora exista mențiunea ANC ZM în Anexa 3 la Ghidul\nsolicitantului.\n10. NOU A6.6 Daca se alege optiunea “Semnatură electronică” reprezentantul legal va trebui să aplice semnătura electronică în caseta\ndedicată din declarația F.\nIn acest caz specimenul de semnatură din secțiunea B1.3 și semnătura din formularul de înscriere în Registrul unic de identificare (dacă e\ncazul), nu mai sunt necesare.\n11.NOU –Sectiunea A7: Pentru imobilul (clădiri şi/sau terenuri) pe care sunt/vor fi realizate investiţiile, pentru Cererile de Finanţare care\nvizează investiţii în lucrări privind construcţiile noi sau modernizări ale constructiilor existente, cu lucrarile de cadastru finalizate se va\ncompleta sectiunea A7 din CF, cu informatiile\ncadastrale necesare obtinerii de catre AFIR a extrasului de carte funciara de la ANCPI.\nSe vor completa obligatoriu urmatoarele informatii :Judet, UAT cat si urmatoarele date de identificare:\nIdentificator electronic\nsau:\nNr carte funciara si Nr cadastral\nsau\nNr carte funciara si Nr topografic.\nDacă este cazul, se va adăuga câte o linie pentru fiecare extras de carte funciară necesar.\n12. Trebuie bifate şi anexate toate documentele de pe coloana “DEPUNERE-Obligatoriu pentru toate proiectele” din secțiunea E -\nLista documentelor anexate.\nIn coloana Nr. Pagini document, se va completa numarul paginilor aferente documentului anexat.\n(tip PDF: scanat sau semnat electronic, utilizand o semnatura electronica valida.)\n13. Fereastra cu mesajele de avertizare (dacă este cazul apare la închiderea formularului) se poate închide şi apăsând tasta\nENTER."]
[]
["Măsura",null,null,null,null,null,null,null,null,null,null,null,null,null,null,null,null,null,null,null,null,null,null,null,null,null,null,null,null,null,null,null,null,null,null,"M1/2A"]
["Denumirea capitolelor de cheltuieli",null,null,null,null,null,null,null,null,null,null,null,null,null,null,null,null,null,null,null,null,null,null,null,null,null,null,null,null,null,null,null,null,null,null,"Cheltuieli eligibile",null,null,null,null,null,null,null,null,"Cheltuieli neeligibile",null,null,null,null,null,null,null,"Total"]
[null,null,null,null,null,null,null,null,null,null,null,null,null,null,null,null,null,null,null,null,null,null,null,null,null,null,null,null,null,null,null,null,null,null,null,"EURO",null,null,null,null,null,null,null,null,"EURO",null,null,null,null,null,null,null,"EURO"]
[1,null,null,null,null,null,null,null,null,null,null,null,null,null,null,null,null,null,null,null,null,null,null,null,null,null,null,null,null,null,null,null,null,null,null,2,null,null,null,null,null,null,null,null,3,null,null,null,null,null,null,null,4]
["Capitolul 1 Cheltuieli pentru obtinerea şi amenajarea terenului - total, din care:",null,null,null,null,null,null,null,null,null,null,null,null,null,null,null,null,null,null,null,null,null,null,null,null,null,null,null,null,null,null,null,null,null,null,{"$f":"SUM(AJ336:AR338)","v":0},null,null,null,null,null,null,null,null,{"$f":"SUM(AS335:AZ338)","v":0},null,null,null,null,null,null,null,{"$f":"SUM(AJ334:AZ334)","v":0}]
["1.1 Obţinerea terenului",null,null,null,null,null,null,null,null,null,null,null,null,null,null,null,null,null,null,null,null,null,null,null,null,null,null,null,null,null,null,null,null,null,null,null,null,null,null,null,null,null,null,null,null,null,null,null,null,null,null,null,{"$f":"SUM(AJ335:AZ335)","v":0}]
["1.2 Amenajarea terenului",null,null,null,null,null,null,null,null,null,null,null,null,null,null,null,null,null,null,null,null,null,null,null,null,null,null,null,null,null,null,null,null,null,null,null,null,null,null,null,null,null,null,null,null,null,null,null,null,null,null,null,0]
["1.3 Amenajari pentru protecţia mediului şi aducerea la starea iniţială",null,null,null,null,null,null,null,null,null,null,null,null,null,null,null,null,null,null,null,null,null,null,null,null,null,null,null,null,null,null,null,null,null,null,null,null,null,null,null,null,null,null,null,null,null,null,null,null,null,null,null,0]
["1.4 Cheltuieli pentru relocarea/protecţia utilităţilor",null,null,null,null,null,null,null,null,null,null,null,null,null,null,null,null,null,null,null,null,null,null,null,null,null,null,null,null,null,null,null,null,null,null,null,null,null,null,null,null,null,null,null,null,null,null,null,null,null,null,null,0]
["Capitolul 2 Cheltuieli pentru asigurarea utilităţilor necesare obiectivului de investiţii",null,null,null,null,null,null,null,null,null,null,null,null,null,null,null,null,null,null,null,null,null,null,null,null,null,null,null,null,null,null,null,null,null,null,null,null,null,null,null,null,null,null,null,null,null,null,null,null,null,null,null,0]
["Capitolul 3 Cheltuieli pentru proiectare şi asistenţă tehnică - total, din care:",null,null,null,null,null,null,null,null,null,null,null,null,null,null,null,null,null,null,null,null,null,null,null,null,null,null,null,null,null,null,null,null,null,null,{"$f":"AJ341+AJ345+AJ346+AJ347+AJ348+AJ356+AJ359","v":0},null,null,null,null,null,null,null,null,{"$f":"AS341+AS345+AS346+AS347+AS348+AS355+AS356+AS359","v":0},null,null,null,null,null,null,null,0]
["3.1 Studii",null,null,null,null,null,null,null,null,null,null,null,null,null,null,null,null,null,null,null,null,null,null,null,null,null,null,null,null,null,null,null,null,null,null,{"$f":"SUM(AJ342:AR344)","v":0},null,null,null,null,null,null,null,null,{"$f":"SUM(AS342:AZ344)","v":0},null,null,null,null,null,null,null,0]
["       3.1.1 Studii de teren",null,null,null,null,null,null,null,null,null,null,null,null,null,null,null,null,null,null,null,null,null,null,null,null,null,null,null,null,null,null,null,null,null,null,null,null,null,null,null,null,null,null,null,null,null,null,null,null,null,null,null,0]
["       3.1.2 Raport privind impactul asupra mediului",null,null,null,null,null,null,null,null,null,null,null,null,null,null,null,null,null,null,null,null,null,null,null,null,null,null,null,null,null,null,null,null,null,null,null,null,null,null,null,null,null,null,null,null,null,null,null,null,null,null,null,0]
["       3.1.3 Alte studii specifice",null,null,null,null,null,null,null,null,null,null,null,null,null,null,null,null,null,null,null,null,null,null,null,null,null,null,null,null,null,null,null,null,null,null,null,null,null,null,null,null,null,null,null,null,null,null,null,null,null,null,null,0]
["3.2 Documentaţii-suport şi cheltuieli pentru obţinerea de avize, acorduri şi autorizaţii",null,null,null,null,null,null,null,null,null,null,null,null,null,null,null,null,null,null,null,null,null,null,null,null,null,null,null,null,null,null,null,null,null,null,null,null,null,null,null,null,null,null,null,null,null,null,null,null,null,null,null,0]
["3.3 Expertizare tehnică",null,null,null,null,null,null,null,null,null,null,null,null,null,null,null,null,null,null,null,null,null,null,null,null,null,null,null,null,null,null,null,null,null,null,null,null,null,null,null,null,null,null,null,null,null,null,null,null,null,null,null,0]
["3.4 Certificarea performanţei energetice şi auditul energetic al clădirilor",null,null,null,null,null,null,null,null,null,null,null,null,null,null,null,null,null,null,null,null,null,null,null,null,null,null,null,null,null,null,null,null,null,null,null,null,null,null,null,null,null,null,null,null,null,null,null,null,null,null,null,0]
["3.5 Proiectare",null,null,null,null,null,null,null,null,null,null,null,null,null,null,null,null,null,null,null,null,null,null,null,null,null,null,null,null,null,null,null,null,null,null,{"$f":"SUM(AJ349:AR354)","v":0},null,null,null,null,null,null,null,null,{"$f":"SUM(AS349:AZ354)","v":0},null,null,null,null,null,null,null,0]
["      3.5.1 Temă de proiectare",null,null,null,null,null,null,null,null,null,null,null,null,null,null,null,null,null,null,null,null,null,null,null,null,null,null,null,null,null,null,null,null,null,null,null,null,null,null,null,null,null,null,null,null,null,null,null,null,null,null,null,0]
["      3.5.2 Studiu de prefezabilitate",null,null,null,null,null,null,null,null,null,null,null,null,null,null,null,null,null,null,null,null,null,null,null,null,null,null,null,null,null,null,null,null,null,null,null,null,null,null,null,null,null,null,null,null,null,null,null,null,null,null,null,0]
["      3.5.3. Studiu de fezabilitate/documentaţie de avizare a lucrărilor de intervenţii\n                şi deviz general",null,null,null,null,null,null,null,null,null,null,null,null,null,null,null,null,null,null,null,null,null,null,null,null,null,null,null,null,null,null,null,null,null,null,null,null,null,null,null,null,null,null,null,null,null,null,null,null,null,null,null,0]
["      3.5.4. Documentaţiile tehnice necesare în vederea obţinerii avizelor/\n                acordurilor/autorizaţiilor",null,null,null,null,null,null,null,null,null,null,null,null,null,null,null,null,null,null,null,null,null,null,null,null,null,null,null,null,null,null,null,null,null,null,null,null,null,null,null,null,null,null,null,null,null,null,null,null,null,null,null,0]
["      3.5.5. Verificarea tehnică de calitate a proiectului tehnic şi a detaliilor de execuţie",null,null,null,null,null,null,null,null,null,null,null,null,null,null,null,null,null,null,null,null,null,null,null,null,null,null,null,null,null,null,null,null,null,null,null,null,null,null,null,null,null,null,null,null,null,null,null,null,null,null,null,0]
["      3.5.6. Proiect tehnic şi detalii de execuţie",null,null,null,null,null,null,null,null,null,null,null,null,null,null,null,null,null,null,null,null,null,null,null,null,null,null,null,null,null,null,null,null,null,null,null,null,null,null,null,null,null,null,null,null,null,null,null,null,null,null,null,0]
["3.6 Organizarea procedurilor de achiziţie",null,null,null,null,null,null,null,null,null,null,null,null,null,null,null,null,null,null,null,null,null,null,null,null,null,null,null,null,null,null,null,null,null,null,null,null,null,null,null,null,null,null,null,null,null,null,null,null,null,null,null,0]
["3.7 Consultanţă",null,null,null,null,null,null,null,null,null,null,null,null,null,null,null,null,null,null,null,null,null,null,null,null,null,null,null,null,null,null,null,null,null,null,{"$f":"AJ357","v":0},null,null,null,null,null,null,null,null,{"$f":"AS357+AS358","v":0},null,null,null,null,null,null,null,0]
["      3.7.1 Managementul de proiect pentru obiectivul de investiţii",null,null,null,null,null,null,null,null,null,null,null,null,null,null,null,null,null,null,null,null,null,null,null,null,null,null,null,null,null,null,null,null,null,null,null,null,null,null,null,null,null,null,null,null,null,null,null,null,null,null,null,0]
["     3.7.2 Auditul financiar",null,null,null,null,null,null,null,null,null,null,null,null,null,null,null,null,null,null,null,null,null,null,null,null,null,null,null,null,null,null,null,null,null,null,null,null,null,null,null,null,null,null,null,null,null,null,null,null,null,null,null,0]
["3.8 Asistenţă Tehnică",null,null,null,null,null,null,null,null,null,null,null,null,null,null,null,null,null,null,null,null,null,null,null,null,null,null,null,null,null,null,null,null,null,null,{"$f":"AJ360+AS363","v":0},null,null,null,null,null,null,null,null,{"$f":"AS360+AS363","v":0},null,null,null,null,null,null,null,0]
["      3.8.1 Asistenţă Tehnică din partea proiectantului",null,null,null,null,null,null,null,null,null,null,null,null,null,null,null,null,null,null,null,null,null,null,null,null,null,null,null,null,null,null,null,null,null,null,{"$f":"AJ361+AJ362","v":0},null,null,null,null,null,null,null,null,{"$f":"AS361+AS362","v":0},null,null,null,null,null,null,null,0]
["           3.8.1.1 pe perioada de execuţie a lucrărilor",null,null,null,null,null,null,null,null,null,null,null,null,null,null,null,null,null,null,null,null,null,null,null,null,null,null,null,null,null,null,null,null,null,null,null,null,null,null,null,null,null,null,null,null,null,null,null,null,null,null,null,0]
["           3.8.1.2 pentru participarea proiectantului la fazele incluse în programul de control al\n                       lucrărilor de execuţie, avizat de către Inspectoratul de Stat în Construcţii",null,null,null,null,null,null,null,null,null,null,null,null,null,null,null,null,null,null,null,null,null,null,null,null,null,null,null,null,null,null,null,null,null,null,null,null,null,null,null,null,null,null,null,null,null,null,null,null,null,null,null,0]
["      3.8.2 Dirigenţie de şantier",null,null,null,null,null,null,null,null,null,null,null,null,null,null,null,null,null,null,null,null,null,null,null,null,null,null,null,null,null,null,null,null,null,null,null,null,null,null,null,null,null,null,null,null,null,null,null,null,null,null,null,0]
["Verificare încadrare cheltuieli capitolul 3",null,null,null,null,null,null,null,null,null,null,null,null,null,null,null,null,null,null,null,null,null,null,null,null,null,null,null,null,null,null,null,{"$f":"AJ334+AJ339+AJ365","v":0},{"$f":"IF(AG364=0,0,AI364)","v":0},null,"verificarea se face in Totalizator"]
["Capitolul 4 Cheltuieli pentru investiţia de bază - total, din care:",null,null,null,null,null,null,null,null,null,null,null,null,null,null,null,null,null,null,null,null,null,null,null,null,null,null,null,null,null,null,null,null,null,null,{"$f":"AJ366+AJ373","v":0},null,null,null,null,null,null,null,null,{"$f":"AS366+AS373","v":0},null,null,null,null,null,null,null,{"$f":"SUM(AJ365:AZ365)","v":0}]
["A - Constructii şi lucrări de intervenţii - total, din care:",null,null,null,null,null,null,null,null,null,null,null,null,null,null,null,null,null,null,null,null,null,null,null,null,null,null,null,null,null,null,null,null,null,null,{"$f":"SUM(AJ367:AR372)","v":0},null,null,null,null,null,null,null,null,{"$f":"SUM(AS367:AZ372)","v":0},null,null,null,null,null,null,null,0]
["4.1 Construcţii şi instalaţii",null,null,null,null,null,null,null,null,null,null,null,null,null,null,null,null,null,null,null,null,null,null,null,null,null,null,null,null,null,null,null,null,null,null,null,null,null,null,null,null,null,null,null,null,null,null,null,null,null,null,null,0]
["4.2 Montaj utilaje, echipamente tehnologice şi funcţionale",null,null,null,null,null,null,null,null,null,null,null,null,null,null,null,null,null,null,null,null,null,null,null,null,null,null,null,null,null,null,null,null,null,null,null,null,null,null,null,null,null,null,null,null,null,null,null,null,null,null,null,0]
["4.3 Utilaje, echipamente tehnologice şi funcţionale care necesită montaj",null,null,null,null,null,null,null,null,null,null,null,null,null,null,null,null,null,null,null,null,null,null,null,null,null,null,null,null,null,null,null,null,null,null,null,null,null,null,null,null,null,null,null,null,null,null,null,null,null,null,null,0]
["4.4 Utilaje, echipamente tehnologice şi funcţionale care nu necesită montaj şi echipamente",null,null,null,null,null,null,null,null,null,null,null,null,null,null,null,null,null,null,null,null,null,null,null,null,null,null,null,null,null,null,null,null,null,null,null,null,null,null,null,null,null,null,null,null,null,null,null,null,null,null,null,0]
["4.5 Dotări",null,null,null,null,null,null,null,null,null,null,null,null,null,null,null,null,null,null,null,null,null,null,null,null,null,null,null,null,null,null,null,null,null,null,null,null,null,null,null,null,null,null,null,null,null,null,null,null,null,null,null,0]
["4.6 Active necorporale",null,null,null,null,null,null,null,null,null,null,null,null,null,null,null,null,null,null,null,null,null,null,null,null,null,null,null,null,null,null,null,null,null,null,null,null,null,null,null,null,null,null,null,null,null,null,null,null,null,null,null,0]
["B - Cheltuieli pentru investitii în culturi/plantaţii",null,null,null,null,null,null,null,null,null,null,null,null,null,null,null,null,null,null,null,null,null,null,null,null,null,null,null,null,null,null,null,null,null,null,{"$f":"SUM(AJ374:AR378)","v":0},null,null,null,null,null,null,null,null,{"$f":"SUM(AS374:AZ378)","v":0},null,null,null,null,null,null,null,0]
["Subcapitol 1 - Lucrări de pregătire a terenului",null,null,null,null,null,null,null,null,null,null,null,null,null,null,null,null,null,null,null,null,null,null,null,null,null,null,null,null,null,null,null,null,null,null,null,null,null,null,null,null,null,null,null,null,null,null,null,null,null,null,null,0]
["Subcapitol 2 - Infiinţarea plantaţiei",null,null,null,null,null,null,null,null,null,null,null,null,null,null,null,null,null,null,null,null,null,null,null,null,null,null,null,null,null,null,null,null,null,null,null,null,null,null,null,null,null,null,null,null,null,null,null,null,null,null,null,0]
["Subcapitol 3 - Intreţinere plantaţie în anul 1",null,null,null,null,null,null,null,null,null,null,null,null,null,null,null,null,null,null,null,null,null,null,null,null,null,null,null,null,null,null,null,null,null,null,null,null,null,null,null,null,null,null,null,null,null,null,null,null,null,null,null,0]
["Subcapitol 4 - Intreţinere plantaţie în anul 2",null,null,null,null,null,null,null,null,null,null,null,null,null,null,null,null,null,null,null,null,null,null,null,null,null,null,null,null,null,null,null,null,null,null,null,null,null,null,null,null,null,null,null,null,null,null,null,null,null,null,null,0]
["Subcapitol 5 - Instalat sistem susţinere şi împrejmuire",null,null,null,null,null,null,null,null,null,null,null,null,null,null,null,null,null,null,null,null,null,null,null,null,null,null,null,null,null,null,null,null,null,null,null,null,null,null,null,null,null,null,null,null,null,null,null,null,null,null,null,0]
["Capitolul 5 Alte cheltuieli - total, din care:",null,null,null,null,null,null,null,null,null,null,null,null,null,null,null,null,null,null,null,null,null,null,null,null,null,null,null,null,null,null,null,null,null,null,{"$f":"AJ380+AJ383+AJ389+AJ390","v":0},null,null,null,null,null,null,null,null,{"$f":"AS380+AS383+AS389+AS390","v":0},null,null,null,null,null,null,null,0]
["5.1 Organizare de şantier",null,null,null,null,null,null,null,null,null,null,null,null,null,null,null,null,null,null,null,null,null,null,null,null,null,null,null,null,null,null,null,null,null,null,{"$f":"SUM(AJ381:AR382)","v":0},null,null,null,null,null,null,null,null,{"$f":"SUM(AS381:AZ382)","v":0},null,null,null,null,null,null,null,0]
["      5.1.1 lucrări de construcţii şi instalaţii aferente organizării de şantier",null,null,null,null,null,null,null,null,null,null,null,null,null,null,null,null,null,null,null,null,null,null,null,null,null,null,null,null,null,null,null,null,null,null,null,null,null,null,null,null,null,null,null,null,null,null,null,null,null,null,null,0]
["      5.1.2 cheltuieli conexe orgănizării şantierului",null,null,null,null,null,null,null,null,null,null,null,null,null,null,null,null,null,null,null,null,null,null,null,null,null,null,null,null,null,null,null,null,null,null,null,null,null,null,null,null,null,null,null,null,null,null,null,null,null,null,null,0]
["5.2 Comisioane, taxe, costul creditului",null,null,null,null,null,null,null,null,null,null,null,null,null,null,null,null,null,null,null,null,null,null,null,null,null,null,null,null,null,null,null,null,null,null,{"$f":"SUM(AJ384:AR388)","v":0},null,null,null,null,null,null,null,null,{"$f":"SUM(AS384:AZ388)","v":0},null,null,null,null,null,null,null,0]
["      5.2.1 Comisioanele şi dobânzile aferente creditului băncii finanţatoare",null,null,null,null,null,null,null,null,null,null,null,null,null,null,null,null,null,null,null,null,null,null,null,null,null,null,null,null,null,null,null,null,null,null,null,null,null,null,null,null,null,null,null,null,null,null,null,null,null,null,null,0]
["      5.2.2 Cota aferentă ISC pentru controlul calităţii lucrărilor de construcţii",null,null,null,null,null,null,null,null,null,null,null,null,null,null,null,null,null,null,null,null,null,null,null,null,null,null,null,null,null,null,null,null,null,null,null,null,null,null,null,null,null,null,null,null,null,null,null,null,null,null,null,0]
["      5.2.3 Cota aferentă ISC pentru controlul statului în amenajarea teritoriului,\n               urbanism şi pentru autorizarea lucrărilor de construcţii",null,null,null,null,null,null,null,null,null,null,null,null,null,null,null,null,null,null,null,null,null,null,null,null,null,null,null,null,null,null,null,null,null,null,null,null,null,null,null,null,null,null,null,null,null,null,null,null,null,null,null,0]
["      5.2.4 Cota aferentă Casei Sociale a Constructorilor - CSC",null,null,null,null,null,null,null,null,null,null,null,null,null,null,null,null,null,null,null,null,null,null,null,null,null,null,null,null,null,null,null,null,null,null,null,null,null,null,null,null,null,null,null,null,null,null,null,null,null,null,null,0]
["      5.2.5 Taxe pentru acorduri, avize conforme şi autorizaţia de construire/desfiinţare",null,null,null,null,null,null,null,null,null,null,null,null,null,null,null,null,null,null,null,null,null,null,null,null,null,null,null,null,null,null,null,null,null,null,null,null,null,null,null,null,null,null,null,null,null,null,null,null,null,null,null,0]
["5.3 Cheltuieli diverse şi neprevăzute",null,null,null,null,null,null,null,null,null,null,null,null,null,null,null,null,null,null,null,null,null,null,null,null,null,null,null,null,null,null,null,null,null,null,null,null,null,null,null,null,null,null,null,null,null,null,null,null,null,null,null,0]
["5.4 Cheltuieli pentru informare şi publicitate",null,null,null,null,null,null,null,null,null,null,null,null,null,null,null,null,null,null,null,null,null,null,null,null,null,null,null,null,null,null,null,null,null,null,null,null,null,null,null,null,null,null,null,null,null,null,null,null,null,null,null,0]
["Procent cheltuieli diverse şi neprevăzute"]
["Capitolul 6 Cheltuieli pentru probe tehnologice si teste - total, din care:",null,null,null,null,null,null,null,null,null,null,null,null,null,null,null,null,null,null,null,null,null,null,null,null,null,null,null,null,null,null,null,null,null,null,{"$f":"SUM(AJ393:AR394)","v":0},null,null,null,null,null,null,null,null,{"$f":"SUM(AS393:AZ394)","v":0},null,null,null,null,null,null,null,0]
["6.1 Pregătirea personalului de exploatare",null,null,null,null,null,null,null,null,null,null,null,null,null,null,null,null,null,null,null,null,null,null,null,null,null,null,null,null,null,null,null,null,null,null,null,null,null,null,null,null,null,null,null,null,null,null,null,null,null,null,null,0]
["6.2 Probe tehnologice şi teste",null,null,null,null,null,null,null,null,null,null,null,null,null,null,null,null,null,null,null,null,null,null,null,null,null,null,null,null,null,null,null,null,null,null,null,null,null,null,null,null,null,null,null,null,null,null,null,null,null,null,null,0]
["TOTAL GENERAL",null,null,null,null,null,null,null,null,null,null,null,null,null,null,null,null,null,null,null,null,null,null,null,null,null,null,null,null,null,null,null,null,null,null,{"$f":"AJ334+AJ339+AJ340+AJ365+AJ379+AJ392","v":0},null,null,null,null,null,null,null,null,{"$f":"AS334+AS339+AS340+AS365+AS379+AS392","v":0},null,null,null,null,null,null,null,0]
["Verificare actualizare",null,null,null,null,null,null,null,null,null,null,null,null,null,null,null,null,null,null,null,null,null,null,null,null,null,null,null,null,null,null,{"$f":"AJ397*100/AJ395","v":{"$error":"#DIV/0!"}},null,null,{"$f":"IF(AJ395=0,0,AF396)","v":0},{"$f":"IF(AI396<=5,\"actualizare mai mică de 5% din valoarea eligibila\",\"actualizare mai mare de 5% din valoarea eligibila\")","v":"actualizare mai mică de 5% din valoarea eligibila"}]
["ACTUALIZARE Cheltuieli Eligibile (max 5%)",null,null,null,null,null,null,null,null,null,null,null,null,null,null,null,null,null,null,null,null,null,null,null,null,null,null,null,null,null,null,null,null,null,null,null,null,null,null,null,null,null,null,null,null,null,null,null,null,null,null,null,{"$f":"SUM(AJ397:AZ397)","v":0}]
["TOTAL GENERAL CU ACTUALIZARE",null,null,null,null,null,null,null,null,null,null,null,null,null,null,null,null,null,null,null,null,null,null,null,null,null,null,null,null,null,null,null,null,null,null,{"$f":"AJ395+AJ397","v":0},null,null,null,null,null,null,null,null,{"$f":"AS395","v":0},null,null,null,null,null,null,null,{"$f":"SUM(AJ398:AZ398)","v":0}]
["Valoare TVA",null,null,null,null,null,null,null,null,null,null,null,null,null,null,null,null,null,null,null,null,null,null,null,null,null,null,null,null,null,null,null,null,null,null,null,null,null,null,null,null,null,null,null,null,null,null,null,null,null,null,null,{"$f":"SUM(AJ399:AZ399)","v":0}]
["TOTAL GENERAL inclusiv TVA",null,null,null,null,null,null,null,null,null,null,null,null,null,null,null,null,null,null,null,null,null,null,null,null,null,null,null,null,null,null,null,null,null,null,{"$f":"BA398+BA399","v":0}]
[null,null,null,null,null,null,null,null,null,null,null,null,null,null,null,null,null,null,null,null,null,null,null,null,null,null,null,null,null,null,null,null,null,null,null,"LEI",null,null,null,null,null,null,null,null,"EURO"]
["VALOARE TOTALĂ",null,null,null,null,null,null,null,null,null,null,null,null,null,null,null,null,null,null,null,null,null,null,null,null,null,null,null,null,null,null,null,null,null,null,{"$f":"AS402*Z328","v":0},null,null,null,null,null,null,null,null,{"$f":"AJ400","v":0}]
["VALOARE ELIGIBILĂ",null,null,null,null,null,null,null,null,null,null,null,null,null,null,null,null,null,null,null,null,null,null,null,null,null,null,null,null,null,null,null,null,null,null,{"$f":"AS403*Z328","v":0},null,null,null,null,null,null,null,null,{"$f":"AJ398+AJ399","v":0}]
["VALOARE NEELIGIBILĂ",null,null,null,null,null,null,null,null,null,null,null,null,null,null,null,null,null,null,null,null,null,null,null,null,null,null,null,null,null,null,null,null,null,null,{"$f":"AS404*Z328","v":0},null,null,null,null,null,null,null,null,{"$f":"AS398+AS399","v":0}]
[]
["Plan Financiar",null,null,null,null,null,null,null,null,null,null,null,null,null,null,null,null,null,null,null,null,null,null,null,null,null,null,null,null,null,null,null,null,null,null,"Cheltuieli eligibile EURO",null,null,null,null,null,null,null,null,"Cheltuieli neeligibile EURO",null,null,null,null,null,null,null,"Total"]
["Ajutor public nerambursabil (contribuţie UE şi cofinanţare naţională)",null,null,null,null,null,null,null,null,null,null,null,null,null,null,null,null,null,null,null,null,null,null,null,null,null,null,null,null,null,null,null,null,null,null,null,null,null,null,null,null,null,null,null,null,null,null,null,null,null,null,null,{"$f":"SUM(AJ407:AZ407)","v":0}]
["Cofinantare privata, din care:",null,null,null,null,null,null,null,null,null,null,null,null,null,null,null,null,null,null,null,null,null,null,null,null,null,null,null,null,null,null,null,null,null,null,{"$f":"SUM(AJ409:AR411)","v":0},null,null,null,null,null,null,null,null,{"$f":"SUM(AS409:AZ411)","v":0},null,null,null,null,null,null,null,0]
[null,null,null,null,null,null,null,null,null,null,null,null,null,null,null,"- contributia in natura",null,null,null,null,null,null,null,null,null,null,null,null,null,null,null,null,null,null,null,null,null,null,null,null,null,null,null,null,null,null,null,null,null,null,null,null,0]
[null,null,null,null,null,null,null,null,null,null,null,null,null,null,null,"- autofinanțare",null,null,null,null,null,null,null,null,null,null,null,null,null,null,null,null,null,null,null,null,null,null,null,null,null,null,null,null,null,null,null,null,null,null,null,null,0]
[null,null,null,null,null,null,null,null,null,null,null,null,null,null,null,"- împrumuturi",null,null,null,null,null,null,null,null,null,null,null,null,null,null,null,null,null,null,null,null,null,null,null,null,null,null,null,null,null,null,null,null,null,null,null,null,0]
["TOTAL PROIECT",null,null,null,null,null,null,null,null,null,null,null,null,null,null,null,null,null,null,null,null,null,null,null,null,null,null,null,null,null,null,null,null,null,null,{"$f":"AJ407+AJ408","v":0},null,null,null,null,null,null,null,null,{"$f":"AS408","v":0},null,null,null,null,null,null,null,0]
["Procent contribuţie publică",null,null,null,null,null,null,null,null,null,null,null,null,null,null,null,null,null,null,null,null,null,null,null,null,null,null,null,null,null,null,null,null,{"$f":"AJ407*100/AJ412","v":{"$error":"#DIV/0!"}},{"$f":"IF(AJ412=0,0,AH413)","v":0},{"$f":"AI413","v":0},null,null,null,null,null,null,null,"%"]
["Avans solicitat",null,null,null,null,null,null,null,null,null,null,null,null,null,null,null,null,null,null,null,null,null,null,null,null,null,null,null,null,null,null,null,null,null,null,0]
["Procent avans solicitat ca procent din ajutorul public nerambursabil",null,null,null,null,null,null,null,null,null,null,null,null,null,null,null,null,null,null,null,null,null,null,null,null,null,null,null,null,null,null,null,null,null,{"$f":"AJ414*100/AJ407","v":{"$error":"#DIV/0!"}},{"$f":"IF(AJ407=0,0,AI415)","v":0},null,null,null,null,null,null,null,null,{"$f":"IF(AJ415<=50,\"Suma avans mai mica de 50% din ajutorul public\",\"Suma avans mai mare de 50% din ajutorul public\")","v":"Suma avans mai mica de 50% din ajutorul public"}]
[null,"Buget Indicativ HG 907 (Euro) pentru INVESTIŢII în activitatea de procesare şi/sau comercializare"]
["MINISTERUL AGRICULTURII ŞI DEZVOLTĂRII RURALE"]
["AGENŢIA PENTRU FINANŢAREA INVESTIŢIILOR RURALE"]
[]
[]
[null,"Procentul aferent intensităţii",null,null,null,null,null,null,null,null,null,null,null,null,null,null,null,null,null,"Curs EURO",null,null,null,null,null,null,null,null,null,null,null,null,null,null,null,"Data întocmirii Studiului de Fezabilitate"]
[]
["Măsura",null,null,null,null,null,null,null,null,null,null,null,null,null,null,null,null,null,null,null,null,null,null,null,null,null,null,null,null,null,null,null,null,null,null,"M1/2A"]
["Denumirea capitolelor de cheltuieli",null,null,null,null,null,null,null,null,null,null,null,null,null,null,null,null,null,null,null,null,null,null,null,null,null,null,null,null,null,null,null,null,null,null,"Cheltuieli eligibile",null,null,null,null,null,null,null,null,"Cheltuieli neeligibile",null,null,null,null,null,null,null,"Total"]
[null,null,null,null,null,null,null,null,null,null,null,null,null,null,null,null,null,null,null,null,null,null,null,null,null,null,null,null,null,null,null,null,null,null,null,"EURO",null,null,null,null,null,null,null,null,"EURO",null,null,null,null,null,null,null,"EURO"]
[1,null,null,null,null,null,null,null,null,null,null,null,null,null,null,null,null,null,null,null,null,null,null,null,null,null,null,null,null,null,null,null,null,null,null,2,null,null,null,null,null,null,null,null,3,null,null,null,null,null,null,null,4]
["Capitolul 1 Cheltuieli pentru obtinerea şi amenajarea terenului - total, din care:",null,null,null,null,null,null,null,null,null,null,null,null,null,null,null,null,null,null,null,null,null,null,null,null,null,null,null,null,null,null,null,null,null,null,{"$f":"SUM(AJ429:AR431)","v":0},null,null,null,null,null,null,null,null,{"$f":"SUM(AS428:AZ431)","v":0},null,null,null,null,null,null,null,{"$f":"SUM(AJ427:AZ427)","v":0}]
["1.1 Obţinerea terenului",null,null,null,null,null,null,null,null,null,null,null,null,null,null,null,null,null,null,null,null,null,null,null,null,null,null,null,null,null,null,null,null,null,null,null,null,null,null,null,null,null,null,null,null,null,null,null,null,null,null,null,{"$f":"SUM(AJ428:AZ428)","v":0}]
["1.2 Amenajarea terenului",null,null,null,null,null,null,null,null,null,null,null,null,null,null,null,null,null,null,null,null,null,null,null,null,null,null,null,null,null,null,null,null,null,null,null,null,null,null,null,null,null,null,null,null,null,null,null,null,null,null,null,0]
["1.3 Amenajari pentru protecţia mediului şi aducerea la starea iniţială",null,null,null,null,null,null,null,null,null,null,null,null,null,null,null,null,null,null,null,null,null,null,null,null,null,null,null,null,null,null,null,null,null,null,null,null,null,null,null,null,null,null,null,null,null,null,null,null,null,null,null,0]
["1.4 Cheltuieli pentru relocarea/protecţia utilităţilor",null,null,null,null,null,null,null,null,null,null,null,null,null,null,null,null,null,null,null,null,null,null,null,null,null,null,null,null,null,null,null,null,null,null,null,null,null,null,null,null,null,null,null,null,null,null,null,null,null,null,null,0]
["Capitolul 2 Cheltuieli pentru asigurarea utilităţilor necesare obiectivului de investiţii",null,null,null,null,null,null,null,null,null,null,null,null,null,null,null,null,null,null,null,null,null,null,null,null,null,null,null,null,null,null,null,null,null,null,null,null,null,null,null,null,null,null,null,null,null,null,null,null,null,null,null,0]
["Capitolul 3 Cheltuieli pentru proiectare şi asistenţă tehnică - total, din care:",null,null,null,null,null,null,null,null,null,null,null,null,null,null,null,null,null,null,null,null,null,null,null,null,null,null,null,null,null,null,null,null,null,null,{"$f":"AJ434+AJ438+AJ439+AJ440+AJ441+AJ449+AJ452","v":0},null,null,null,null,null,null,null,null,{"$f":"AS434+AS438+AS439+AS440+AS441+AS448+AS449+AS452","v":0},null,null,null,null,null,null,null,0]
["3.1 Studii",null,null,null,null,null,null,null,null,null,null,null,null,null,null,null,null,null,null,null,null,null,null,null,null,null,null,null,null,null,null,null,null,null,null,{"$f":"SUM(AJ435:AR437)","v":0},null,null,null,null,null,null,null,null,{"$f":"SUM(AS435:AZ437)","v":0},null,null,null,null,null,null,null,0]
["       3.1.1 Studii de teren",null,null,null,null,null,null,null,null,null,null,null,null,null,null,null,null,null,null,null,null,null,null,null,null,null,null,null,null,null,null,null,null,null,null,null,null,null,null,null,null,null,null,null,null,null,null,null,null,null,null,null,0]
["       3.1.2 Raport privind impactul asupra mediului",null,null,null,null,null,null,null,null,null,null,null,null,null,null,null,null,null,null,null,null,null,null,null,null,null,null,null,null,null,null,null,null,null,null,null,null,null,null,null,null,null,null,null,null,null,null,null,null,null,null,null,0]
["       3.1.3 Alte studii specifice",null,null,null,null,null,null,null,null,null,null,null,null,null,null,null,null,null,null,null,null,null,null,null,null,null,null,null,null,null,null,null,null,null,null,null,null,null,null,null,null,null,null,null,null,null,null,null,null,null,null,null,0]
["3.2 Documentaţii-suport şi cheltuieli pentru obţinerea de avize, acorduri şi autorizaţii",null,null,null,null,null,null,null,null,null,null,null,null,null,null,null,null,null,null,null,null,null,null,null,null,null,null,null,null,null,null,null,null,null,null,null,null,null,null,null,null,null,null,null,null,null,null,null,null,null,null,null,0]
["3.3 Expertizare tehnică",null,null,null,null,null,null,null,null,null,null,null,null,null,null,null,null,null,null,null,null,null,null,null,null,null,null,null,null,null,null,null,null,null,null,null,null,null,null,null,null,null,null,null,null,null,null,null,null,null,null,null,0]
["3.4 Certificarea performanţei energetice şi auditul energetic al clădirilor",null,null,null,null,null,null,null,null,null,null,null,null,null,null,null,null,null,null,null,null,null,null,null,null,null,null,null,null,null,null,null,null,null,null,null,null,null,null,null,null,null,null,null,null,null,null,null,null,null,null,null,0]
["3.5 Proiectare",null,null,null,null,null,null,null,null,null,null,null,null,null,null,null,null,null,null,null,null,null,null,null,null,null,null,null,null,null,null,null,null,null,null,{"$f":"SUM(AJ442:AR447)","v":0},null,null,null,null,null,null,null,null,{"$f":"SUM(AS442:AZ447)","v":0},null,null,null,null,null,null,null,0]
["      3.5.1 Temă de proiectare",null,null,null,null,null,null,null,null,null,null,null,null,null,null,null,null,null,null,null,null,null,null,null,null,null,null,null,null,null,null,null,null,null,null,null,null,null,null,null,null,null,null,null,null,null,null,null,null,null,null,null,0]
["      3.5.2 Studiu de prefezabilitate",null,null,null,null,null,null,null,null,null,null,null,null,null,null,null,null,null,null,null,null,null,null,null,null,null,null,null,null,null,null,null,null,null,null,null,null,null,null,null,null,null,null,null,null,null,null,null,null,null,null,null,0]
["      3.5.3. Studiu de fezabilitate/documentaţie de avizare a lucrărilor de intervenţii\n                şi deviz general",null,null,null,null,null,null,null,null,null,null,null,null,null,null,null,null,null,null,null,null,null,null,null,null,null,null,null,null,null,null,null,null,null,null,null,null,null,null,null,null,null,null,null,null,null,null,null,null,null,null,null,0]
["      3.5.4. Documentaţiile tehnice necesare în vederea obţinerii avizelor/\n                acordurilor/autorizaţiilor",null,null,null,null,null,null,null,null,null,null,null,null,null,null,null,null,null,null,null,null,null,null,null,null,null,null,null,null,null,null,null,null,null,null,null,null,null,null,null,null,null,null,null,null,null,null,null,null,null,null,null,0]
["      3.5.5. Verificarea tehnică de calitate a proiectului tehnic şi a detaliilor de execuţie",null,null,null,null,null,null,null,null,null,null,null,null,null,null,null,null,null,null,null,null,null,null,null,null,null,null,null,null,null,null,null,null,null,null,null,null,null,null,null,null,null,null,null,null,null,null,null,null,null,null,null,0]
["      3.5.6. Proiect tehnic şi detalii de execuţie",null,null,null,null,null,null,null,null,null,null,null,null,null,null,null,null,null,null,null,null,null,null,null,null,null,null,null,null,null,null,null,null,null,null,null,null,null,null,null,null,null,null,null,null,null,null,null,null,null,null,null,0]
["3.6 Organizarea procedurilor de achiziţie",null,null,null,null,null,null,null,null,null,null,null,null,null,null,null,null,null,null,null,null,null,null,null,null,null,null,null,null,null,null,null,null,null,null,null,null,null,null,null,null,null,null,null,null,null,null,null,null,null,null,null,0]
["3.7 Consultanţă",null,null,null,null,null,null,null,null,null,null,null,null,null,null,null,null,null,null,null,null,null,null,null,null,null,null,null,null,null,null,null,null,null,null,{"$f":"AJ450","v":0},null,null,null,null,null,null,null,null,{"$f":"AS450+AS451","v":0},null,null,null,null,null,null,null,0]
["      3.7.1 Managementul de proiect pentru obiectivul de investiţii",null,null,null,null,null,null,null,null,null,null,null,null,null,null,null,null,null,null,null,null,null,null,null,null,null,null,null,null,null,null,null,null,null,null,null,null,null,null,null,null,null,null,null,null,null,null,null,null,null,null,null,0]
["      3.7.2 Auditul financiar",null,null,null,null,null,null,null,null,null,null,null,null,null,null,null,null,null,null,null,null,null,null,null,null,null,null,null,null,null,null,null,null,null,null,null,null,null,null,null,null,null,null,null,null,null,null,null,null,null,null,null,0]
["3.8 Asistenţă Tehnică",null,null,null,null,null,null,null,null,null,null,null,null,null,null,null,null,null,null,null,null,null,null,null,null,null,null,null,null,null,null,null,null,null,null,{"$f":"AJ453+AJ456","v":0},null,null,null,null,null,null,null,null,{"$f":"AS453+AS456","v":0},null,null,null,null,null,null,null,0]
["      3.8.1 Asistenţă Tehnică din partea proiectantului",null,null,null,null,null,null,null,null,null,null,null,null,null,null,null,null,null,null,null,null,null,null,null,null,null,null,null,null,null,null,null,null,null,null,{"$f":"SUM(AJ454:AR455)","v":0},null,null,null,null,null,null,null,null,{"$f":"SUM(AS454:AZ455)","v":0},null,null,null,null,null,null,null,0]
["           3.8.1.1 pe perioada de execuţie a lucrărilor",null,null,null,null,null,null,null,null,null,null,null,null,null,null,null,null,null,null,null,null,null,null,null,null,null,null,null,null,null,null,null,null,null,null,null,null,null,null,null,null,null,null,null,null,null,null,null,null,null,null,null,0]
["           3.8.1.2 pentru participarea proiectantului la fazele incluse în programul de control al\n                       lucrărilor de execuţie, avizat de către Inspectoratul de Stat în Construcţii",null,null,null,null,null,null,null,null,null,null,null,null,null,null,null,null,null,null,null,null,null,null,null,null,null,null,null,null,null,null,null,null,null,null,null,null,null,null,null,null,null,null,null,null,null,null,null,null,null,null,null,0]
["      3.8.2 Dirigenţie de şantier",null,null,null,null,null,null,null,null,null,null,null,null,null,null,null,null,null,null,null,null,null,null,null,null,null,null,null,null,null,null,null,null,null,null,null,null,null,null,null,null,null,null,null,null,null,null,null,null,null,null,null,0]
["Verificare încadrare cheltuieli capitolul 3",null,null,null,null,null,null,null,null,null,null,null,null,null,null,null,null,null,null,null,null,null,null,null,null,null,null,null,null,null,null,null,{"$f":"AJ427+AJ432+AJ458","v":0},{"$f":"IF(AG457=0,0,AI457)","v":0},null,"verificarea se face in Totalizator"]
["Capitolul 4 Cheltuieli pentru investiţia de bază - total, din care:",null,null,null,null,null,null,null,null,null,null,null,null,null,null,null,null,null,null,null,null,null,null,null,null,null,null,null,null,null,null,null,null,null,null,{"$f":"AJ459+AJ466","v":0},null,null,null,null,null,null,null,null,{"$f":"AS459+AS466","v":0},null,null,null,null,null,null,null,{"$f":"SUM(AJ458:AZ458)","v":0}]
["A - Constructii şi lucrări de intervenţii - total, din care:",null,null,null,null,null,null,null,null,null,null,null,null,null,null,null,null,null,null,null,null,null,null,null,null,null,null,null,null,null,null,null,null,null,null,{"$f":"SUM(AJ460:AR465)","v":0},null,null,null,null,null,null,null,null,{"$f":"SUM(AS460:AZ465)","v":0},null,null,null,null,null,null,null,0]
["4.1 Construcţii şi instalaţii",null,null,null,null,null,null,null,null,null,null,null,null,null,null,null,null,null,null,null,null,null,null,null,null,null,null,null,null,null,null,null,null,null,null,null,null,null,null,null,null,null,null,null,null,null,null,null,null,null,null,null,0]
["4.2 Montaj utilaje, echipamente tehnologice şi funcţionale",null,null,null,null,null,null,null,null,null,null,null,null,null,null,null,null,null,null,null,null,null,null,null,null,null,null,null,null,null,null,null,null,null,null,null,null,null,null,null,null,null,null,null,null,null,null,null,null,null,null,null,0]
["4.3 Utilaje, echipamente tehnologice şi funcţionale care necesită montaj",null,null,null,null,null,null,null,null,null,null,null,null,null,null,null,null,null,null,null,null,null,null,null,null,null,null,null,null,null,null,null,null,null,null,null,null,null,null,null,null,null,null,null,null,null,null,null,null,null,null,null,0]
["4.4 Utilaje, echipamente tehnologice şi funcţionale care nu necesită montaj şi echipamente",null,null,null,null,null,null,null,null,null,null,null,null,null,null,null,null,null,null,null,null,null,null,null,null,null,null,null,null,null,null,null,null,null,null,null,null,null,null,null,null,null,null,null,null,null,null,null,null,null,null,null,0]
["4.5 Dotări",null,null,null,null,null,null,null,null,null,null,null,null,null,null,null,null,null,null,null,null,null,null,null,null,null,null,null,null,null,null,null,null,null,null,null,null,null,null,null,null,null,null,null,null,null,null,null,null,null,null,null,0]
["4.6 Active necorporale",null,null,null,null,null,null,null,null,null,null,null,null,null,null,null,null,null,null,null,null,null,null,null,null,null,null,null,null,null,null,null,null,null,null,null,null,null,null,null,null,null,null,null,null,null,null,null,null,null,null,null,0]
["B - Cheltuieli pentru investitii în culturi/plantaţii",null,null,null,null,null,null,null,null,null,null,null,null,null,null,null,null,null,null,null,null,null,null,null,null,null,null,null,null,null,null,null,null,null,null,{"$f":"SUM(AJ467:AR471)","v":0},null,null,null,null,null,null,null,null,{"$f":"SUM(AS467:AZ471)","v":0},null,null,null,null,null,null,null,0]
["Subcapitol 1 - Lucrări de pregătire a terenului",null,null,null,null,null,null,null,null,null,null,null,null,null,null,null,null,null,null,null,null,null,null,null,null,null,null,null,null,null,null,null,null,null,null,null,null,null,null,null,null,null,null,null,null,null,null,null,null,null,null,null,0]
["Subcapitol 2 - Infiinţarea plantaţiei",null,null,null,null,null,null,null,null,null,null,null,null,null,null,null,null,null,null,null,null,null,null,null,null,null,null,null,null,null,null,null,null,null,null,null,null,null,null,null,null,null,null,null,null,null,null,null,null,null,null,null,0]
["Subcapitol 3 - Intreţinere plantaţie în anul 1",null,null,null,null,null,null,null,null,null,null,null,null,null,null,null,null,null,null,null,null,null,null,null,null,null,null,null,null,null,null,null,null,null,null,null,null,null,null,null,null,null,null,null,null,null,null,null,null,null,null,null,0]
["Subcapitol 4 - Intreţinere plantaţie în anul 2",null,null,null,null,null,null,null,null,null,null,null,null,null,null,null,null,null,null,null,null,null,null,null,null,null,null,null,null,null,null,null,null,null,null,null,null,null,null,null,null,null,null,null,null,null,null,null,null,null,null,null,0]
["Subcapitol 5 - Instalat sistem susţinere şi împrejmuire",null,null,null,null,null,null,null,null,null,null,null,null,null,null,null,null,null,null,null,null,null,null,null,null,null,null,null,null,null,null,null,null,null,null,null,null,null,null,null,null,null,null,null,null,null,null,null,null,null,null,null,0]
["Capitolul 5 Alte cheltuieli - total, din care:",null,null,null,null,null,null,null,null,null,null,null,null,null,null,null,null,null,null,null,null,null,null,null,null,null,null,null,null,null,null,null,null,null,null,{"$f":"AJ473+AJ476+AJ482+AJ483","v":0},null,null,null,null,null,null,null,null,{"$f":"AS473+AS476+AS482+AS483","v":0},null,null,null,null,null,null,null,0]
["5.1 Organizare de şantier",null,null,null,null,null,null,null,null,null,null,null,null,null,null,null,null,null,null,null,null,null,null,null,null,null,null,null,null,null,null,null,null,null,null,{"$f":"SUM(AJ474:AR475)","v":0},null,null,null,null,null,null,null,null,{"$f":"SUM(AS474:AZ475)","v":0},null,null,null,null,null,null,null,0]
["      5.1.1 lucrări de construcţii şi instalaţii aferente organizării de şantier",null,null,null,null,null,null,null,null,null,null,null,null,null,null,null,null,null,null,null,null,null,null,null,null,null,null,null,null,null,null,null,null,null,null,null,null,null,null,null,null,null,null,null,null,null,null,null,null,null,null,null,0]
["      5.1.2 cheltuieli conexe orgănizării şantierului",null,null,null,null,null,null,null,null,null,null,null,null,null,null,null,null,null,null,null,null,null,null,null,null,null,null,null,null,null,null,null,null,null,null,null,null,null,null,null,null,null,null,null,null,null,null,null,null,null,null,null,0]
["5.2 Comisioane, taxe, costul creditului",null,null,null,null,null,null,null,null,null,null,null,null,null,null,null,null,null,null,null,null,null,null,null,null,null,null,null,null,null,null,null,null,null,null,{"$f":"AJ478+AJ479+AJ481","v":0},null,null,null,null,null,null,null,null,{"$f":"SUM(AS477:AZ481)","v":0},null,null,null,null,null,null,null,0]
["      5.2.1 Comisioanele şi dobânzile aferente creditului băncii finanţatoare",null,null,null,null,null,null,null,null,null,null,null,null,null,null,null,null,null,null,null,null,null,null,null,null,null,null,null,null,null,null,null,null,null,null,null,null,null,null,null,null,null,null,null,null,null,null,null,null,null,null,null,0]
["      5.2.2 Cota aferentă ISC pentru controlul calităţii lucrărilor de construcţii",null,null,null,null,null,null,null,null,null,null,null,null,null,null,null,null,null,null,null,null,null,null,null,null,null,null,null,null,null,null,null,null,null,null,null,null,null,null,null,null,null,null,null,null,null,null,null,null,null,null,null,0]
["      5.2.3 Cota aferentă ISC pentru controlul statului în amenajarea teritoriului, urbanism şi\n               pentru autorizarea lucrărilor de construcţii",null,null,null,null,null,null,null,null,null,null,null,null,null,null,null,null,null,null,null,null,null,null,null,null,null,null,null,null,null,null,null,null,null,null,null,null,null,null,null,null,null,null,null,null,null,null,null,null,null,null,null,0]
["      5.2.4 Cota aferentă Casei Sociale a Constructorilor - CSC",null,null,null,null,null,null,null,null,null,null,null,null,null,null,null,null,null,null,null,null,null,null,null,null,null,null,null,null,null,null,null,null,null,null,null,null,null,null,null,null,null,null,null,null,null,null,null,null,null,null,null,0]
["      5.2.5 Taxe pentru acorduri, avize conforme şi autorizaţia de construire/ desfiinţare",null,null,null,null,null,null,null,null,null,null,null,null,null,null,null,null,null,null,null,null,null,null,null,null,null,null,null,null,null,null,null,null,null,null,null,null,null,null,null,null,null,null,null,null,null,null,null,null,null,null,null,0]
["5.3 Cheltuieli diverse şi neprevăzute",null,null,null,null,null,null,null,null,null,null,null,null,null,null,null,null,null,null,null,null,null,null,null,null,null,null,null,null,null,null,null,null,null,null,null,null,null,null,null,null,null,null,null,null,null,null,null,null,null,null,null,0]
["5.4 Cheltuieli pentru informare şi publicitate",null,null,null,null,null,null,null,null,null,null,null,null,null,null,null,null,null,null,null,null,null,null,null,null,null,null,null,null,null,null,null,null,null,null,null,null,null,null,null,null,null,null,null,null,null,null,null,null,null,null,null,0]
["Procent cheltuieli diverse şi neprevăzute"]
["Capitolul 6 Cheltuieli pentru probe tehnologice si teste - total, din care:",null,null,null,null,null,null,null,null,null,null,null,null,null,null,null,null,null,null,null,null,null,null,null,null,null,null,null,null,null,null,null,null,null,null,{"$f":"SUM(AJ486:AR487)","v":0},null,null,null,null,null,null,null,null,{"$f":"SUM(AS486:AZ487)","v":0},null,null,null,null,null,null,null,{"$f":"SUM(AJ485:AZ485)","v":0}]
["6.1 Pregătirea personalului de exploatare",null,null,null,null,null,null,null,null,null,null,null,null,null,null,null,null,null,null,null,null,null,null,null,null,null,null,null,null,null,null,null,null,null,null,null,null,null,null,null,null,null,null,null,null,null,null,null,null,null,null,null,{"$f":"SUM(AJ486:AZ486)","v":0}]
["6.2 Probe tehnologice şi teste",null,null,null,null,null,null,null,null,null,null,null,null,null,null,null,null,null,null,null,null,null,null,null,null,null,null,null,null,null,null,null,null,null,null,null,null,null,null,null,null,null,null,null,null,null,null,null,null,null,null,null,{"$f":"SUM(AJ487:AZ487)","v":0}]
["TOTAL GENERAL",null,null,null,null,null,null,null,null,null,null,null,null,null,null,null,null,null,null,null,null,null,null,null,null,null,null,null,null,null,null,null,null,null,null,{"$f":"AJ427+AJ432+AJ433+AJ458+AJ472+AJ485","v":0},null,null,null,null,null,null,null,null,{"$f":"AS427+AS432+AS433+AS458+AS472+AS485","v":0},null,null,null,null,null,null,null,{"$f":"SUM(AJ488:AZ488)","v":0}]
["Verificare actualizare",null,null,null,null,null,null,null,null,null,null,null,null,null,null,null,null,null,null,null,null,null,null,null,null,null,null,null,null,null,null,{"$f":"AJ490*100/AJ488","v":{"$error":"#DIV/0!"}},null,null,{"$f":"IF(AJ488=0,0,AF489)","v":0},{"$f":"IF(AI489<=5,\"actualizare mai mică de 5% din valoarea eligibila\",\"actualizare mai mare de 5% din valoarea eligibila\")","v":"actualizare mai mică de 5% din valoarea eligibila"}]
["ACTUALIZARE Cheltuieli Eligibile (max 5%)",null,null,null,null,null,null,null,null,null,null,null,null,null,null,null,null,null,null,null,null,null,null,null,null,null,null,null,null,null,null,null,null,null,null,null,null,null,null,null,null,null,null,null,null,null,null,null,null,null,null,null,{"$f":"SUM(AJ490:AZ490)","v":0}]
["TOTAL GENERAL CU ACTUALIZARE",null,null,null,null,null,null,null,null,null,null,null,null,null,null,null,null,null,null,null,null,null,null,null,null,null,null,null,null,null,null,null,null,null,null,{"$f":"AJ488+AJ490","v":0},null,null,null,null,null,null,null,null,{"$f":"AS488","v":0},null,null,null,null,null,null,null,{"$f":"SUM(AJ491:AZ491)","v":0}]
["Valoare TVA",null,null,null,null,null,null,null,null,null,null,null,null,null,null,null,null,null,null,null,null,null,null,null,null,null,null,null,null,null,null,null,null,null,null,null,null,null,null,null,null,null,null,null,null,null,null,null,null,null,null,null,{"$f":"SUM(AJ492:AZ492)","v":0}]
["TOTAL GENERAL inclusiv TVA",null,null,null,null,null,null,null,null,null,null,null,null,null,null,null,null,null,null,null,null,null,null,null,null,null,null,null,null,null,null,null,null,null,null,{"$f":"BA491+BA492","v":0}]
[null,null,null,null,null,null,null,null,null,null,null,null,null,null,null,null,null,null,null,null,null,null,null,null,null,null,null,null,null,null,null,null,null,null,null,"LEI",null,null,null,null,null,null,null,null,"EURO"]
["VALOARE TOTALĂ",null,null,null,null,null,null,null,null,null,null,null,null,null,null,null,null,null,null,null,null,null,null,null,null,null,null,null,null,null,null,null,null,null,null,{"$f":"AS495*Z421","v":0},null,null,null,null,null,null,null,null,{"$f":"AJ493","v":0}]
["VALOARE ELIGIBILĂ",null,null,null,null,null,null,null,null,null,null,null,null,null,null,null,null,null,null,null,null,null,null,null,null,null,null,null,null,null,null,null,null,null,null,{"$f":"AS496*Z421","v":0},null,null,null,null,null,null,null,null,{"$f":"AJ491+AJ492","v":0}]
["VALOARE NEELIGIBILĂ",null,null,null,null,null,null,null,null,null,null,null,null,null,null,null,null,null,null,null,null,null,null,null,null,null,null,null,null,null,null,null,null,null,null,{"$f":"AS497*Z421","v":0},null,null,null,null,null,null,null,null,{"$f":"AS491+AS492","v":0}]
["Plan Financiar",null,null,null,null,null,null,null,null,null,null,null,null,null,null,null,null,null,null,null,null,null,null,null,null,null,null,null,null,null,null,null,null,null,null,"Cheltuieli eligibile EURO",null,null,null,null,null,null,null,null,"Cheltuieli neeligibile EURO",null,null,null,null,null,null,null,"Total"]
["Ajutor public nerambursabil (contribuţie UE şi cofinanţare naţională)",null,null,null,null,null,null,null,null,null,null,null,null,null,null,null,null,null,null,null,null,null,null,null,null,null,null,null,null,null,null,null,null,null,null,null,null,null,null,null,null,null,null,null,null,null,null,null,null,null,null,null,{"$f":"SUM(AJ499:AZ499)","v":0}]
["Cofinantare privata, din care:",null,null,null,null,null,null,null,null,null,null,null,null,null,null,null,null,null,null,null,null,null,null,null,null,null,null,null,null,null,null,null,null,null,null,{"$f":"SUM(AJ501:AR503)","v":0},null,null,null,null,null,null,null,null,{"$f":"SUM(AS501:AZ503)","v":0},null,null,null,null,null,null,null,0]
[null,null,null,null,null,null,null,null,null,null,null,null,null,null,null,"- contributia in natura",null,null,null,null,null,null,null,null,null,null,null,null,null,null,null,null,null,null,null,null,null,null,null,null,null,null,null,null,null,null,null,null,null,null,null,null,0]
[null,null,null,null,null,null,null,null,null,null,null,null,null,null,null,"- autofinanțare",null,null,null,null,null,null,null,null,null,null,null,null,null,null,null,null,null,null,null,null,null,null,null,null,null,null,null,null,null,null,null,null,null,null,null,null,0]
[null,null,null,null,null,null,null,null,null,null,null,null,null,null,null,"- împrumuturi",null,null,null,null,null,null,null,null,null,null,null,null,null,null,null,null,null,null,null,null,null,null,null,null,null,null,null,null,null,null,null,null,null,null,null,null,0]
["TOTAL PROIECT",null,null,null,null,null,null,null,null,null,null,null,null,null,null,null,null,null,null,null,null,null,null,null,null,null,null,null,null,null,null,null,null,null,null,{"$f":"AJ499+AJ500","v":0},null,null,null,null,null,null,null,null,{"$f":"AS500","v":0},null,null,null,null,null,null,null,0]
["Procent contribuţie publică",null,null,null,null,null,null,null,null,null,null,null,null,null,null,null,null,null,null,null,null,null,null,null,null,null,null,null,null,null,null,null,null,{"$f":"AJ499*100/AJ504","v":{"$error":"#DIV/0!"}},{"$f":"IF(AJ504=0,0,AH505)","v":0},{"$f":"AI505","v":0},null,null,null,null,null,null,null,"%"]
["Avans solicitat"]
["Procent avans solicitat ca procent din ajutorul public nerambursabil",null,null,null,null,null,null,null,null,null,null,null,null,null,null,null,null,null,null,null,null,null,null,null,null,null,null,null,null,null,null,null,null,null,{"$f":"AJ506*100/AJ499","v":{"$error":"#DIV/0!"}},{"$f":"IF(AJ499=0,0,AI507)","v":0},null,null,null,null,null,null,null,null,{"$f":"IF(AJ507<=50,\"Suma avans mai mica de 50% din ajutorul public\",\"Suma avans mai mare de 50% din ajutorul public\")","v":"Suma avans mai mica de 50% din ajutorul public"}]
[null,"Buget Indicativ HG 907 (Euro) pentru INVESTIŢII pentru agromediu "]
["MINISTERUL AGRICULTURII ŞI DEZVOLTĂRII RURALE"]
["AGENŢIA PENTRU FINANŢAREA INVESTIŢIILOR RURALE"]
[]
[]
[null,"Procentul aferent intensităţii",null,null,null,null,null,null,null,null,null,null,null,null,null,null,null,null,null,"Curs EURO",null,null,null,null,null,null,null,null,null,null,null,null,null,null,null,"Data întocmirii Studiului de Fezabilitate"]
[]
["Măsura",null,null,null,null,null,null,null,null,null,null,null,null,null,null,null,null,null,null,null,null,null,null,null,null,null,null,null,null,null,null,null,null,null,null,"M1/2A"]
["Denumirea capitolelor de cheltuieli",null,null,null,null,null,null,null,null,null,null,null,null,null,null,null,null,null,null,null,null,null,null,null,null,null,null,null,null,null,null,null,null,null,null,"Cheltuieli eligibile",null,null,null,null,null,null,null,null,"Cheltuieli neeligibile",null,null,null,null,null,null,null,"Total"]
[null,null,null,null,null,null,null,null,null,null,null,null,null,null,null,null,null,null,null,null,null,null,null,null,null,null,null,null,null,null,null,null,null,null,null,"EURO",null,null,null,null,null,null,null,null,"EURO",null,null,null,null,null,null,null,"EURO"]
[1,null,null,null,null,null,null,null,null,null,null,null,null,null,null,null,null,null,null,null,null,null,null,null,null,null,null,null,null,null,null,null,null,null,null,2,null,null,null,null,null,null,null,null,3,null,null,null,null,null,null,null,4]
["Capitolul 1 Cheltuieli pentru obtinerea şi amenajarea terenului - total, din care:",null,null,null,null,null,null,null,null,null,null,null,null,null,null,null,null,null,null,null,null,null,null,null,null,null,null,null,null,null,null,null,null,null,null,{"$f":"SUM(AJ521:AR523)","v":0},null,null,null,null,null,null,null,null,{"$f":"SUM(AS520:AZ523)","v":0},null,null,null,null,null,null,null,{"$f":"SUM(AJ519:AZ519)","v":0}]
["1.1 Obţinerea terenului",null,null,null,null,null,null,null,null,null,null,null,null,null,null,null,null,null,null,null,null,null,null,null,null,null,null,null,null,null,null,null,null,null,null,null,null,null,null,null,null,null,null,null,null,null,null,null,null,null,null,null,{"$f":"SUM(AJ520:AZ520)","v":0}]
["1.2 Amenajarea terenului",null,null,null,null,null,null,null,null,null,null,null,null,null,null,null,null,null,null,null,null,null,null,null,null,null,null,null,null,null,null,null,null,null,null,null,null,null,null,null,null,null,null,null,null,null,null,null,null,null,null,null,0]
["1.3 Amenajari pentru protecţia mediului şi aducerea la starea iniţială",null,null,null,null,null,null,null,null,null,null,null,null,null,null,null,null,null,null,null,null,null,null,null,null,null,null,null,null,null,null,null,null,null,null,null,null,null,null,null,null,null,null,null,null,null,null,null,null,null,null,null,0]
["1.4 Cheltuieli pentru relocarea/protecţia utilităţilor",null,null,null,null,null,null,null,null,null,null,null,null,null,null,null,null,null,null,null,null,null,null,null,null,null,null,null,null,null,null,null,null,null,null,null,null,null,null,null,null,null,null,null,null,null,null,null,null,null,null,null,0]
["Capitolul 2 Cheltuieli pentru asigurarea utilităţilor necesare obiectivului de investiţii",null,null,null,null,null,null,null,null,null,null,null,null,null,null,null,null,null,null,null,null,null,null,null,null,null,null,null,null,null,null,null,null,null,null,null,null,null,null,null,null,null,null,null,null,null,null,null,null,null,null,null,0]
["Capitolul 3 Cheltuieli pentru proiectare şi asistenţă tehnică - total, din care:",null,null,null,null,null,null,null,null,null,null,null,null,null,null,null,null,null,null,null,null,null,null,null,null,null,null,null,null,null,null,null,null,null,null,{"$f":"AJ526+AJ530+AJ531+AJ532+AJ533+AJ541+AJ544","v":0},null,null,null,null,null,null,null,null,{"$f":"AS526+AS530+AS531+AS532+AS533+AS540+AS541+AS544","v":0},null,null,null,null,null,null,null,0]
["3.1 Studii",null,null,null,null,null,null,null,null,null,null,null,null,null,null,null,null,null,null,null,null,null,null,null,null,null,null,null,null,null,null,null,null,null,null,{"$f":"SUM(AJ527:AR529)","v":0},null,null,null,null,null,null,null,null,{"$f":"SUM(AS527:AZ529)","v":0},null,null,null,null,null,null,null,0]
["       3.1.1 Studii de teren",null,null,null,null,null,null,null,null,null,null,null,null,null,null,null,null,null,null,null,null,null,null,null,null,null,null,null,null,null,null,null,null,null,null,null,null,null,null,null,null,null,null,null,null,null,null,null,null,null,null,null,0]
["       3.1.2 Raport privind impactul asupra mediului",null,null,null,null,null,null,null,null,null,null,null,null,null,null,null,null,null,null,null,null,null,null,null,null,null,null,null,null,null,null,null,null,null,null,null,null,null,null,null,null,null,null,null,null,null,null,null,null,null,null,null,0]
["       3.1.3 Alte studii specifice",null,null,null,null,null,null,null,null,null,null,null,null,null,null,null,null,null,null,null,null,null,null,null,null,null,null,null,null,null,null,null,null,null,null,null,null,null,null,null,null,null,null,null,null,null,null,null,null,null,null,null,0]
["3.2 Documentaţii-suport şi cheltuieli pentru obţinerea de avize, acorduri şi autorizaţii",null,null,null,null,null,null,null,null,null,null,null,null,null,null,null,null,null,null,null,null,null,null,null,null,null,null,null,null,null,null,null,null,null,null,null,null,null,null,null,null,null,null,null,null,null,null,null,null,null,null,null,0]
["3.3 Expertizare tehnică",null,null,null,null,null,null,null,null,null,null,null,null,null,null,null,null,null,null,null,null,null,null,null,null,null,null,null,null,null,null,null,null,null,null,null,null,null,null,null,null,null,null,null,null,null,null,null,null,null,null,null,0]
["3.4 Certificarea performanţei energetice şi auditul energetic al clădirilor",null,null,null,null,null,null,null,null,null,null,null,null,null,null,null,null,null,null,null,null,null,null,null,null,null,null,null,null,null,null,null,null,null,null,null,null,null,null,null,null,null,null,null,null,null,null,null,null,null,null,null,0]
["3.5 Proiectare",null,null,null,null,null,null,null,null,null,null,null,null,null,null,null,null,null,null,null,null,null,null,null,null,null,null,null,null,null,null,null,null,null,null,{"$f":"SUM(AJ534:AR539)","v":0},null,null,null,null,null,null,null,null,{"$f":"SUM(AS534:AZ539)","v":0},null,null,null,null,null,null,null,0]
["      3.5.1 Temă de proiectare",null,null,null,null,null,null,null,null,null,null,null,null,null,null,null,null,null,null,null,null,null,null,null,null,null,null,null,null,null,null,null,null,null,null,null,null,null,null,null,null,null,null,null,null,null,null,null,null,null,null,null,0]
["      3.5.2 Studiu de prefezabilitate",null,null,null,null,null,null,null,null,null,null,null,null,null,null,null,null,null,null,null,null,null,null,null,null,null,null,null,null,null,null,null,null,null,null,null,null,null,null,null,null,null,null,null,null,null,null,null,null,null,null,null,0]
["      3.5.3. Studiu de fezabilitate/documentaţie de avizare a lucrărilor de intervenţii\n                şi deviz general",null,null,null,null,null,null,null,null,null,null,null,null,null,null,null,null,null,null,null,null,null,null,null,null,null,null,null,null,null,null,null,null,null,null,null,null,null,null,null,null,null,null,null,null,null,null,null,null,null,null,null,0]
["      3.5.4. Documentaţiile tehnice necesare în vederea obţinerii avizelor/\n                acordurilor/autorizaţiilor",null,null,null,null,null,null,null,null,null,null,null,null,null,null,null,null,null,null,null,null,null,null,null,null,null,null,null,null,null,null,null,null,null,null,null,null,null,null,null,null,null,null,null,null,null,null,null,null,null,null,null,0]
["      3.5.5. Verificarea tehnică de calitate a proiectului tehnic şi a detaliilor de execuţie",null,null,null,null,null,null,null,null,null,null,null,null,null,null,null,null,null,null,null,null,null,null,null,null,null,null,null,null,null,null,null,null,null,null,null,null,null,null,null,null,null,null,null,null,null,null,null,null,null,null,null,0]
["      3.5.6. Proiect tehnic şi detalii de execuţie",null,null,null,null,null,null,null,null,null,null,null,null,null,null,null,null,null,null,null,null,null,null,null,null,null,null,null,null,null,null,null,null,null,null,null,null,null,null,null,null,null,null,null,null,null,null,null,null,null,null,null,0]
["3.6 Organizarea procedurilor de achiziţie",null,null,null,null,null,null,null,null,null,null,null,null,null,null,null,null,null,null,null,null,null,null,null,null,null,null,null,null,null,null,null,null,null,null,null,null,null,null,null,null,null,null,null,null,null,null,null,null,null,null,null,0]
["3.7 Consultanţă",null,null,null,null,null,null,null,null,null,null,null,null,null,null,null,null,null,null,null,null,null,null,null,null,null,null,null,null,null,null,null,null,null,null,{"$f":"AJ542","v":0},null,null,null,null,null,null,null,null,{"$f":"AS542+AS543","v":0},null,null,null,null,null,null,null,0]
["      3.7.1 Managementul de proiect pentru obiectivul de investiţii",null,null,null,null,null,null,null,null,null,null,null,null,null,null,null,null,null,null,null,null,null,null,null,null,null,null,null,null,null,null,null,null,null,null,null,null,null,null,null,null,null,null,null,null,null,null,null,null,null,null,null,0]
["      3.7.2 Auditul financiar",null,null,null,null,null,null,null,null,null,null,null,null,null,null,null,null,null,null,null,null,null,null,null,null,null,null,null,null,null,null,null,null,null,null,null,null,null,null,null,null,null,null,null,null,null,null,null,null,null,null,null,0]
["3.8 Asistenţă Tehnică",null,null,null,null,null,null,null,null,null,null,null,null,null,null,null,null,null,null,null,null,null,null,null,null,null,null,null,null,null,null,null,null,null,null,{"$f":"AJ545+AJ548","v":0},null,null,null,null,null,null,null,null,{"$f":"AS545+AS548","v":0},null,null,null,null,null,null,null,0]
["      3.8.1 Asistenţă Tehnică din partea proiectantului",null,null,null,null,null,null,null,null,null,null,null,null,null,null,null,null,null,null,null,null,null,null,null,null,null,null,null,null,null,null,null,null,null,null,{"$f":"AJ546+AJ547","v":0},null,null,null,null,null,null,null,null,{"$f":"AS546+AS547","v":0},null,null,null,null,null,null,null,0]
["            3.8.1.1 pe perioada de execuţie a lucrărilor",null,null,null,null,null,null,null,null,null,null,null,null,null,null,null,null,null,null,null,null,null,null,null,null,null,null,null,null,null,null,null,null,null,null,null,null,null,null,null,null,null,null,null,null,null,null,null,null,null,null,null,0]
["            3.8.1.2 pentru participarea proiectantului la fazele incluse în programul de control al\n                        lucrărilor de execuţie, avizat de către Inspectoratul de Stat în Construcţii",null,null,null,null,null,null,null,null,null,null,null,null,null,null,null,null,null,null,null,null,null,null,null,null,null,null,null,null,null,null,null,null,null,null,null,null,null,null,null,null,null,null,null,null,null,null,null,null,null,null,null,0]
["      3.8.2 Dirigenţie de şantier",null,null,null,null,null,null,null,null,null,null,null,null,null,null,null,null,null,null,null,null,null,null,null,null,null,null,null,null,null,null,null,null,null,null,null,null,null,null,null,null,null,null,null,null,null,null,null,null,null,null,null,0]
["Verificare încadrare cheltuieli capitolul 3",null,null,null,null,null,null,null,null,null,null,null,null,null,null,null,null,null,null,null,null,null,null,null,null,null,null,null,null,null,null,null,{"$f":"AJ519+AJ524+AJ550","v":0},{"$f":"IF(AG549=0,0,AI549)","v":0},null,"verificarea se face in Totalizator"]
["Capitolul 4 Cheltuieli pentru investiţia de bază - total, din care:",null,null,null,null,null,null,null,null,null,null,null,null,null,null,null,null,null,null,null,null,null,null,null,null,null,null,null,null,null,null,null,null,null,null,{"$f":"AJ551+AJ558","v":0},null,null,null,null,null,null,null,null,{"$f":"AS551+AS558","v":0},null,null,null,null,null,null,null,{"$f":"SUM(AJ550:AZ550)","v":0}]
["A - Constructii şi lucrări de intervenţii - total, din care:",null,null,null,null,null,null,null,null,null,null,null,null,null,null,null,null,null,null,null,null,null,null,null,null,null,null,null,null,null,null,null,null,null,null,{"$f":"SUM(AJ552:AR557)","v":0},null,null,null,null,null,null,null,null,{"$f":"SUM(AS552:AZ557)","v":0},null,null,null,null,null,null,null,0]
["4.1 Construcţii şi instalaţii",null,null,null,null,null,null,null,null,null,null,null,null,null,null,null,null,null,null,null,null,null,null,null,null,null,null,null,null,null,null,null,null,null,null,null,null,null,null,null,null,null,null,null,null,null,null,null,null,null,null,null,0]
["4.2 Montaj utilaje, echipamente tehnologice şi funcţionale",null,null,null,null,null,null,null,null,null,null,null,null,null,null,null,null,null,null,null,null,null,null,null,null,null,null,null,null,null,null,null,null,null,null,null,null,null,null,null,null,null,null,null,null,null,null,null,null,null,null,null,0]
["4.3 Utilaje, echipamente tehnologice şi funcţionale care necesită montaj",null,null,null,null,null,null,null,null,null,null,null,null,null,null,null,null,null,null,null,null,null,null,null,null,null,null,null,null,null,null,null,null,null,null,null,null,null,null,null,null,null,null,null,null,null,null,null,null,null,null,null,0]
["4.4 Utilaje, echipamente tehnologice şi funcţionale care nu necesită montaj şi echipamente",null,null,null,null,null,null,null,null,null,null,null,null,null,null,null,null,null,null,null,null,null,null,null,null,null,null,null,null,null,null,null,null,null,null,null,null,null,null,null,null,null,null,null,null,null,null,null,null,null,null,null,0]
["4.5 Dotări",null,null,null,null,null,null,null,null,null,null,null,null,null,null,null,null,null,null,null,null,null,null,null,null,null,null,null,null,null,null,null,null,null,null,null,null,null,null,null,null,null,null,null,null,null,null,null,null,null,null,null,0]
["4.6 Active necorporale",null,null,null,null,null,null,null,null,null,null,null,null,null,null,null,null,null,null,null,null,null,null,null,null,null,null,null,null,null,null,null,null,null,null,null,null,null,null,null,null,null,null,null,null,null,null,null,null,null,null,null,0]
["B - Cheltuieli pentru investitii în culturi/plantaţii",null,null,null,null,null,null,null,null,null,null,null,null,null,null,null,null,null,null,null,null,null,null,null,null,null,null,null,null,null,null,null,null,null,null,{"$f":"SUM(AJ559:AR563)","v":0},null,null,null,null,null,null,null,null,{"$f":"SUM(AS559:AZ563)","v":0},null,null,null,null,null,null,null,0]
["Subcapitol 1 - Lucrări de pregătire a terenului",null,null,null,null,null,null,null,null,null,null,null,null,null,null,null,null,null,null,null,null,null,null,null,null,null,null,null,null,null,null,null,null,null,null,null,null,null,null,null,null,null,null,null,null,null,null,null,null,null,null,null,0]
["Subcapitol 2 - Infiinţarea plantaţiei",null,null,null,null,null,null,null,null,null,null,null,null,null,null,null,null,null,null,null,null,null,null,null,null,null,null,null,null,null,null,null,null,null,null,null,null,null,null,null,null,null,null,null,null,null,null,null,null,null,null,null,0]
["Subcapitol 3 - Intreţinere plantaţie în anul 1",null,null,null,null,null,null,null,null,null,null,null,null,null,null,null,null,null,null,null,null,null,null,null,null,null,null,null,null,null,null,null,null,null,null,null,null,null,null,null,null,null,null,null,null,null,null,null,null,null,null,null,0]
["Subcapitol 4 - Intreţinere plantaţie în anul 2",null,null,null,null,null,null,null,null,null,null,null,null,null,null,null,null,null,null,null,null,null,null,null,null,null,null,null,null,null,null,null,null,null,null,null,null,null,null,null,null,null,null,null,null,null,null,null,null,null,null,null,0]
["Subcapitol 5 - Instalat sistem susţinere şi împrejmuire",null,null,null,null,null,null,null,null,null,null,null,null,null,null,null,null,null,null,null,null,null,null,null,null,null,null,null,null,null,null,null,null,null,null,null,null,null,null,null,null,null,null,null,null,null,null,null,null,null,null,null,0]
["Capitolul 5 Alte cheltuieli - total, din care:",null,null,null,null,null,null,null,null,null,null,null,null,null,null,null,null,null,null,null,null,null,null,null,null,null,null,null,null,null,null,null,null,null,null,{"$f":"AJ565+AJ568+AJ574","v":0},null,null,null,null,null,null,null,null,{"$f":"AS565+AS568+AS574+AS575","v":0},null,null,null,null,null,null,null,0]
["5.1 Organizare de şantier",null,null,null,null,null,null,null,null,null,null,null,null,null,null,null,null,null,null,null,null,null,null,null,null,null,null,null,null,null,null,null,null,null,null,{"$f":"SUM(AJ566:AR567)","v":0},null,null,null,null,null,null,null,null,{"$f":"SUM(AS566:AZ567)","v":0},null,null,null,null,null,null,null,0]
["      5.1.1 lucrări de construcţii şi instalaţii aferente organizării de şantier",null,null,null,null,null,null,null,null,null,null,null,null,null,null,null,null,null,null,null,null,null,null,null,null,null,null,null,null,null,null,null,null,null,null,null,null,null,null,null,null,null,null,null,null,null,null,null,null,null,null,null,0]
["      5.1.2 cheltuieli conexe orgănizării şantierului",null,null,null,null,null,null,null,null,null,null,null,null,null,null,null,null,null,null,null,null,null,null,null,null,null,null,null,null,null,null,null,null,null,null,null,null,null,null,null,null,null,null,null,null,null,null,null,null,null,null,null,0]
["5.2 Comisioane, taxe, costul creditului",null,null,null,null,null,null,null,null,null,null,null,null,null,null,null,null,null,null,null,null,null,null,null,null,null,null,null,null,null,null,null,null,null,null,{"$f":"SUM(AJ569:AR573)","v":0},null,null,null,null,null,null,null,null,{"$f":"SUM(AS569:AZ573)","v":0},null,null,null,null,null,null,null,0]
["      5.2.1 Comisioanele şi dobânzile aferente creditului băncii finanţatoare",null,null,null,null,null,null,null,null,null,null,null,null,null,null,null,null,null,null,null,null,null,null,null,null,null,null,null,null,null,null,null,null,null,null,null,null,null,null,null,null,null,null,null,null,null,null,null,null,null,null,null,0]
["      5.2.2 Cota aferentă ISC pentru controlul calităţii lucrărilor de construcţii",null,null,null,null,null,null,null,null,null,null,null,null,null,null,null,null,null,null,null,null,null,null,null,null,null,null,null,null,null,null,null,null,null,null,null,null,null,null,null,null,null,null,null,null,null,null,null,null,null,null,null,0]
["      5.2.3 Cota aferentă ISC pentru controlul statului în amenajarea teritoriului, urbanism şi\n               pentru autorizarea lucrărilor de construcţii",null,null,null,null,null,null,null,null,null,null,null,null,null,null,null,null,null,null,null,null,null,null,null,null,null,null,null,null,null,null,null,null,null,null,null,null,null,null,null,null,null,null,null,null,null,null,null,null,null,null,null,0]
["      5.2.4 Cota aferentă Casei Sociale a Constructorilor - CSC",null,null,null,null,null,null,null,null,null,null,null,null,null,null,null,null,null,null,null,null,null,null,null,null,null,null,null,null,null,null,null,null,null,null,null,null,null,null,null,null,null,null,null,null,null,null,null,null,null,null,null,0]
["      5.2.5 Taxe pentru acorduri, avize conforme şi autorizaţia de construire/ desfiinţare",null,null,null,null,null,null,null,null,null,null,null,null,null,null,null,null,null,null,null,null,null,null,null,null,null,null,null,null,null,null,null,null,null,null,null,null,null,null,null,null,null,null,null,null,null,null,null,null,null,null,null,0]
["5.3 Cheltuieli diverse şi neprevăzute",null,null,null,null,null,null,null,null,null,null,null,null,null,null,null,null,null,null,null,null,null,null,null,null,null,null,null,null,null,null,null,null,null,null,null,null,null,null,null,null,null,null,null,null,null,null,null,null,null,null,null,0]
["5.4 Cheltuieli pentru informare şi publicitate",null,null,null,null,null,null,null,null,null,null,null,null,null,null,null,null,null,null,null,null,null,null,null,null,null,null,null,null,null,null,null,null,null,null,null,null,null,null,null,null,null,null,null,null,null,null,null,null,null,null,null,0]
["Procent cheltuieli diverse şi neprevăzute"]
["Capitolul 6 Cheltuieli pentru probe tehnologice si teste - total, din care:",null,null,null,null,null,null,null,null,null,null,null,null,null,null,null,null,null,null,null,null,null,null,null,null,null,null,null,null,null,null,null,null,null,null,{"$f":"SUM(AJ578:AR579)","v":0},null,null,null,null,null,null,null,null,{"$f":"SUM(AS578:AZ579)","v":0},null,null,null,null,null,null,null,{"$f":"SUM(AJ577:AZ577)","v":0}]
["6.1 Pregătirea personalului de exploatare",null,null,null,null,null,null,null,null,null,null,null,null,null,null,null,null,null,null,null,null,null,null,null,null,null,null,null,null,null,null,null,null,null,null,null,null,null,null,null,null,null,null,null,null,null,null,null,null,null,null,null,{"$f":"SUM(AJ578:AZ578)","v":0}]
["6.2 Probe tehnologice şi teste",null,null,null,null,null,null,null,null,null,null,null,null,null,null,null,null,null,null,null,null,null,null,null,null,null,null,null,null,null,null,null,null,null,null,null,null,null,null,null,null,null,null,null,null,null,null,null,null,null,null,null,{"$f":"SUM(AJ579:AZ579)","v":0}]
["TOTAL GENERAL",null,null,null,null,null,null,null,null,null,null,null,null,null,null,null,null,null,null,null,null,null,null,null,null,null,null,null,null,null,null,null,null,null,null,{"$f":"AJ519+AJ524+AJ525+AJ550+AJ564+AJ577","v":0},null,null,null,null,null,null,null,null,{"$f":"AS519+AS524+AS525+AS550+AS564+AS577","v":0},null,null,null,null,null,null,null,{"$f":"SUM(AJ580:AZ580)","v":0}]
["Verificare actualizare",null,null,null,null,null,null,null,null,null,null,null,null,null,null,null,null,null,null,null,null,null,null,null,null,null,null,null,null,null,null,{"$f":"AJ582*100/AJ580","v":{"$error":"#DIV/0!"}},null,null,{"$f":"IF(AJ580=0,0,AF581)","v":0},{"$f":"IF(AI581<=5,\"actualizare mai mică de 5% din valoarea eligibila\",\"actualizare mai mare de 5% din valoarea eligibila\")","v":"actualizare mai mică de 5% din valoarea eligibila"}]
["ACTUALIZARE Cheltuieli Eligibile (max 5%)",null,null,null,null,null,null,null,null,null,null,null,null,null,null,null,null,null,null,null,null,null,null,null,null,null,null,null,null,null,null,null,null,null,null,null,null,null,null,null,null,null,null,null,null,null,null,null,null,null,null,null,{"$f":"SUM(AJ582:AZ582)","v":0}]
["TOTAL GENERAL CU ACTUALIZARE",null,null,null,null,null,null,null,null,null,null,null,null,null,null,null,null,null,null,null,null,null,null,null,null,null,null,null,null,null,null,null,null,null,null,{"$f":"AJ580+AJ582","v":0},null,null,null,null,null,null,null,null,{"$f":"AS580","v":0},null,null,null,null,null,null,null,{"$f":"SUM(AJ583:AZ583)","v":0}]
["Valoare TVA",null,null,null,null,null,null,null,null,null,null,null,null,null,null,null,null,null,null,null,null,null,null,null,null,null,null,null,null,null,null,null,null,null,null,null,null,null,null,null,null,null,null,null,null,null,null,null,null,null,null,null,{"$f":"SUM(AJ584:AZ584)","v":0}]
["TOTAL GENERAL inclusiv TVA",null,null,null,null,null,null,null,null,null,null,null,null,null,null,null,null,null,null,null,null,null,null,null,null,null,null,null,null,null,null,null,null,null,null,{"$f":"BA583+BA584","v":0}]
[null,null,null,null,null,null,null,null,null,null,null,null,null,null,null,null,null,null,null,null,null,null,null,null,null,null,null,null,null,null,null,null,null,null,null,"LEI",null,null,null,null,null,null,null,null,"EURO"]
["VALOARE TOTALĂ",null,null,null,null,null,null,null,null,null,null,null,null,null,null,null,null,null,null,null,null,null,null,null,null,null,null,null,null,null,null,null,null,null,null,{"$f":"AS587*Z513","v":0},null,null,null,null,null,null,null,null,{"$f":"AJ585","v":0}]
["VALOARE ELIGIBILĂ",null,null,null,null,null,null,null,null,null,null,null,null,null,null,null,null,null,null,null,null,null,null,null,null,null,null,null,null,null,null,null,null,null,null,{"$f":"AS588*Z513","v":0},null,null,null,null,null,null,null,null,{"$f":"AJ583+AJ584","v":0}]
["VALOARE NEELIGIBILĂ",null,null,null,null,null,null,null,null,null,null,null,null,null,null,null,null,null,null,null,null,null,null,null,null,null,null,null,null,null,null,null,null,null,null,{"$f":"AS589*Z513","v":0},null,null,null,null,null,null,null,null,{"$f":"AS583+AS584","v":0}]
["Plan Financiar",null,null,null,null,null,null,null,null,null,null,null,null,null,null,null,null,null,null,null,null,null,null,null,null,null,null,null,null,null,null,null,null,null,null,"Cheltuieli eligibile EURO",null,null,null,null,null,null,null,null,"Cheltuieli neeligibile EURO",null,null,null,null,null,null,null,"Total"]
["Ajutor public nerambursabil (contribuţie UE şi cofinanţare naţională)",null,null,null,null,null,null,null,null,null,null,null,null,null,null,null,null,null,null,null,null,null,null,null,null,null,null,null,null,null,null,null,null,null,null,null,null,null,null,null,null,null,null,null,null,null,null,null,null,null,null,null,{"$f":"SUM(AJ591:AZ591)","v":0}]
["Cofinantare privata, din care:",null,null,null,null,null,null,null,null,null,null,null,null,null,null,null,null,null,null,null,null,null,null,null,null,null,null,null,null,null,null,null,null,null,null,{"$f":"SUM(AJ593:AR595)","v":0},null,null,null,null,null,null,null,null,{"$f":"SUM(AS593:AZ595)","v":0},null,null,null,null,null,null,null,0]
[null,null,null,null,null,null,null,null,null,null,null,null,null,null,null,"- contributia in natura",null,null,null,null,null,null,null,null,null,null,null,null,null,null,null,null,null,null,null,null,null,null,null,null,null,null,null,null,null,null,null,null,null,null,null,null,0]
[null,null,null,null,null,null,null,null,null,null,null,null,null,null,null,"- autofinanțare",null,null,null,null,null,null,null,null,null,null,null,null,null,null,null,null,null,null,null,null,null,null,null,null,null,null,null,null,null,null,null,null,null,null,null,null,0]
[null,null,null,null,null,null,null,null,null,null,null,null,null,null,null,"- împrumuturi",null,null,null,null,null,null,null,null,null,null,null,null,null,null,null,null,null,null,null,null,null,null,null,null,null,null,null,null,null,null,null,null,null,null,null,null,0]
["TOTAL PROIECT",null,null,null,null,null,null,null,null,null,null,null,null,null,null,null,null,null,null,null,null,null,null,null,null,null,null,null,null,null,null,null,null,null,null,{"$f":"AJ591+AJ592","v":0},null,null,null,null,null,null,null,null,{"$f":"AS592","v":0},null,null,null,null,null,null,null,0]
["Procent contribuţie publică",null,null,null,null,null,null,null,null,null,null,null,null,null,null,null,null,null,null,null,null,null,null,null,null,null,null,null,null,null,null,null,null,{"$f":"AJ591*100/AJ596","v":{"$error":"#DIV/0!"}},{"$f":"IF(AJ596=0,0,AH597)","v":0},{"$f":"AI597","v":0},null,null,null,null,null,null,null,"%"]
["Avans solicitat"]
["Procent avans solicitat ca procent din ajutorul public nerambursabil",null,null,null,null,null,null,null,null,null,null,null,null,null,null,null,null,null,null,null,null,null,null,null,null,null,null,null,null,null,null,null,null,null,{"$f":"AJ598*100/AJ591","v":{"$error":"#DIV/0!"}},{"$f":"IF(AJ591=0,0,AI599)","v":0},null,null,null,null,null,null,null,null,{"$f":"IF(AJ599<=50,\"Suma avans mai mica de 50% din ajutorul public\",\"Suma avans mai mare de 50% din ajutorul public\")","v":"Suma avans mai mica de 50% din ajutorul public"}]
[null,"BUGET INDICATIV TOTALIZATOR HG 907"]
["MINISTERUL AGRICULTURII ŞI DEZVOLTĂRII RURALE"]
["AGENŢIA PENTRU FINANŢAREA INVESTIŢIILOR RURALE"]
[]
[]
[null,null,null,null,null,null,null,null,null,null,null,null,null,null,null,null,null,null,null,"Curs EURO",null,null,null,null,null,null,null,null,null,null,null,null,null,null,null,"Data întocmirii Studiului de Fezabilitate"]
[]
["Măsura",null,null,null,null,null,null,null,null,null,null,null,null,null,null,null,null,null,null,null,null,null,null,null,null,null,null,null,null,null,null,null,null,null,null,"M1/2A"]
["Denumirea capitolelor de cheltuieli",null,null,null,null,null,null,null,null,null,null,null,null,null,null,null,null,null,null,null,null,null,null,null,null,null,null,null,null,null,null,null,null,null,null,"Cheltuieli eligibile",null,null,null,null,null,null,null,null,"Cheltuieli neeligibile",null,null,null,null,null,null,null,"Total"]
[null,null,null,null,null,null,null,null,null,null,null,null,null,null,null,null,null,null,null,null,null,null,null,null,null,null,null,null,null,null,null,null,null,null,null,"EURO",null,null,null,null,null,null,null,null,"EURO",null,null,null,null,null,null,null,"EURO"]
[1,null,null,null,null,null,null,null,null,null,null,null,null,null,null,null,null,null,null,null,null,null,null,null,null,null,null,null,null,null,null,null,null,null,null,2,null,null,null,null,null,null,null,null,3,null,null,null,null,null,null,null,4]
["Capitolul 1 Cheltuieli pentru obtinerea şi amenajarea terenului - total, din care:",null,null,null,null,null,null,null,null,null,null,null,null,null,null,null,null,null,null,null,null,null,null,null,null,null,null,null,null,null,null,null,null,null,null,{"$f":"SUM(AJ613:AR615)","v":0},null,null,null,null,null,null,null,null,{"$f":"SUM(AS612:AZ615)","v":0},null,null,null,null,null,null,null,{"$f":"SUM(AJ611:AZ611)","v":0}]
["1.1 Obţinerea terenului",null,null,null,null,null,null,null,null,null,null,null,null,null,null,null,null,null,null,null,null,null,null,null,null,null,null,null,null,null,null,null,null,null,null,null,null,null,null,null,null,null,null,null,{"$f":"AS335+AS428+AS520","v":0},null,null,null,null,null,null,null,{"$f":"SUM(AJ612:AZ612)","v":0}]
["1.2 Amenajarea terenului",null,null,null,null,null,null,null,null,null,null,null,null,null,null,null,null,null,null,null,null,null,null,null,null,null,null,null,null,null,null,null,null,null,null,{"$f":"AJ336+AJ429+AJ521","v":0},null,null,null,null,null,null,null,null,{"$f":"AS336+AS429+AS521","v":0},null,null,null,null,null,null,null,0]
["1.3 Amenajari pentru protecţia mediului şi aducerea la starea iniţială",null,null,null,null,null,null,null,null,null,null,null,null,null,null,null,null,null,null,null,null,null,null,null,null,null,null,null,null,null,null,null,null,null,null,{"$f":"AJ337+AJ430+AJ522","v":0},null,null,null,null,null,null,null,null,{"$f":"AS337+AS430+AS522","v":0},null,null,null,null,null,null,null,0]
["1.4 Cheltuieli pentru relocarea/protecţia utilităţilor",null,null,null,null,null,null,null,null,null,null,null,null,null,null,null,null,null,null,null,null,null,null,null,null,null,null,null,null,null,null,null,null,null,null,{"$f":"AJ338+AJ431+AJ523","v":0},null,null,null,null,null,null,null,null,{"$f":"AS338+AS431+AS523","v":0},null,null,null,null,null,null,null,0]
["Capitolul 2 Cheltuieli pentru asigurarea utilităţilor necesare obiectivului de investiţii",null,null,null,null,null,null,null,null,null,null,null,null,null,null,null,null,null,null,null,null,null,null,null,null,null,null,null,null,null,null,null,null,null,null,{"$f":"AJ339+AJ432+AJ524","v":0},null,null,null,null,null,null,null,null,{"$f":"AS339+AS432+AS524","v":0},null,null,null,null,null,null,null,0]
["Capitolul 3 Cheltuieli pentru proiectare şi asistenţă tehnică - total, din care:",null,null,null,null,null,null,null,null,null,null,null,null,null,null,null,null,null,null,null,null,null,null,null,null,null,null,null,null,null,null,null,null,null,null,{"$f":"AJ618+AJ622+AJ623+AJ624+AJ625+AJ632+AJ633+AJ636","v":0},null,null,null,null,null,null,null,null,{"$f":"AS618+AS622+AS623+AS624+AS625+AS632+AS633+AS636","v":0},null,null,null,null,null,null,null,0]
["3.1 Studii",null,null,null,null,null,null,null,null,null,null,null,null,null,null,null,null,null,null,null,null,null,null,null,null,null,null,null,null,null,null,null,null,null,null,{"$f":"AJ619+AJ620+AJ621","v":0},null,null,null,null,null,null,null,null,{"$f":"AS619+AS620+AS621","v":0},null,null,null,null,null,null,null,0]
["       3.1.1 Studii de teren",null,null,null,null,null,null,null,null,null,null,null,null,null,null,null,null,null,null,null,null,null,null,null,null,null,null,null,null,null,null,null,null,null,null,{"$f":"AJ342+AJ435+AJ527","v":0},null,null,null,null,null,null,null,null,{"$f":"AS342+AS435+AS527","v":0},null,null,null,null,null,null,null,0]
["       3.1.2 Raport privind impactul asupra mediului",null,null,null,null,null,null,null,null,null,null,null,null,null,null,null,null,null,null,null,null,null,null,null,null,null,null,null,null,null,null,null,null,null,null,0,null,null,null,null,null,null,null,null,0,null,null,null,null,null,null,null,0]
["       3.1.3 Alte studii specifice",null,null,null,null,null,null,null,null,null,null,null,null,null,null,null,null,null,null,null,null,null,null,null,null,null,null,null,null,null,null,null,null,null,null,0,null,null,null,null,null,null,null,null,0,null,null,null,null,null,null,null,0]
["3.2 Documentaţii-suport şi cheltuieli pentru obţinerea de avize, acorduri şi autorizaţii",null,null,null,null,null,null,null,null,null,null,null,null,null,null,null,null,null,null,null,null,null,null,null,null,null,null,null,null,null,null,null,null,null,null,0,null,null,null,null,null,null,null,null,0,null,null,null,null,null,null,null,0]
["3.3 Expertizare tehnică",null,null,null,null,null,null,null,null,null,null,null,null,null,null,null,null,null,null,null,null,null,null,null,null,null,null,null,null,null,null,null,null,null,null,0,null,null,null,null,null,null,null,null,0,null,null,null,null,null,null,null,0]
["3.4 Certificarea performanţei energetice şi auditul energetic al clădirilor",null,null,null,null,null,null,null,null,null,null,null,null,null,null,null,null,null,null,null,null,null,null,null,null,null,null,null,null,null,null,null,null,null,null,0,null,null,null,null,null,null,null,null,0,null,null,null,null,null,null,null,0]
["3.5 Proiectare",null,null,null,null,null,null,null,null,null,null,null,null,null,null,null,null,null,null,null,null,null,null,null,null,null,null,null,null,null,null,null,null,null,null,{"$f":"SUM(AJ626:AR631)","v":0},null,null,null,null,null,null,null,null,{"$f":"SUM(AS626:AZ631)","v":0},null,null,null,null,null,null,null,0]
["      3.5.1 Temă de proiectare",null,null,null,null,null,null,null,null,null,null,null,null,null,null,null,null,null,null,null,null,null,null,null,null,null,null,null,null,null,null,null,null,null,null,0,null,null,null,null,null,null,null,null,0,null,null,null,null,null,null,null,0]
["      3.5.2 Studiu de prefezabilitate",null,null,null,null,null,null,null,null,null,null,null,null,null,null,null,null,null,null,null,null,null,null,null,null,null,null,null,null,null,null,null,null,null,null,0,null,null,null,null,null,null,null,null,0,null,null,null,null,null,null,null,0]
["      3.5.3. Studiu de fezabilitate/documentaţie de avizare a lucrărilor de intervenţii\n                şi deviz general",null,null,null,null,null,null,null,null,null,null,null,null,null,null,null,null,null,null,null,null,null,null,null,null,null,null,null,null,null,null,null,null,null,null,0,null,null,null,null,null,null,null,null,0,null,null,null,null,null,null,null,0]
["      3.5.4. Documentaţiile tehnice necesare în vederea obţinerii avizelor/\n                acordurilor/autorizaţiilor",null,null,null,null,null,null,null,null,null,null,null,null,null,null,null,null,null,null,null,null,null,null,null,null,null,null,null,null,null,null,null,null,null,null,0,null,null,null,null,null,null,null,null,0,null,null,null,null,null,null,null,0]
["      3.5.5. Verificarea tehnică de calitate a proiectului tehnic şi a detaliilor de execuţie",null,null,null,null,null,null,null,null,null,null,null,null,null,null,null,null,null,null,null,null,null,null,null,null,null,null,null,null,null,null,null,null,null,null,0,null,null,null,null,null,null,null,null,0,null,null,null,null,null,null,null,0]
["      3.5.6. Proiect tehnic şi detalii de execuţie",null,null,null,null,null,null,null,null,null,null,null,null,null,null,null,null,null,null,null,null,null,null,null,null,null,null,null,null,null,null,null,null,null,null,0,null,null,null,null,null,null,null,null,0,null,null,null,null,null,null,null,0]
["3.6 Organizarea procedurilor de achiziţie",null,null,null,null,null,null,null,null,null,null,null,null,null,null,null,null,null,null,null,null,null,null,null,null,null,null,null,null,null,null,null,null,null,null,null,null,null,null,null,null,null,null,null,0,null,null,null,null,null,null,null,0]
["3.7 Consultanţă",null,null,null,null,null,null,null,null,null,null,null,null,null,null,null,null,null,null,null,null,null,null,null,null,null,null,null,null,null,null,null,null,null,null,{"$f":"AJ634","v":0},null,null,null,null,null,null,null,null,{"$f":"AS634+AS635","v":0},null,null,null,null,null,null,null,0]
["      3.7.1 Managementul de proiect pentru obiectivul de investiţii",null,null,null,null,null,null,null,null,null,null,null,null,null,null,null,null,null,null,null,null,null,null,null,null,null,null,null,null,null,null,null,null,null,null,{"$f":"AJ357+AJ450+AJ542","v":0},null,null,null,null,null,null,null,null,0,null,null,null,null,null,null,null,0]
["      3.7.2 Auditul financiar",null,null,null,null,null,null,null,null,null,null,null,null,null,null,null,null,null,null,null,null,null,null,null,null,null,null,null,null,null,null,null,null,null,null,null,null,null,null,null,null,null,null,null,0,null,null,null,null,null,null,null,0]
["3.8 Asistenţă Tehnică",null,null,null,null,null,null,null,null,null,null,null,null,null,null,null,null,null,null,null,null,null,null,null,null,null,null,null,null,null,null,null,null,null,null,{"$f":"AJ637+AJ640","v":0},null,null,null,null,null,null,null,null,{"$f":"AS637+AS640","v":0},null,null,null,null,null,null,null,0]
["      3.8.1 Asistenţă Tehnică din partea proiectantului",null,null,null,null,null,null,null,null,null,null,null,null,null,null,null,null,null,null,null,null,null,null,null,null,null,null,null,null,null,null,null,null,null,null,{"$f":"AJ638+AJ639","v":0},null,null,null,null,null,null,null,null,{"$f":"AS638+AS639","v":0},null,null,null,null,null,null,null,0]
["           3.8.1.1 pe perioada de execuţie a lucrărilor",null,null,null,null,null,null,null,null,null,null,null,null,null,null,null,null,null,null,null,null,null,null,null,null,null,null,null,null,null,null,null,null,null,null,{"$f":"AJ361+AJ454+AJ546","v":0},null,null,null,null,null,null,null,null,{"$f":"AS361+AS454+AS546","v":0},null,null,null,null,null,null,null,0]
["           3.8.1.2 pentru participarea proiectantului la fazele incluse în programul de control al  lucrărilor de execuţie, avizat de către Inspectoratul de Stat în Construcţii",null,null,null,null,null,null,null,null,null,null,null,null,null,null,null,null,null,null,null,null,null,null,null,null,null,null,null,null,null,null,null,null,null,null,{"$f":"AJ362+AJ455+AJ547","v":0},null,null,null,null,null,null,null,null,{"$f":"AS362+AS455+AS547","v":0},null,null,null,null,null,null,null,0]
["      3.8.2 Dirigenţie de şantier",null,null,null,null,null,null,null,null,null,null,null,null,null,null,null,null,null,null,null,null,null,null,null,null,null,null,null,null,null,null,null,null,null,null,{"$f":"AJ363+AJ456+AJ548","v":0},null,null,null,null,null,null,null,null,{"$f":"AS363+AS456+AS548","v":0},null,null,null,null,null,null,null,0]
["Verificare încadrare cheltuieli capitolul 3",null,null,null,null,null,null,null,null,null,null,null,null,null,null,null,null,null,null,null,null,null,null,null,null,null,null,null,null,null,null,null,{"$f":"AJ611+AJ616+AJ642","v":0},{"$f":"IF(AG641=0,0,AI641)","v":0},null,"cheltuieli mai mici de 5% din Cap 1+2+4"]
["Capitolul 4 Cheltuieli pentru investiţia de bază - total, din care:",null,null,null,null,null,null,null,null,null,null,null,null,null,null,null,null,null,null,null,null,null,null,null,null,null,null,null,null,null,null,null,null,null,null,{"$f":"AJ643+AJ650","v":0},null,null,null,null,null,null,null,null,{"$f":"AS643+AS650","v":0},null,null,null,null,null,null,null,{"$f":"SUM(AJ642:AZ642)","v":0}]
["A - Constructii şi lucrări de intervenţii - total, din care:",null,null,null,null,null,null,null,null,null,null,null,null,null,null,null,null,null,null,null,null,null,null,null,null,null,null,null,null,null,null,null,null,null,null,{"$f":"SUM(AJ644:AR649)","v":0},null,null,null,null,null,null,null,null,{"$f":"SUM(AS644:AZ649)","v":0},null,null,null,null,null,null,null,0]
["4.1 Construcţii şi instalaţii",null,null,null,null,null,null,null,null,null,null,null,null,null,null,null,null,null,null,null,null,null,null,null,null,null,null,null,null,null,null,null,null,null,null,{"$f":"AJ367+AJ460+AJ552","v":0},null,null,null,null,null,null,null,null,{"$f":"AS367+AS460+AS552","v":0},null,null,null,null,null,null,null,0]
["4.2 Montaj utilaje, echipamente tehnologice şi funcţionale",null,null,null,null,null,null,null,null,null,null,null,null,null,null,null,null,null,null,null,null,null,null,null,null,null,null,null,null,null,null,null,null,null,null,0,null,null,null,null,null,null,null,null,0,null,null,null,null,null,null,null,0]
["4.3 Utilaje, echipamente tehnologice şi funcţionale care necesită montaj",null,null,null,null,null,null,null,null,null,null,null,null,null,null,null,null,null,null,null,null,null,null,null,null,null,null,null,null,null,null,null,null,null,null,0,null,null,null,null,null,null,null,null,0,null,null,null,null,null,null,null,0]
["4.4 Utilaje, echipamente tehnologice şi funcţionale care nu necesită montaj\n      şi echipamente",null,null,null,null,null,null,null,null,null,null,null,null,null,null,null,null,null,null,null,null,null,null,null,null,null,null,null,null,null,null,null,null,null,null,0,null,null,null,null,null,null,null,null,0,null,null,null,null,null,null,null,0]
["4.5 Dotări",null,null,null,null,null,null,null,null,null,null,null,null,null,null,null,null,null,null,null,null,null,null,null,null,null,null,null,null,null,null,null,null,null,null,0,null,null,null,null,null,null,null,null,0,null,null,null,null,null,null,null,0]
["4.6 Active necorporale",null,null,null,null,null,null,null,null,null,null,null,null,null,null,null,null,null,null,null,null,null,null,null,null,null,null,null,null,null,null,null,null,null,null,0,null,null,null,null,null,null,null,null,0,null,null,null,null,null,null,null,0]
["B - Cheltuieli pentru investitii în culturi/plantaţii",null,null,null,null,null,null,null,null,null,null,null,null,null,null,null,null,null,null,null,null,null,null,null,null,null,null,null,null,null,null,null,null,null,null,{"$f":"SUM(AJ651:AR655)","v":0},null,null,null,null,null,null,null,null,{"$f":"SUM(AS651:AZ655)","v":0},null,null,null,null,null,null,null,0]
["Subcapitol 1 - Lucrări de pregătire a terenului",null,null,null,null,null,null,null,null,null,null,null,null,null,null,null,null,null,null,null,null,null,null,null,null,null,null,null,null,null,null,null,null,null,null,0,null,null,null,null,null,null,null,null,0,null,null,null,null,null,null,null,0]
["Subcapitol 2 - Infiinţarea plantaţiei",null,null,null,null,null,null,null,null,null,null,null,null,null,null,null,null,null,null,null,null,null,null,null,null,null,null,null,null,null,null,null,null,null,null,0,null,null,null,null,null,null,null,null,0,null,null,null,null,null,null,null,0]
["Subcapitol 3 - Intreţinere plantaţie în anul 1",null,null,null,null,null,null,null,null,null,null,null,null,null,null,null,null,null,null,null,null,null,null,null,null,null,null,null,null,null,null,null,null,null,null,null,null,null,null,null,null,null,null,null,0,null,null,null,null,null,null,null,0]
["Subcapitol 4 - Intreţinere plantaţie în anul 2",null,null,null,null,null,null,null,null,null,null,null,null,null,null,null,null,null,null,null,null,null,null,null,null,null,null,null,null,null,null,null,null,null,null,null,null,null,null,null,null,null,null,null,0,null,null,null,null,null,null,null,0]
["Subcapitol 5 - Instalat sistem susţinere şi împrejmuire",null,null,null,null,null,null,null,null,null,null,null,null,null,null,null,null,null,null,null,null,null,null,null,null,null,null,null,null,null,null,null,null,null,null,{"$f":"AJ378+AJ471+AJ563","v":0},null,null,null,null,null,null,null,null,0,null,null,null,null,null,null,null,0]
["Capitolul 5 Alte cheltuieli - total, din care:",null,null,null,null,null,null,null,null,null,null,null,null,null,null,null,null,null,null,null,null,null,null,null,null,null,null,null,null,null,null,null,null,null,null,{"$f":"AJ657+AJ660+AJ666","v":0},null,null,null,null,null,null,null,null,{"$f":"AS657+AS660+AS666+AS667","v":0},null,null,null,null,null,null,null,0]
["5.1 Organizare de şantier",null,null,null,null,null,null,null,null,null,null,null,null,null,null,null,null,null,null,null,null,null,null,null,null,null,null,null,null,null,null,null,null,null,null,{"$f":"SUM(AJ658:AR659)","v":0},null,null,null,null,null,null,null,null,{"$f":"SUM(AS658:AZ659)","v":0},null,null,null,null,null,null,null,0]
["      5.1.1 lucrări de construcţii şi instalaţii aferente organizării de şantier",null,null,null,null,null,null,null,null,null,null,null,null,null,null,null,null,null,null,null,null,null,null,null,null,null,null,null,null,null,null,null,null,null,null,{"$f":"AJ381+AJ474+AJ566","v":0},null,null,null,null,null,null,null,null,{"$f":"AS381+AS474+AS566","v":0},null,null,null,null,null,null,null,0]
["      5.1.2 cheltuieli conexe orgănizării şantierului",null,null,null,null,null,null,null,null,null,null,null,null,null,null,null,null,null,null,null,null,null,null,null,null,null,null,null,null,null,null,null,null,null,null,{"$f":"AJ382+AJ475+AJ567","v":0},null,null,null,null,null,null,null,null,0,null,null,null,null,null,null,null,0]
["5.2 Comisioane, taxe, costul creditului",null,null,null,null,null,null,null,null,null,null,null,null,null,null,null,null,null,null,null,null,null,null,null,null,null,null,null,null,null,null,null,null,null,null,{"$f":"AJ662+AJ663+AJ665","v":0},null,null,null,null,null,null,null,null,{"$f":"AS661+AS662+AS663+AS664+AS665","v":0},null,null,null,null,null,null,null,0]
["      5.2.1 Comisioanele şi dobânzile aferente creditului băncii finanţatoare",null,null,null,null,null,null,null,null,null,null,null,null,null,null,null,null,null,null,null,null,null,null,null,null,null,null,null,null,null,null,null,null,null,null,null,null,null,null,null,null,null,null,null,0,null,null,null,null,null,null,null,0]
["      5.2.2 Cota aferentă ISC pentru controlul calităţii lucrărilor de construcţii",null,null,null,null,null,null,null,null,null,null,null,null,null,null,null,null,null,null,null,null,null,null,null,null,null,null,null,null,null,null,null,null,null,null,{"$f":"AJ385+AJ478+AJ570","v":0},null,null,null,null,null,null,null,null,0,null,null,null,null,null,null,null,0]
["      5.2.3 Cota aferentă ISC pentru controlul statului în amenajarea teritoriului,urbanism şi\n               pentru autorizarea lucrărilor de construcţii",null,null,null,null,null,null,null,null,null,null,null,null,null,null,null,null,null,null,null,null,null,null,null,null,null,null,null,null,null,null,null,null,null,null,{"$f":"AJ386+AJ479+AJ571","v":0},null,null,null,null,null,null,null,null,0,null,null,null,null,null,null,null,0]
["      5.2.4 Cota aferentă Casei Sociale a Constructorilor - CSC",null,null,null,null,null,null,null,null,null,null,null,null,null,null,null,null,null,null,null,null,null,null,null,null,null,null,null,null,null,null,null,null,null,null,null,null,null,null,null,null,null,null,null,0,null,null,null,null,null,null,null,0]
["      5.2.5 Taxe pentru acorduri, avize conforme şi autorizaţia de construire/ desfiinţare",null,null,null,null,null,null,null,null,null,null,null,null,null,null,null,null,null,null,null,null,null,null,null,null,null,null,null,null,null,null,null,null,null,null,{"$f":"AJ388+AJ481+AJ573","v":0},null,null,null,null,null,null,null,null,0,null,null,null,null,null,null,null,0]
["5.3 Cheltuieli diverse şi neprevăzute",null,null,null,null,null,null,null,null,null,null,null,null,null,null,null,null,null,null,null,null,null,null,null,null,null,null,null,null,null,null,null,null,null,null,{"$f":"AJ389+AJ482+AJ574","v":0},null,null,null,null,null,null,null,null,0,null,null,null,null,null,null,null,0]
["5.4 Cheltuieli pentru informare şi publicitate",null,null,null,null,null,null,null,null,null,null,null,null,null,null,null,null,null,null,null,null,null,null,null,null,null,null,null,null,null,null,null,null,null,null,null,null,null,null,null,null,null,null,null,0,null,null,null,null,null,null,null,0]
["Procent cheltuieli diverse şi neprevăzute"]
["Capitolul 6 Cheltuieli pentru probe tehnologice si teste - total, din care:",null,null,null,null,null,null,null,null,null,null,null,null,null,null,null,null,null,null,null,null,null,null,null,null,null,null,null,null,null,null,null,null,null,null,{"$f":"SUM(AJ670:AR671)","v":0},null,null,null,null,null,null,null,null,{"$f":"SUM(AS670:AZ671)","v":0},null,null,null,null,null,null,null,{"$f":"SUM(AJ669:AZ669)","v":0}]
["6.1 Pregătirea personalului de exploatare",null,null,null,null,null,null,null,null,null,null,null,null,null,null,null,null,null,null,null,null,null,null,null,null,null,null,null,null,null,null,null,null,null,null,null,null,null,null,null,null,null,null,null,{"$f":"AS393+AS486+AS578","v":0},null,null,null,null,null,null,null,{"$f":"SUM(AJ670:AZ670)","v":0}]
["6.2 Probe tehnologice şi teste",null,null,null,null,null,null,null,null,null,null,null,null,null,null,null,null,null,null,null,null,null,null,null,null,null,null,null,null,null,null,null,null,null,null,{"$f":"AJ394+AJ487+AJ579","v":0},null,null,null,null,null,null,null,null,{"$f":"AS394+AS487+AS579","v":0},null,null,null,null,null,null,null,{"$f":"SUM(AJ671:AZ671)","v":0}]
["TOTAL GENERAL",null,null,null,null,null,null,null,null,null,null,null,null,null,null,null,null,null,null,null,null,null,null,null,null,null,null,null,null,null,null,null,null,null,null,{"$f":"AJ611+AJ616+AJ617+AJ642+AJ656+AJ669","v":0},null,null,null,null,null,null,null,null,{"$f":"AS611+AS616+AS617+AS642+AS656+AS669","v":0},null,null,null,null,null,null,null,{"$f":"SUM(AJ672:AZ672)","v":0}]
["Verificare actualizare",null,null,null,null,null,null,null,null,null,null,null,null,null,null,null,null,null,null,null,null,null,null,null,null,null,null,null,null,null,null,{"$f":"AJ674*100/AJ672","v":{"$error":"#DIV/0!"}},null,null,{"$f":"IF(AJ672=0,0,AF673)","v":0},{"$f":"IF(AI673<=5,\"actualizare mai mică de 5% din valoarea eligibila\",\"actualizare mai mare de 5% din valoarea eligibila\")","v":"actualizare mai mică de 5% din valoarea eligibila"}]
["ACTUALIZARE Cheltuieli Eligibile (max 5%)",null,null,null,null,null,null,null,null,null,null,null,null,null,null,null,null,null,null,null,null,null,null,null,null,null,null,null,null,null,null,null,null,null,null,{"$f":"AJ397+AJ490+AJ582","v":0},null,null,null,null,null,null,null,null,null,null,null,null,null,null,null,null,{"$f":"SUM(AJ674:AZ674)","v":0}]
["TOTAL GENERAL CU ACTUALIZARE",null,null,null,null,null,null,null,null,null,null,null,null,null,null,null,null,null,null,null,null,null,null,null,null,null,null,null,null,null,null,null,null,null,null,{"$f":"AJ672+AJ674","v":0},null,null,null,null,null,null,null,null,{"$f":"AS672","v":0},null,null,null,null,null,null,null,{"$f":"SUM(AJ675:AZ675)","v":0}]
["Valoare TVA",null,null,null,null,null,null,null,null,null,null,null,null,null,null,null,null,null,null,null,null,null,null,null,null,null,null,null,null,null,null,null,null,null,null,{"$f":"AJ399+AJ492+AJ584","v":0},null,null,null,null,null,null,null,null,{"$f":"AS399+AS492+AS584","v":0},null,null,null,null,null,null,null,{"$f":"SUM(AJ676:AZ676)","v":0}]
["TOTAL GENERAL inclusiv TVA",null,null,null,null,null,null,null,null,null,null,null,null,null,null,null,null,null,null,null,null,null,null,null,null,null,null,null,null,null,null,null,null,null,null,{"$f":"BA675+BA676","v":0}]
[null,null,null,null,null,null,null,null,null,null,null,null,null,null,null,null,null,null,null,null,null,null,null,null,null,null,null,null,null,null,null,null,null,null,null,"LEI",null,null,null,null,null,null,null,null,"EURO"]
["VALOARE TOTALĂ",null,null,null,null,null,null,null,null,null,null,null,null,null,null,null,null,null,null,null,null,null,null,null,null,null,null,null,null,null,null,null,null,null,null,{"$f":"AS679*Z605","v":0},null,null,null,null,null,null,null,null,{"$f":"AJ677","v":0}]
["VALOARE ELIGIBILĂ",null,null,null,null,null,null,null,null,null,null,null,null,null,null,null,null,null,null,null,null,null,null,null,null,null,null,null,null,null,null,null,null,null,null,{"$f":"AS680*Z605","v":0},null,null,null,null,null,null,null,null,{"$f":"AJ675+AJ676","v":0}]
["VALOARE NEELIGIBILĂ",null,null,null,null,null,null,null,null,null,null,null,null,null,null,null,null,null,null,null,null,null,null,null,null,null,null,null,null,null,null,null,null,null,null,{"$f":"AS681*Z605","v":0},null,null,null,null,null,null,null,null,{"$f":"AS675+AS676","v":0}]
["Plan Financiar",null,null,null,null,null,null,null,null,null,null,null,null,null,null,null,null,null,null,null,null,null,null,null,null,null,null,null,null,null,null,null,null,null,null,"Cheltuieli eligibile EURO",null,null,null,null,null,null,null,null,"Cheltuieli neeligibile EURO",null,null,null,null,null,null,null,"Total"]
["Ajutor public nerambursabil (contribuţie UE şi cofinanţare naţională)",null,null,null,null,null,null,null,null,null,null,null,null,null,null,null,null,null,null,null,null,null,null,null,null,null,null,null,null,null,null,null,null,null,null,{"$f":"AJ407+AJ499+AJ591","v":0},null,null,null,null,null,null,null,null,null,null,null,null,null,null,null,null,{"$f":"SUM(AJ683:AZ683)","v":0}]
["Cofinantare privata, din care:",null,null,null,null,null,null,null,null,null,null,null,null,null,null,null,null,null,null,null,null,null,null,null,null,null,null,null,null,null,null,null,null,null,null,{"$f":"AJ685+AJ686+AJ687","v":0},null,null,null,null,null,null,null,null,{"$f":"AS685+AS686+AS687","v":0},null,null,null,null,null,null,null,0]
[null,null,null,null,null,null,null,null,null,null,null,null,null,null,null,"- contributia in natura",null,null,null,null,null,null,null,null,null,null,null,null,null,null,null,null,null,null,null,{"$f":"AJ409+AJ501+AJ593","v":0},null,null,null,null,null,null,null,null,{"$f":"AS409+AS501+AS593","v":0},null,null,null,null,null,null,null,0]
[null,null,null,null,null,null,null,null,null,null,null,null,null,null,null,"- autofinanțare",null,null,null,null,null,null,null,null,null,null,null,null,null,null,null,null,null,null,null,{"$f":"AJ410+AJ502+AJ594","v":0},null,null,null,null,null,null,null,null,{"$f":"AS410+AS502+AS594","v":0},null,null,null,null,null,null,null,0]
[null,null,null,null,null,null,null,null,null,null,null,null,null,null,null,"- împrumuturi",null,null,null,null,null,null,null,null,null,null,null,null,null,null,null,null,null,null,null,{"$f":"AJ411+AJ503+AJ595","v":0},null,null,null,null,null,null,null,null,{"$f":"AS411+AS503+AS595","v":0},null,null,null,null,null,null,null,0]
["TOTAL PROIECT",null,null,null,null,null,null,null,null,null,null,null,null,null,null,null,null,null,null,null,null,null,null,null,null,null,null,null,null,null,null,null,null,null,null,{"$f":"AJ683+AJ684","v":0},null,null,null,null,null,null,null,null,{"$f":"AS684","v":0},null,null,null,null,null,null,null,0]
["Procent contribuţie publică",null,null,null,null,null,null,null,null,null,null,null,null,null,null,null,null,null,null,null,null,null,null,null,null,null,null,null,null,null,null,null,null,{"$f":"AJ683*100/AJ688","v":{"$error":"#DIV/0!"}},{"$f":"IF(AJ688=0,0,AH689)","v":0},{"$f":"AI689","v":0},null,null,null,null,null,null,null,"%"]
["Avans solicitat"]
["Procent avans solicitat ca procent din ajutorul public nerambursabil",null,null,null,null,null,null,null,null,null,null,null,null,null,null,null,null,null,null,null,null,null,null,null,null,null,null,null,null,null,null,null,null,null,{"$f":"AJ690*100/AJ683","v":{"$error":"#DIV/0!"}},{"$f":"IF(AJ683=0,0,AI691)","v":0},null,null,null,null,null,null,null,null,{"$f":"IF(AJ691<=50,\"Suma avans mai mica de 50% din ajutorul public\",\"Suma avans mai mare de 50% din ajutorul public\")","v":"Suma avans mai mica de 50% din ajutorul public"}]
[]
[null,null,null,null,null,null,null,"MINISTERUL AGRICULTURII ŞI DEZVOLTĂRII RURALE"]
[null,null,null,null,null,null,null,null,null,null,null,null,null,null,null,null,null,null,null,null,null,null,null,null,null,null,null,null,null,null,null,null,null,null,null,null,null,null,null,null,null,null,"Anexa A1 HG_907"]
[null,null,null,null,null,null,null,"AGENŢIA PENTRU FINANŢAREA INVESTIŢIILOR RURALE"]
[null,null,null,null,null,null,null,null,null,null,null,null,null,null,null,null,null,null,null,null,null,null,null,null,null,null,null,null,null,null,null,null,null,null,null,null,null,null,null,null,null,null,null,null,null,null,null,null,null,null,null,"aprilie 2019"]
[null,null,null,null,null,null,null,"Deviz financiar- Capitolul 3 - Cheltuieli pentru proiectare şi asistenţa tehnică - EURO"]
["Nr.1"]
[]
["(Titlu deviz)"]
["Nr.crt",null,null,null,"Specificaţie",null,null,null,null,null,null,null,null,null,null,null,null,null,null,null,null,null,null,null,null,null,null,null,null,null,null,null,null,null,null,null,null,null,null,null,null,null,"Valoare eligibilă",null,null,null,null,null,null,null,null,"Valoare\nneeligibilă"]
["3.1",null,null,null,"Cheltuieli pentru studii ",null,null,null,null,null,null,null,null,null,null,null,null,null,null,null,null,null,null,null,null,null,null,null,null,null,null,null,null,null,null,null,null,null,null,null,null,null,{"$f":"SUM(AQ703:AY705)","v":0},null,null,null,null,null,null,null,null,{"$f":"SUM(AZ703:BI705)","v":0}]
[null,null,null,null,"3.1.1 Studii de teren: studii geotehnice, geologice, hidrologice, hidrogeotehnice, fotogrammetrice, topografica şi de stabilitate ale terenului pe care se amplasează obiectivul de investiţie"]
[null,null,null,null,"3.1.2 Raport privind impactul asupra mediului"]
[null,null,null,null,"3.1.3 Studii de specialitate necesare în funcţie de specificul investiţiei"]
["3.2",null,null,null,"Documentaţii-suport şi cheltuieli pentru obţinerea de avize, acorduri şi autorizaţii",null,null,null,null,null,null,null,null,null,null,null,null,null,null,null,null,null,null,null,null,null,null,null,null,null,null,null,null,null,null,null,null,null,null,null,null,null,{"$f":"SUM(AQ707:AY715)","v":0},null,null,null,null,null,null,null,null,{"$f":"SUM(AZ707:BI715)","v":0}]
[null,null,null,null,"1. obţinerea/prelungirea valabilităţii ceritificatului de urbanism"]
[null,null,null,null,"2. obţinerea/prelungirea valabilităţii autorizaţiei de construire/desfiinţare"]
[null,null,null,null,"3. obţinerea avizelor şi acordurilor pentru racorduri şi branşamente la reţele publice de alimentare cu apă, canalizare, alimentare cu gaze, alimentare cu agent termic, energie electrică, telefonie"]
[null,null,null,null,"4. obţinerea certificatului de nomenclatură stradală şi adresă"]
[null,null,null,null,"5. întocmirea documentaţiei, obţinerea numărului cadastral provizoriu şi înregistrarea terenului în cartea funciară"]
[null,null,null,null,"6. obţinerea actului administrativ al autorităţii competente pentru protecţia mediului"]
[null,null,null,null,"7. obţinerea avizului de protecţie civilă"]
[null,null,null,null,"8. avizul de specialitate în cazul obiectivelor de patrimoniu"]
[null,null,null,null,"9. alte avize, acorduri şi autorizaţii"]
["3.3",null,null,null,"Cheltuieli pentru expertizarea tehnică a construcţiilor existente, a structurilor şi/sau, după caz, a proiectelor tehnice, inclusiv întocmirea de către expertul tehnic a raportului de expertiză tehnică"]
["3.4",null,null,null,"Cheltuieli pentru certificarea performanţei energetice şi auditul energetic al clădirilor"]
["3.5",null,null,null,"Cheltuieli pentru proiectare",null,null,null,null,null,null,null,null,null,null,null,null,null,null,null,null,null,null,null,null,null,null,null,null,null,null,null,null,null,null,null,null,null,null,null,null,null,{"$f":"SUM(AQ719:AY724)","v":0},null,null,null,null,null,null,null,null,{"$f":"SUM(AZ719:BI724)","v":0}]
[null,null,null,null,"3.5.1 Temă de proiectare"]
[null,null,null,null,"3.5.2 Studiu de prefezabilitate"]
[null,null,null,null,"3.5.3 Studiu de fezabilitate/documentaţie de avizare a lucrărilor de intervenţii şi deviz general"]
[null,null,null,null,"3.5.4 Documentaţiile tehnice necesare în vederea obţinerii avizelor/acordurilor/ autorizaţiilor"]
[null,null,null,null,"3.5.5 Verificarea tehnică de calitate a proiectului tehnic şi a detaliilor de execuţie"]
[null,null,null,null,"3.5.6 Proiect tehnic şi detalii de execuţie"]
["3.6",null,null,null,"Cheltuieli aferente organizării şi derulării procedurilor de achiziţii publice",null,null,null,null,null,null,null,null,null,null,null,null,null,null,null,null,null,null,null,null,null,null,null,null,null,null,null,null,null,null,null,null,null,null,null,null,null,{"$f":"SUM(AQ726:AY729)","v":0},null,null,null,null,null,null,null,null,{"$f":"SUM(AZ726:BI729)","v":0}]
[null,null,null,null,"1. Cheltuieli aferente întocmirii documentaţiei de atribuire şi multiplicării acesteia (exclusiv cele cumpărate de ofertanţi)"]
[null,null,null,null,"2. Cheltuieli cu onorariile, transportul, cazarea şi diurna membrilor desemnaţi în comisiile de evaluare"]
[null,null,null,null,"3. Anunţuri de intenţie, de participare şi de atribuire a contractelor, corespondenţă prin poştă, fax, poştă electronică în legătură cu procedurile de achiziţie publică"]
[null,null,null,null,"4. Cheltuieli aferente organizării şi derulării procedurilor de achiziţii publice"]
["3.7",null,null,null,"Cheltuieli pentru consultanţă",null,null,null,null,null,null,null,null,null,null,null,null,null,null,null,null,null,null,null,null,null,null,null,null,null,null,null,null,null,null,null,null,null,null,null,null,null,{"$f":"SUM(AQ731:AY732)","v":0},null,null,null,null,null,null,null,null,{"$f":"SUM(AZ731:BI732)","v":0}]
[null,null,null,null,"3.7.1 Managementul de proiect pentru obiectivul de investiţii"]
[null,null,null,null,"3.7.2 Auditul financiar"]
["3.8",null,null,null,"Cheltuieli pentru asistenţă tehnică",null,null,null,null,null,null,null,null,null,null,null,null,null,null,null,null,null,null,null,null,null,null,null,null,null,null,null,null,null,null,null,null,null,null,null,null,null,{"$f":"AQ734+AQ737","v":0},null,null,null,null,null,null,null,null,{"$f":"AZ734+AZ737","v":0}]
[null,null,null,null,"3.8.1. Asistenţă tehnică din partea proiectantului",null,null,null,null,null,null,null,null,null,null,null,null,null,null,null,null,null,null,null,null,null,null,null,null,null,null,null,null,null,null,null,null,null,null,null,null,null,{"$f":"SUM(AQ735:AY736)","v":0},null,null,null,null,null,null,null,null,{"$f":"SUM(AZ735:BI736)","v":0}]
[null,null,null,null,"\n1.1. pe perioada de execuţie a lucrărilor"]
[null,null,null,null,"1.2. pentru participarea proiectantului la fazele incluse în programul de control al lucrărilor de execuţie, avizat de către Inspectoratul de Stat în Construcţii"]
[null,null,null,null,"3.8.2 Dirigenţie de şantier, asigurată de personal tehnic de specialitate, autorizat"]
["Total valoare fără TVA",null,null,null,null,null,null,null,null,null,null,null,null,null,null,null,null,null,null,null,null,null,null,null,null,null,null,null,null,null,null,null,null,null,null,null,null,null,null,null,null,null,{"$f":"AQ702+AQ706+AQ716+AQ717+AQ718+AQ725+AQ730+AQ733","v":0},null,null,null,null,null,null,null,null,{"$f":"AZ702+AZ706+AZ716+AZ717+AZ718+AZ725+AZ730+AZ733","v":0}]
["Valoare TVA (aferentă cheltuielilor eligibile şi neeligibile)"]
["TOTAL DEVIZ FINANCIAR 1 (inclusiv TVA)",null,null,null,null,null,null,null,null,null,null,null,null,null,null,null,null,null,null,null,null,null,null,null,null,null,null,null,null,null,null,null,null,null,null,null,null,null,null,null,null,null,{"$f":"SUM(AQ738:BI739)","v":0}]
[]
[]
[]
[]
[]
[]
[null,null,null,null,null,null,null,"MINISTERUL AGRICULTURII ŞI DEZVOLTĂRII RURALE"]
[null,null,null,null,null,null,null,null,null,null,null,null,null,null,null,null,null,null,null,null,null,null,null,null,null,null,null,null,null,null,null,null,null,null,null,null,null,null,null,null,null,null,"Anexa A2 HG_907"]
[null,null,null,null,null,null,null,"AGENŢIA PENTRU FINANŢAREA INVESTIŢIILOR RURALE"]
[null,null,null,null,null,null,null,null,null,null,null,null,null,null,null,null,null,null,null,null,null,null,null,null,null,null,null,null,null,null,null,null,null,null,null,null,null,null,null,null,null,null,null,null,null,null,null,null,null,null,null,"aprilie 2019"]
[null,null,null,null,null,null,null,"DEVIZUL OBIECTULUI *"]
["Nr.1"]
[]
[]
["Nr. crt.",null,null,null,"Denumire",null,null,null,null,null,null,null,null,null,null,null,null,null,null,null,null,null,null,null,null,null,null,null,null,null,null,null,null,null,null,null,null,null,null,null,null,null,"Valoarea pe categorii de lucrări, fară TVA - EURO"]
[null,null,null,null,"Cap. 4 - Cheltuieli pentru investiţia de bază",null,null,null,null,null,null,null,null,null,null,null,null,null,null,null,null,null,null,null,null,null,null,null,null,null,null,null,null,null,null,null,null,null,null,null,null,null,"Valoare eligibilă",null,null,null,null,null,null,null,null,"Valoare\nneeligibilă"]
["I - LUCRĂRI DE CONSTRUCŢII ŞI INSTALAŢII"]
["4.1",null,null,null,"Construcţii şi instalaţii"]
[null,null,null,null,"4.1.1 Terasamente, sistematizare pe verticală şi amenajări exterioare"]
[null,null,null,null,"4.1.2 Rezistenţă"]
[null,null,null,null,"4.1.3 Arhitectură"]
[null,null,null,null,"4.1.4 Instalaţii"]
[null,null,null,null,"TOTAL I ( fără TVA)",null,null,null,null,null,null,null,null,null,null,null,null,null,null,null,null,null,null,null,null,null,null,null,null,null,null,null,null,null,null,null,null,null,null,null,null,null,{"$f":"SUM(AQ758:AY762)","v":0},null,null,null,null,null,null,null,null,{"$f":"SUM(AZ758:BI762)","v":0}]
["II - MONTAJ"]
["4.2",null,null,null,"Montaj utilaje, echipamente tehnologice şi funcţionale"]
[null,null,null,null,"TOTAL II ( fără TVA)",null,null,null,null,null,null,null,null,null,null,null,null,null,null,null,null,null,null,null,null,null,null,null,null,null,null,null,null,null,null,null,null,null,null,null,null,null,{"$f":"SUM(AQ765)","v":0},null,null,null,null,null,null,null,null,{"$f":"SUM(AZ765)","v":0}]
["III - PROCURARE"]
["4.3",null,null,null,"Utilaje, echipamente tehnologice şi funcţionale care necesită montaj"]
["4.4",null,null,null,"Utilaje, echipamente tehnologice şi funcţionale care nu necesită montaj şi echipamente de transport"]
["4.5",null,null,null,"Dotări"]
["4.6",null,null,null,"Active necorporale"]
[null,null,null,null,"TOTAL III ( fără TVA)",null,null,null,null,null,null,null,null,null,null,null,null,null,null,null,null,null,null,null,null,null,null,null,null,null,null,null,null,null,null,null,null,null,null,null,null,null,{"$f":"SUM(AQ768:AY771)","v":0},null,null,null,null,null,null,null,null,{"$f":"SUM(AZ768:BI771)","v":0}]
["TOTAL ( TOTAL I + TOTAL II +TOTAL III) fără TVA",null,null,null,null,null,null,null,null,null,null,null,null,null,null,null,null,null,null,null,null,null,null,null,null,null,null,null,null,null,null,null,null,null,null,null,null,null,null,null,null,null,{"$f":"AQ772+AQ766+AQ763","v":0},null,null,null,null,null,null,null,null,{"$f":"AZ772+AZ766+AZ763","v":0}]
["TVA aferent cheltuielilor eligibile şi neeligibile"]
["TOTAL DEVIZ PE OBIECT (inclusiv TVA)",null,null,null,null,null,null,null,null,null,null,null,null,null,null,null,null,null,null,null,null,null,null,null,null,null,null,null,null,null,null,null,null,null,null,null,null,null,null,null,null,null,{"$f":"AQ773+AZ773+AQ774+AZ774","v":0}]
[]
[null,"*) Se înscrie denumirea obiectului de construcţie sau intervenţie"]
[]
[]
[]
[]
[]
[]
[null,null,null,null,null,null,null,"MINISTERUL AGRICULTURII ŞI DEZVOLTĂRII RURALE",null,null,null,null,null,null,null,null,null,null,null,null,null,null,null,null,null,null,null,null,null,null,null,null,null,null,null,null,null,null,null,null,null,null,"Anexa A3 HG_907"]
[]
[null,null,null,null,null,null,null,"AGENŢIA PENTRU FINANŢAREA INVESTIŢIILOR RURALE",null,null,null,null,null,null,null,null,null,null,null,null,null,null,null,null,null,null,null,null,null,null,null,null,null,null,null,null,null,null,null,null,null,null,null,null,null,null,null,null,null,null,null,"aprilie 2019"]
[]
["Nr.1"]
[]
[]
["Deviz capitolul 2- Cheltuieli pentru asigurarea utilităţilor necesare obiectivului - EURO"]
["Nr. crt.",null,null,null,"Specificaţie",null,null,null,null,null,null,null,null,null,null,null,null,null,null,null,null,null,null,null,null,null,null,null,null,null,null,null,null,null,null,null,null,null,null,null,null,null,"Valoare eligibilă",null,null,null,null,null,null,null,null,"Valoare\nneeligibilă"]
[1,null,null,null,"Alimentare cu apă"]
[2,null,null,null,"Canalizare"]
[3,null,null,null,"Alimentare cu gaze naturale"]
[4,null,null,null,"Alimentare cu agent termic"]
[5,null,null,null,"Alimentare cu energie electrică"]
[6,null,null,null,"Telecomunicaţii (telefonie, radio-tv,etc)"]
[7,null,null,null,"Drumuri de acces"]
[8,null,null,null,"Căi ferate industriale"]
[9,null,null,null,"Alte utilitati"]
[null,null,null,null,"TOTAL DEVIZ CAPITOLUL 2",null,null,null,null,null,null,null,null,null,null,null,null,null,null,null,null,null,null,null,null,null,null,null,null,null,null,null,null,null,null,null,null,null,null,null,null,null,{"$f":"SUM(AQ793:AY801)","v":0},null,null,null,null,null,null,null,null,{"$f":"SUM(AZ793:BI801)","v":0}]
[null,null,null,null,"Valoare TVA aferentă cheltuielilor eligibile şi neeligibile"]
["TOTAL DEVIZ CAPITOLUL 2 (inclusiv TVA)",null,null,null,null,null,null,null,null,null,null,null,null,null,null,null,null,null,null,null,null,null,null,null,null,null,null,null,null,null,null,null,null,null,null,null,null,null,null,null,null,null,{"$f":"AQ802+AZ802+AQ803+AZ803","v":0}]
[]
[" Deviz capitolul 5 - Alte cheltuieli - EURO"]
["Nr. crt.",null,null,null,"Specificaţie",null,null,null,null,null,null,null,null,null,null,null,null,null,null,null,null,null,null,null,null,null,null,null,null,null,null,null,null,null,null,null,null,null,null,null,null,null,"Valoare eligibilă",null,null,null,null,null,null,null,null,"Valoare\nneeligibilă"]
[]
["5.1 ",null,null,null,"Organizare de şantier",null,null,null,null,null,null,null,null,null,null,null,null,null,null,null,null,null,null,null,null,null,null,null,null,null,null,null,null,null,null,null,null,null,null,null,null,null,{"$f":"SUM(AQ810:AY811)","v":0},null,null,null,null,null,null,null,null,{"$f":"SUM(AZ810:BI811)","v":0}]
[null,null,null,null,"5.1.1 Lucrări de construcţii şi instalaţii aferente organizării de şantier"]
[null,null,null,null,"5.1.2 Cheltuieli conexe organizării de şantier"]
["5.2",null,null,null,"Comisioane, cote, taxe, costul creditului",null,null,null,null,null,null,null,null,null,null,null,null,null,null,null,null,null,null,null,null,null,null,null,null,null,null,null,null,null,null,null,null,null,null,null,null,null,{"$f":"SUM(AQ814:AY817)","v":0},null,null,null,null,null,null,null,null,{"$f":"SUM(AZ813:BI817)","v":0}]
[null,null,null,null,"5.2.1. Comisioanele şi dobânzile aferente creditului băncii finanţatoare"]
[null,null,null,null,"5.2.2. Cota aferentă ISC pentru controlul calităţii lucrărilor de construcţii"]
[null,null,null,null,"5.2.3. Cota aferentă ISC pentru controlul statului în amenajarea teritoriului, urbanism şi pentru autorizarea lucrărilor de construcţii"]
[null,null,null,null,"5.2.4. Cota aferentă Casei Sociale a Constructorilor - CSC"]
[null,null,null,null,"5.2.5. Taxe pentru acorduri, avize conforme şi autorizaţia de construire/ desfiinţare"]
["5.3",null,null,null," Cheltuieli diverse si neprevazute"]
["5.4",null,null,null," Cheltuieli pentru informare şi publicitate"]
[null,null,null,null,"TOTAL DEVIZ CAPITOLUL 5",null,null,null,null,null,null,null,null,null,null,null,null,null,null,null,null,null,null,null,null,null,null,null,null,null,null,null,null,null,null,null,null,null,null,null,null,null,{"$f":"AQ809+AQ812+AQ818","v":0},null,null,null,null,null,null,null,null,{"$f":"AZ809+AZ812+AZ818+AZ819","v":0}]
[null,null,null,null,"VALOARE TVA aferentă cheltuielilor eligibile şi neeligibile"]
[null,null,null,null,"TOTAL DEVIZ CAPITOLUL 5 ( inclusiv TVA)",null,null,null,null,null,null,null,null,null,null,null,null,null,null,null,null,null,null,null,null,null,null,null,null,null,null,null,null,null,null,null,null,null,null,null,null,null,{"$f":"AQ820+AZ820+AQ821+AZ821","v":0}]
[]
[]
[]
[]
[]
[]
["MINISTERUL AGRICULTURII ŞI DEZVOLTĂRII RURALE",null,null,null,null,null,null,null,null,null,null,null,null,null,null,null,null,null,null,null,null,null,null,null,null,null,null,null,null,null,null,null,null,null,null,null,null,null,null,null,null,null,"Anexa A4"]
["AGENŢIA PENTRU FINANŢAREA INVESTIŢIILOR RURALE"]
[]
["Deviz cheltuieli culturi - EURO - Culturi perene"]
["Nr. crt.",null,null,null,"Specificaţie",null,null,null,null,null,null,null,null,null,null,null,null,null,null,null,null,null,null,null,null,null,null,null,null,null,null,null,null,null,null,null,null,null,null,null,null,null,"Valoare eligibilă",null,null,null,null,null,null,null,null,"Valoare\nneeligibilă"]
["I. LUCRĂRI DE ÎNFIINŢARE PLANTAŢIE"]
[1,null,null,null,"Subcapitolul I Lucrări de pregătire a terenului"]
[null,null,null,null,"1. Manoperă"]
["a"]
[null,null,null,null,"Total (1)",null,null,null,null,null,null,null,null,null,null,null,null,null,null,null,null,null,null,null,null,null,null,null,null,null,null,null,null,null,null,null,null,null,null,null,null,null,{"$f":"AQ837","v":0},null,null,null,null,null,null,null,null,{"$f":"AZ837","v":0}]
[null,null,null,null,"2. Lucrări mecanice"]
["a"]
["b"]
["c"]
[null,null,null,null,"Total (2)",null,null,null,null,null,null,null,null,null,null,null,null,null,null,null,null,null,null,null,null,null,null,null,null,null,null,null,null,null,null,null,null,null,null,null,null,null,{"$f":"SUM(AQ840:AY842)","v":0},null,null,null,null,null,null,null,null,{"$f":"SUM(AZ840:BI842)","v":0}]
[null,null,null,null,"Total subcapitol I (1+2)",null,null,null,null,null,null,null,null,null,null,null,null,null,null,null,null,null,null,null,null,null,null,null,null,null,null,null,null,null,null,null,null,null,null,null,null,null,{"$f":"AQ838+AQ843","v":0},null,null,null,null,null,null,null,null,{"$f":"AZ838+AZ843","v":0}]
[2,null,null,null,"Subcapitolul II Înfiinţarea plantaţiei"]
["Atenţie! Sunt eligibile numai cheltuielile cu servicii executate de terţi."]
[null,null,null,null,"1. Manoperă"]
["a"]
["b"]
["c"]
["d"]
["e"]
["f"]
["g"]
["h"]
["i"]
[null,null,null,null,"Total (1)",null,null,null,null,null,null,null,null,null,null,null,null,null,null,null,null,null,null,null,null,null,null,null,null,null,null,null,null,null,null,null,null,null,null,null,null,null,{"$f":"SUM(AQ848:AY856)","v":0},null,null,null,null,null,null,null,null,{"$f":"SUM(AZ848:BI856)","v":0}]
[null,null,null,null,"2. Lucrări mecanice"]
["a"]
["b"]
["c"]
["d"]
[null,null,null,null,"Total (2)",null,null,null,null,null,null,null,null,null,null,null,null,null,null,null,null,null,null,null,null,null,null,null,null,null,null,null,null,null,null,null,null,null,null,null,null,null,{"$f":"SUM(AQ859:AY862)","v":0},null,null,null,null,null,null,null,null,{"$f":"SUM(AZ859:BI862)","v":0}]
[null,null,null,null,"3. Materii şi materiale "]
["a"]
["b"]
["c"]
["d"]
["e"]
[null,null,null,null,"Total (3)",null,null,null,null,null,null,null,null,null,null,null,null,null,null,null,null,null,null,null,null,null,null,null,null,null,null,null,null,null,null,null,null,null,null,null,null,null,{"$f":"SUM(AQ865:AY869)","v":0},null,null,null,null,null,null,null,null,{"$f":"SUM(AZ865:BI869)","v":0}]
[null,null,null,null,"Total subcapitol II (1+2+3)",null,null,null,null,null,null,null,null,null,null,null,null,null,null,null,null,null,null,null,null,null,null,null,null,null,null,null,null,null,null,null,null,null,null,null,null,null,{"$f":"AQ857+AQ863+AQ870","v":0},null,null,null,null,null,null,null,null,{"$f":"AZ857+AZ863+AZ870","v":0}]
[3,null,null,null,"Subcapitolul III Întreţinere plantaţie în anul 1   ATENŢIE! Cheltuieli neeligibile"]
[null,null,null,null,"1. Manoperă"]
[null,null,null,null,"Total (1)"]
[null,null,null,null,"2. Lucrări mecanice"]
[null,null,null,null,"Total (2)"]
[null,null,null,null,"3. Materii şi materiale "]
[null,null,null,null,"Total (3)"]
[null,null,null,null,"Total subcapitol III (1+2+3)",null,null,null,null,null,null,null,null,null,null,null,null,null,null,null,null,null,null,null,null,null,null,null,null,null,null,null,null,null,null,null,null,null,null,null,null,null,null,null,null,null,null,null,null,null,null,{"$f":"AZ874+AZ876+AZ878","v":0}]
[4,null,null,null,"Subcapitolul IV Întreţinere plantaţie în anul 2   ATENŢIE! Cheltuieli neeligibile"]
[null,null,null,null,"1. Manoperă"]
[null,null,null,null,"Total (1)"]
[null,null,null,null,"2. Lucrări mecanice"]
[null,null,null,null,"Total (2)"]
[null,null,null,null,"3. Materii şi materiale "]
[null,null,null,null,"Total (3)"]
[null,null,null,null,"Total subcapitol IV (1+2+3)",null,null,null,null,null,null,null,null,null,null,null,null,null,null,null,null,null,null,null,null,null,null,null,null,null,null,null,null,null,null,null,null,null,null,null,null,null,null,null,null,null,null,null,null,null,null,{"$f":"AZ882+AZ884+AZ886","v":0}]
[5,null,null,null,"Subcapitolul V Instalat sistem susţinere şi împrejmuire"]
[null,null,null,null,"1. Manoperă"]
["a"]
["b"]
["c"]
["d"]
["e"]
["f"]
["g"]
[null,null,null,null,"Total (1)",null,null,null,null,null,null,null,null,null,null,null,null,null,null,null,null,null,null,null,null,null,null,null,null,null,null,null,null,null,null,null,null,null,null,null,null,null,{"$f":"SUM(AQ890:AY896)","v":0},null,null,null,null,null,null,null,null,{"$f":"SUM(AZ890:BI896)","v":0}]
[null,null,null,null,"2. Materii şi materiale"]
["a"]
["b"]
["c"]
["d"]
[null,null,null,null,"Total (2)",null,null,null,null,null,null,null,null,null,null,null,null,null,null,null,null,null,null,null,null,null,null,null,null,null,null,null,null,null,null,null,null,null,null,null,null,null,{"$f":"SUM(AQ899:AY902)","v":0},null,null,null,null,null,null,null,null,{"$f":"SUM(AZ899:BI902)","v":0}]
[null,null,null,null,"Total subcapitol V (1+2)",null,null,null,null,null,null,null,null,null,null,null,null,null,null,null,null,null,null,null,null,null,null,null,null,null,null,null,null,null,null,null,null,null,null,null,null,null,{"$f":"AQ897+AQ903","v":0},null,null,null,null,null,null,null,null,{"$f":"AZ897+AZ903","v":0}]
["TOTAL ELIGIBIL / NEELIGIBIL FĂRĂ TVA",null,null,null,null,null,null,null,null,null,null,null,null,null,null,null,null,null,null,null,null,null,null,null,null,null,null,null,null,null,null,null,null,null,null,null,null,null,null,null,null,null,{"$f":"AQ844+AQ871+AQ904","v":0},null,null,null,null,null,null,null,null,{"$f":"AZ844+AZ871+AZ879+AZ887+AZ904","v":0}]
["VALOARE TVA aferentă cheltuielilor eligibile şi neeligibile"]
["TOTAL DEVIZ CU TVA",null,null,null,null,null,null,null,null,null,null,null,null,null,null,null,null,null,null,null,null,null,null,null,null,null,null,null,null,null,null,null,null,null,null,null,null,null,null,null,null,null,{"$f":"SUM(AQ905:BI906)","v":0}]
[]
["MINISTERUL AGRICULTURII ŞI DEZVOLTĂRII RURALE",null,null,null,null,null,null,null,null,null,null,null,null,null,null,null,null,null,null,null,null,null,null,null,null,null,null,null,null,null,null,null,null,null,null,null,null,null,null,null,null,null,"Anexa A5"]
["AGENŢIA PENTRU FINANŢAREA INVESTIŢIILOR RURALE"]
["VALORI PENTRU COSTURI STANDARD ŞI CONTRIBUŢIE ÎN NATURĂ, APLICABILE INVESTIŢIILOR\nprivind înfiinţarea plantaţiilor de struguri de masă\nMĂSURA M1/2A"]
[]
[]
[]
[null,"Înfiinţare plantaţii viticole pentru struguri de masă"]
[]
[null,"Desime de plantaţie (viţe/ha):"]
[]
[null,null,null,null,null,null,null,null,null,null,null,null,null,"Costuri în Euro / ha"]
["Nr. crt.",null,"Specificare",null,null,null,null,null,null,null,null,null,null,"în regie proprie",null,null,null,"Suprafaţa (ha)",null,null,null,"Total costuri (euro)",null,null,null,"în  antrepriză",null,null,null,"Suprafaţa (ha)",null,null,null,null,"Total costuri (euro)",null,null,null,"în regie proprie",null,null,null,"Suprafaţa (ha)",null,null,null,"Total costuri (euro)",null,null,null,"în antrepriză",null,null,null,"Suprafaţa (ha)",null,null,"Total costuri (euro)"]
[null,null,"Desime de plantare: viţe/ha",null,null,null,null,null,null,null,null,null,null,"<= 3333",null,null,null,null,null,null,null,null,null,null,null,null,null,null,null,null,null,null,null,null,null,null,null,null,"peste 3333 şi <= 4167"]
[1,null,"Proiectare, analize sol",null,null,null,null,null,null,null,null,null,null,350,null,null,null,null,null,null,null,{"$f":"N922*R922","v":0},null,null,null,385,null,null,null,null,null,null,null,null,{"$f":"Z922*AD922","v":0},null,null,null,350,null,null,null,null,null,null,null,{"$f":"AM922*AQ922","v":0},null,null,null,385,null,null,null,null,null,null,{"$f":"AY922*BC922","v":0}]
[2,null,"Pregătirea terenului:",null,null,null,null,null,null,null,null,null,null,758.42,null,null,null,null,null,null,null,{"$f":"N923*R923","v":0},null,null,null,834.26,null,null,null,null,null,null,null,null,{"$f":"Z923*AD923","v":0},null,null,null,758.42,null,null,null,null,null,null,null,{"$f":"AM923*AQ923","v":0},null,null,null,834.26,null,null,null,null,null,null,{"$f":"AY923*BC923","v":0}]
[null,null,"din care: - lucrări mecanice",null,null,null,null,null,null,null,null,null,null,679.52,null,null,null,null,null,null,null,0,null,null,null,747.47,null,null,null,null,null,null,null,null,0,null,null,null,679.52,null,null,null,null,null,null,null,0,null,null,null,747.47,null,null,null,null,null,null,0]
[null,null,"               - lucrări manuale",null,null,null,null,null,null,null,null,null,null,78.900000000000006,null,null,null,null,null,null,null,0,null,null,null,86.79,null,null,null,null,null,null,null,null,0,null,null,null,78.900000000000006,null,null,null,null,null,null,null,0,null,null,null,86.79,null,null,null,null,null,null,0]
[3,null,"Fertilizarea solului",null,null,null,null,null,null,null,null,null,null,737.66,null,null,null,null,null,null,null,0,null,null,null,811.42,null,null,null,null,null,null,null,null,0,null,null,null,737.66,null,null,null,null,null,null,null,0,null,null,null,811.42,null,null,null,null,null,null,0]
[4,null,"Sistem de susţinere",null,null,null,null,null,null,null,null,null,null,5605.61,null,null,null,null,null,null,null,0,null,null,null,6166.17,null,null,null,null,null,null,null,null,0,null,null,null,10991.22,null,null,null,null,null,null,null,0,null,null,null,12090.35,null,null,null,null,null,null,0]
[5,null,"Instalat sistem de susţinere",null,null,null,null,null,null,null,null,null,null,826.78,null,null,null,null,null,null,null,0,null,null,null,909.46,null,null,null,null,null,null,null,null,0,null,null,null,665.53,null,null,null,null,null,null,null,0,null,null,null,732.08,null,null,null,null,null,null,0]
[null,null,"din care: - lucrări mecanice",null,null,null,null,null,null,null,null,null,null,41.29,null,null,null,null,null,null,null,0,null,null,null,45.42,null,null,null,null,null,null,null,null,0,null,null,null,44.7,null,null,null,null,null,null,null,0,null,null,null,49.17,null,null,null,null,null,null,0]
[null,null,"               - lucrări manuale",null,null,null,null,null,null,null,null,null,null,785.49,null,null,null,null,null,null,null,0,null,null,null,864.04,null,null,null,null,null,null,null,null,0,null,null,null,620.83000000000004,null,null,null,null,null,null,null,0,null,null,null,682.91,null,null,null,null,null,null,0]
[6,null,"Echipament de irigare localizată",null,null,null,null,null,null,null,null,null,null,2527.41,null,null,null,null,null,null,null,0,null,null,null,2780.15,null,null,null,null,null,null,null,null,0,null,null,null,2527.41,null,null,null,null,null,null,null,0,null,null,null,2780.15,null,null,null,null,null,null,0]
[7,null,"Instalat sistem de irigare localizată",null,null,null,null,null,null,null,null,null,null,379.11,null,null,null,null,null,null,null,0,null,null,null,417.02,null,null,null,null,null,null,null,null,0,null,null,null,379.11,null,null,null,null,null,null,null,0,null,null,null,417.02,null,null,null,null,null,null,0]
[8,null,"Sistem plasă antigrindină",null,null,null,null,null,null,null,null,null,null,7824.64,null,null,null,null,null,null,null,0,null,null,null,8607.1,null,null,null,null,null,null,null,null,0,null,null,null,16327.96,null,null,null,null,null,null,null,0,null,null,null,17960.759999999998,null,null,null,null,null,null,0]
[9,null,"Instalat sistem antigrindină",null,null,null,null,null,null,null,null,null,null,1173.7,null,null,null,null,null,null,null,0,null,null,null,1291.07,null,null,null,null,null,null,null,null,0,null,null,null,2449.19,null,null,null,null,null,null,null,0,null,null,null,2694.11,null,null,null,null,null,null,0]
[10,null,"Sistem protecţie antiploaie",null,null,null,null,null,null,null,null,null,null,5250,null,null,null,null,null,null,null,0,null,null,null,5775,null,null,null,null,null,null,null,null,0,null,null,null,8400,null,null,null,null,null,null,null,0,null,null,null,9240,null,null,null,null,null,null,0]
[11,null,"Instalat sistem antiploaie",null,null,null,null,null,null,null,null,null,null,787.5,null,null,null,null,null,null,null,0,null,null,null,866.25,null,null,null,null,null,null,null,null,0,null,null,null,1260,null,null,null,null,null,null,null,0,null,null,null,1386,null,null,null,null,null,null,0]
[12,null,"Defrişare",null,null,null,null,null,null,null,null,null,null,713.42,null,null,null,null,null,null,null,0,null,null,null,784.76,null,null,null,null,null,null,null,null,0,null,null,null,713.42,null,null,null,null,null,null,null,0,null,null,null,784.76,null,null,null,null,null,null,0]
[null,null,"din care: - lucrări mecanice",null,null,null,null,null,null,null,null,null,null,98.57,null,null,null,null,null,null,null,0,null,null,null,108.43,null,null,null,null,null,null,null,null,0,null,null,null,98.57,null,null,null,null,null,null,null,0,null,null,null,108.43,null,null,null,null,null,null,0]
[null,null,"               - lucrări manuale",null,null,null,null,null,null,null,null,null,null,608.11,null,null,null,null,null,null,null,0,null,null,null,668.91,null,null,null,null,null,null,null,null,0,null,null,null,608.11,null,null,null,null,null,null,null,0,null,null,null,668.91,null,null,null,null,null,null,0]
[null,null,"               - materiale",null,null,null,null,null,null,null,null,null,null,6.74,null,null,null,null,null,null,null,0,null,null,null,7.42,null,null,null,null,null,null,null,null,0,null,null,null,6.74,null,null,null,null,null,null,null,0,null,null,null,7.42,null,null,null,null,null,null,0]
[null,null,"Total:",null,null,null,null,null,null,null,null,null,null,null,null,null,null,null,null,null,null,{"$f":"SUM(V922:Y940)","v":0},null,null,null,null,null,null,null,null,null,null,null,null,{"$f":"SUM(AI922:AL940)","v":0},null,null,null,null,null,null,null,null,null,null,null,{"$f":"SUM(AU922:AX940)","v":0},null,null,null,null,null,null,null,null,null,null,{"$f":"SUM(BF922:BJ940)","v":0}]
[]
["Cost unitar în EURO per material săditior şi plantare",null,null,null,null,null,null,null,null,null,null,null,null,"în regie proprie",null,null,null,"Suprafaţa (ha)",null,null,null,"Total costuri (euro)",null,null,null,"în  antrepriză",null,null,null,"Suprafaţa (ha)",null,null,null,null,"Total costuri (euro)",null,null,null,"în regie proprie",null,null,null,"Suprafaţa (ha)",null,null,null,"Total costuri (euro)",null,null,null,"în antrepriză",null,null,null,"Suprafaţa (ha)",null,null,"Total costuri (euro)"]
[13,null,"Material săditor",null,null,null,null,null,null,null,null,null,null,1.58,null,null,null,null,null,null,null,{"$f":"N944*R944","v":0},null,null,null,1.73,null,null,null,null,null,null,null,null,{"$f":"Z944*AD944","v":0},null,null,null,1.59,null,null,null,null,null,null,null,{"$f":"AM944*AQ944","v":0},null,null,null,1.75,null,null,null,null,null,null,{"$f":"AY944*BC944","v":0}]
[14,null,"Plantarea viţei de vie (lucrări mecanice, lucrări manuale şi alte materiale)",null,null,null,null,null,null,null,null,null,null,1.19,null,null,null,null,null,null,null,{"$f":"N945*R945","v":0},null,null,null,1.3,null,null,null,null,null,null,null,null,{"$f":"Z945*AD945","v":0},null,null,null,1.21,null,null,null,null,null,null,null,{"$f":"AM945*AQ945","v":0},null,null,null,1.33,null,null,null,null,null,null,{"$f":"AY945*BC945","v":0}]
[null,null,"Total:",null,null,null,null,null,null,null,null,null,null,null,null,null,null,null,null,null,null,{"$f":"SUM(V944:Y945)","v":0},null,null,null,null,null,null,null,null,null,null,null,null,{"$f":"SUM(AI944:AL945)","v":0},null,null,null,null,null,null,null,null,null,null,null,{"$f":"SUM(AU944:AX945)","v":0},null,null,null,null,null,null,null,null,null,null,{"$f":"SUM(BF944:BJ945)","v":0}]
[]
[null,null,null,null,null,null,null,null,null,null,null,null,null,"Costuri în Euro / ml"]
["Nr. crt.",null,"Specificare",null,null,null,null,null,null,null,null,null,null,"în regie proprie",null,null,null,"Suprafaţa (ha)",null,null,null,"Total costuri (euro)",null,null,null,"în  antrepriză",null,null,null,"Suprafaţa (ha)",null,null,null,null,"Total costuri (euro)",null,null,null,"în regie proprie",null,null,null,"Suprafaţa (ha)",null,null,null,"Total costuri (euro)",null,null,null,"în antrepriză",null,null,null,"Suprafaţa (ha)",null,null,"Total costuri (euro)"]
[15,null,"Sistem împrejmuire",null,null,null,null,null,null,null,null,null,null,12,null,null,null,null,null,null,null,{"$f":"N950*R950","v":0},null,null,null,13.2,null,null,null,null,null,null,null,null,{"$f":"Z950*AD950","v":0},null,null,null,12,null,null,null,null,null,null,null,{"$f":"AM950*AQ950","v":0},null,null,null,13.2,null,null,null,null,null,null,{"$f":"AY950*BC950","v":0}]
[16,null,"Instalat sistem împrejmuire",null,null,null,null,null,null,null,null,null,null,2,null,null,null,null,null,null,null,{"$f":"N951*R951","v":0},null,null,null,2.2000000000000002,null,null,null,null,null,null,null,null,{"$f":"Z951*AD951","v":0},null,null,null,2,null,null,null,null,null,null,null,{"$f":"AM951*AQ951","v":0},null,null,null,2.2000000000000002,null,null,null,null,null,null,{"$f":"AY951*BC951","v":0}]
[null,null,"Total:",null,null,null,null,null,null,null,null,null,null,null,null,null,null,null,null,null,null,{"$f":"SUM(V950:Y951)","v":0},null,null,null,null,null,null,null,null,null,null,null,null,{"$f":"SUM(AI950:AL951)","v":0},null,null,null,null,null,null,null,null,null,null,null,{"$f":"SUM(AU950:AX951)","v":0},null,null,null,null,null,null,null,null,null,null,{"$f":"SUM(BF950:BJ951)","v":0}]
[null,null,"Total general:",null,null,null,null,null,null,null,null,null,null,null,null,null,null,null,null,null,null,{"$f":"V941+V946+V952","v":0},null,null,null,null,null,null,null,null,null,null,null,null,{"$f":"AI941+AI946+AI952","v":0},null,null,null,null,null,null,null,null,null,null,null,{"$f":"AU941+AU946+AU952","v":0},null,null,null,null,null,null,null,null,null,null,0]
["Notă: 1. Costurile nu conţin TVA"]
["MINISTERUL AGRICULTURII ŞI DEZVOLTĂRII RURALE",null,null,null,null,null,null,null,null,null,null,null,null,null,null,null,null,null,null,null,null,null,null,null,null,null,null,null,null,null,"SECTIUNE SPECIFICĂ MĂSURA M1/2A"]
["AGENŢIA PENTRU FINANŢAREA INVESTIŢIILOR RURALE"]
[]
["D. ALTE INFORMAȚII :"]
["Programarea proiectului:"]
["Numar luni de implementare"]
[]
["E. LISTA DOCUMENTELOR ANEXATE PROIECTELOR AFERENTE MĂSURII M1/2A",null,null,null,null,null,null,null,null,null,null,null,null,null,null,null,null,null,null,null,null,null,null,null,null,null,null,null,null,null,null,null,null,null,null,null,null,null,null,null,null,null,null,null,null,null,null,null,null,null,null,null,null,null,null,"OPIS"]
[null,null,null,null,null,null,null,null,null,null,null,null,null,null,null,null,null,null,null,null,null,null,null,null,null,null,null,null,null,null,null,null,null,null,null,null,null,null,null,null,null,null,null,null,null,null,null,null,null,null,null,null,null,null,null,"documente"]
["A se anexa documentele în ordinea de mai jos:"]
["Lista documente",null,null,null,null,null,null,null,null,null,null,null,null,null,null,null,null,null,null,null,null,null,null,null,null,null,null,null,null,null,"Obligatoriu pentru toate proiectele",null,null,null,null,"Obligatoriu, dacă proiectul impune",null,null,null,null,null,null,"PAGINA de la - până la",null,null,null,null,null,null,null,"Obligatoriu pentru toate proiectele",null,null,null,null,"Obligatoriu, dacă proiectul impune"]
["ETAPA:",null,null,null,null,null,null,null,null,null,null,null,null,null,null,null,null,null,null,null,null,null,null,null,null,null,null,null,null,null,"DEPUNERE",null,null,null,null,null,null,null,null,null,null,null,null,null,null,null,null,null,null,null,"CONTRACTARE"]
["1. a) STUDIUL DE FEZABILITATE însotit de Proiectul de plantare avizat de Stațiunea Viticolă (dacă este cazul)\n(pentru achiziţiile simple se vor completa doar punctele care vizează acest tip de investiţie)"]
["1.b) EXPERTIZA TEHNICĂ DE SPECIALITATE ASUPRA CONSTRUCŢIEI\nEXISTENTE"]
["1.c) RAPORTUL PRIVIND STADIUL FIZIC AL LUCRĂRILOR"]
["1.d) Anexa C – pentru solicitantii cu statut juridic PFA, I.I. sau I.F."]
["1.e) Anexa B – pentru celelalte categorii de statut juridic"]
["2. SITUAŢIILE FINANCIARE (bilanţ - formularul 10, contul de profit şi pierderi - formularul 20, formularele 30 și 40), precedente anului depunerii proiectului înregistrate la Administraţia Financiară. În cazul în care solicitantul este înfiinţat cu cel puţin trei ani financiari înainte de anul depunerii cererii de finanţare se vor depune ultimile trei situaţii financiare sau"]
["Declaraţa de inactivitate înregistrata la Administraţia Financiară, în cazul solicitanţilor care nu au desfăşurat activitate anterior depunerii proiectului sau"]
["Pentru persoane fizice autorizate, intreprinderi familiale și intreprinderi individuale:\nDeclarație privind veniturile realizate in anul precedent depunerii proiectului inregistrata la Administratia Financiara"]
["3.a1). DOCUMENTE SOLICITATE PENTRU TERENUL AGRICOL AFERENT PLANTAȚIILOR DE VIȚĂ DE VIE PENTRU STRUGURI DE MASĂ EXISTENTE/NOU ÎNFIINȚATE ȘI A ALTOR PLANTAȚII:\nCOPIE DUPĂ DOCUMENTUL AUTENTIFICAT LA NOTAR CARE\nATESTĂ DREPTUL DE PROPRIETATE asupra terenului şi/ sau tabel centralizator emis de Primărie semnat de persoanele autorizate conform legii, conţinând sumarul contractelor de arendare cu suprafeţele luate în arendă pe categorii de folosinţă, perioada de arendare care trebuie să fie de cel puţin 10 ani începând cu anul depunerii cererii de finanţare şi/ sau contractul de concesiune care să certifice dreptul de folosinţă al terenului cel puţin 10 ani începând cu anul depunerii cererii de finanţare."]
["Contractul de concesiune va fi însoţit de adresa emisă de concedent şi\ntrebuie să conţină:\n- situaţia privind respectarea clauzelor contractuale și dacă este în graficul de realizare a investiţiilor prevăzute în contract şi alte clauze;\n· suprafaţa concesionată la zi (dacă pentru suprafaţa concesionată există solicitări privind retrocedarea sau diminuarea, și dacă da, să se menţioneze care este suprafaţa supusă acestui proces)\n- Pentru cooperative agricole, societăţi cooperative agricole, grupuri de\nproducatori, se vor prezenta documentele prevăzute mai sus pentru toţi membrii fermieri ai acestor solicitanţi"]
["a2) În cazul Societăţilor agricole se ataşează tabelul centralizator emis de catre Societatea agricolă, care va cuprinde suprafeţele aduse în folosinţa societăţii, numele membrilor fermieri care le deţin în proprietate şi perioada pe care terenul a fost adus în folosinţa societăţii, care trebuie să fie de minim 10 ani."]
["b) DOCUMENTE SOLICITATE PENTRU IMOBILUL (CLĂDIRILE ŞI/ SAU\nTERENURILE) pe care sunt/ vor fi realizate investiţiile:\n\nb1) ACTUL DE PROPRIETATE ASUPRA CLĂDIRII sau CONTRACT DE CONCESIUNE SAU ALT DOCUMENT ÎNCHEIAT LA NOTARIAT care să certifice dreptul de folosinţă asupra clădirii pe o perioadă de cel puțin 10 ani începând cu anul depunerii cererii de finanţare, care să confere titularului dreptul de execuție a lucrărilor de construcții, în conformitate cu prevederile Legii nr.50/1991, republicată, cu modificările și completările ulterioare, având în vedere tipul de investiție propusă prin proiect;"]
["b2). DOCUMENTUL CARE ATESTĂ DREPTUL DE PROPRIETATE ASUPRA TERENULUI, CONTRACT DE CONCESIUNE SAU ALT DOCUMENT ÎNCHEIAT LA NOTARIAT, care să certifice dreptul de folosinţă al terenului pe o perioadă de cel puțin 10 ani începând cu anul depunerii cererii de finanțare, care să confere titularului dreptul de execuție a lucrărilor de construcții, în conformitate cu prevederile Legii 50/1991, republicată,cu modificările și completările ulterioare, având în vedere tipul de investiție propusă prin proiect;"]
["Contractul de concesiune va fi însoţit de adresa emisă de concedent şi trebuie să conţină:\n- situaţia privind respectarea clauzelor contractuale și dacă este în graficul de realizare a investiţiilor prevăzute în contract şi alte clauze;\n- suprafaţa concesionată la zi (dacă pentru suprafaţa concesionată există solicitări privind retrocedarea sau diminuarea, și dacă da, să se menţioneze care este suprafaţa supusă acestui proces) pentru terenul pe care este amplasată clădirea."]
["b3) DOCUMENT CARE SĂ CERTIFICE CĂ NU AU FOST FINALIZATE\nLUCRĂRILE DE CADASTRU, pentru proiectele care vizează investiţii de\nlucrări privind construcţiile noi sau modernizări ale acestora.\nAtentie!**Pentru imobilele cu lucrarile de cadastru finalizate se va completa sectiunea A7 din CF, cu informatiile cadastrale, AFIR rezervandu-si dreptul de a consulta baza de date ANCPI, in vederea obtinerii Extrasului de Carte Funciara."]
["b4) ACORDUL CREDITORULUI PRIVIND EXECUTIA INVESTITIEI ŞI GRAFICUL DE RAMBURSARE A CREDITULUI.\nAtenţie! Se va depune in situatia în care imobilul pe care se execută investiţia nu este liber de sarcini (gajat pentru un credit)."]
["c) DOCUMENT PENTRU EFECTIVUL DE ANIMALE DEŢINUT ÎN\nPROPRIETATE:\n1) EXTRAS DIN REGISTRUL EXPLOATAȚIEI emis de ANSVSA/DSVSA cu cel mult 30 de zile înainte de data depunerii CF, din care să rezulte efectivul de animale deţinut, însoţit de formular de mişcare ANSVSA/DSVSA (Anexa 4 din Normele sanitare veterinare ale Ordinului ANSVSA nr. 40/2010);\nPentru exploataţiile agricole care deţin păsări şi albine - ADEVERINȚĂ\nELIBERATĂ DE MEDICUL VETERINAR DE CIRCUMSCRIPȚIE, emisă cu cel\nmult 30 de zile înainte de data depunerii CF, din care rezultă numărul păsărilor şi al familiilor de albine şi data înscrierii solicitantului în Registrul Exploataţiei. Pentru cooperative agricole, societăţi cooperative agricole, grupuri de producători, se vor prezenta documentele prevăzute la punctul c) pentru toţi membrii acestor solicitanţi."]
["2) PAŞAPORTUL emis de ANZ pentru ecvideele (cabalinele) cu rasă şi origine."]
["4. CERTIFICAT DE URBANISM pentru proiecte care prevăd construcţii (noi, extinderi sau modernizări)."]
["5. DOCUMENT EMIS DE ANPM PENTRU PROIECT (conform protocolului de colaborare intre AFIR - ANPM - GNM)"]
["6.1 CERTIFICATE CARE SĂ ATESTE LIPSA DATORIILOR RESTANTE FISCALE şi sociale, valabile la data incheierii contractului, emise de Direcţia Generală a Finanţelor Publice și de primăriile pe raza cărora îşi au sediul social și puncte de lucru (numai în cazul în care solicitantul este proprietar asupra imobilelor) şi, dacă este cazul, graficul de reeşalonare a datoriilor către bugetul consolidat.\nSolicitantul va prezenta decizia de rambursare aprobată a sumelor negative solicitate la rambursare prin deconturile de TVA și/sau alte documente aprobate pentru soluționarea cererilor de restituire, decizie/documente care au fost aprobate ulterior eliberării certificatului de atestare fiscală, pentru compensarea obligațiilor fiscale de la Sect.A."]
["6.2 CAZIER JUDICIAR AL RESPONSABILULUI LEGAL, valabil la data\nincheierii contractului."]
["7.1 DOCUMENT EMIS DE DSVSA PENTRU PROIECT, conform Protocolului de colaborare dintre AFIR şi ANSVSA publicat pe pagina de internet www.afir.info."]
["7.2 DOCUMENT EMIS DE DSP JUDEŢEANĂ, conform Protocolului de colaborare dintre AFIR şi MS publicat pe pagina de internet www.afir.info."]
["8.1 DOCUMENTE CARE DOVEDESC CAPACITATEA ŞI SURSA DE COFINANŢARE privată a investiţiei emise de o instituţie financiară (extras de cont şi/sau contract de credit acordat in vederea implementarii proiectului)."]
["8.2 ADRESĂ EMISĂ DE BANCĂ/TREZORERIE cu datele de identificare ale acesteia şi ale contului aferent proiectului FEADR (denumirea, adresa instituţiei financiare, codul IBAN al contului în care se derulează operaţiunile cu AFIR);"]
["9.1 AUTORIZAŢIE SANITARĂ/ NOTIFICARE de constatare a conformităţii cu legislaţia sanitară emise cu cel mult un an înaintea depunerii Cererii de finanţare, pentru unitățile care se modernizează și se autorizează/avizează conform legislației în vigoare."]
["9.2 NOTA DE CONSTATARE PRIVIND CONDIŢIILE DE MEDIU pentru toate unităţile în funcţiune."]
["10.\na) HOTĂRÂRE JUDECĂTOREASCĂ definitivă pronunţată pe baza actului de constituire și a statutului propriu în cazul Societăţilor agricole, însoțită de Statutul Societății agricole;"]
["b) STATUT pentru Societatea cooperativă agricolă (înfiinţată în baza Legii nr. 1/ 2005) și Cooperativa agricolă (înfiinţată în baza Legii nr. 566/ 2004) cu modificările și completările ulterioare și  composesoratele, obștile și alte forme asociative de proprietate asupra terenurilor (menționate în Legea nr.1/2000 pentru reconstituirea dreptului de proprietate asupra terenurilor agricole și celor forestiere, cu modificările și completările ulterioare), din care să reiasă că acestea se încadreaza în categoria: societate cooperativa agricolă , cooperativă agricolă sau fermier în conformitate cu art 7, alin (21) din OUG 3/2015, cu completările și modificările ulterioare;"]
["c) DOCUMENT DE ÎNFIINŢARE A INSTITUTELOR DE CERCETARE, a Centrelor, staţiunilor şi unităţilor de cercetare-dezvoltare şi didactice din domeniul agricol"]
["11.1 DIPLOMĂ DE STUDII SUPERIOARE în domeniul agricol, agro-alimentar, veterinar, economie agrară, mecanică agricolă, inginerie economică în agricultură şi dezvoltare rurală sau, după caz, adeverinţă de absolvire a studiilor respective, însoţită de foaia matricolă pentru cei care au absolvit în ultimele 12 luni."]
["11.2 DIPLOMA DE ABSOLVIRE STUDII postliceale şi liceale în domeniul agricol, agro-alimentar, veterinar, economie agrară, mecanică agricolă."]
["11.3 DIPLOMA DE ABSOLVIRE A ȘCOLII PROFESIONALE sau diploma/ certificat de calificare ce atestă formarea profesională/certificat de competențe emis de un centru de evaluare si certificare a competentelor profesionale obţinute pe alte căi decât cele formale, care trebuie de asemenea să fie autorizat de Autoritatea Naţionala pentru Calificări sau Certificat de absolvire a cursului de calificare emis de ANCA, care conferă un nivel minim de calificare în domeniul agricol, agro-alimentar, veterinar, economie agrară, mecanică agricolă."]
["11.4 FOAIA MATRICOLĂ pentru cel puțin 2 ani de facultate în domeniul agricol, agro-alimentar, veterinar, economie agrară, mecanică agricolă, inginerie economică în agricultură şi dezvoltare rurală."]
["11.5 EXTRAS DIN REGISTRUL GENERAL DE EVIDENȚĂ A SALARIAȚILOR care să ateste înregistrarea contractului individual de muncă."]
["11.6 Decizia Adunării generale a cooperativei pentru desemnarea\nmanagerului exploatației."]
["12. ÎN CAZUL INVESTIŢIILOR PRIVIND IRIGAŢIILE:\n12.1 AVIZ DE GOSPODARIREA APELOR/ NOTIFICAREA DE ÎNCEPERE A EXECUŢIEI, în cazul investiţiilor noi sau AUTORIZAȚIE DE GOSPODĂRIRE/NOTIFICARE DE PUNERE ÎN FUNCȚIUNE, în cazul funcţionării sistemului de irigaţii."]
["12.2 AVIZ EMIS DE ANIF (dacă este cazul)"]
["12.3 DOCUMENT EMIS DE OUAI privind acordul de branşare (dacă este cazul)"]
["12.4 Document privind acordul de branșare emis de entitatea care administrează sursa de apă (dacă este cazul)"]
["13.1a) AUTORIZAŢIA DE PRODUCERE A SEMINŢELOR ŞI MATERIALULUI SĂDITOR/ AUTORIZAŢIA DE PRODUCERE ŞI PRELUCRARE A SEMINŢELOR ŞI MATERIALULUI SĂDITOR/ AUTORIZAŢIA DE PRODUCERE, PRELUCRARE ŞI COMERCIALIZARE A SEMINŢELOR ŞI MATERIALULUI SĂDITOR."]
["13.1b) Declarație de multiplicare depusă de solicitant la Inspectoratele Teritoriale pentru Calitatea Semințelor și Materialului Săditor / Document oficial de certificare a semintelor, emis de ITCSMS"]
["13.2 DOCUMENTE SOLICITATE PRODUCĂTORILOR AGRICOLI: factură fiscală de achiziţii a seminţelor, şi documentul oficial de certificare a lotului de sămânţă/buletinul de analiză oficială cu menţiunea „sămânţă admisă pentru însămânţare” sau „necesar propriu”/documentul de calitate şi conformitate al furnizorului/orice alt document echivalent documentelor menţionate (ex: eticheta oficială)."]
["14. CERTIFICATUL DE ORIGINE PENTRU ANIMALE DE RASĂ INDIGENĂ eliberat de Asociații ale crescătorilor sau Organizațiile de ameliorare, autorizate de ANZ"]
["15.1 DOCUMENT EMIS DE CĂTRE ORGANIZATIA INTERPROFESIONALĂ PENTRU PRODUSELE AGROALIMENTARE (OIPA), din care să reiasă că solicitantul şi, dacă este cazul, terţele persoane cu care acesta încheie precontracte, are/au calitatea de membru al acesteia, însoţit de documentul de înfiinţare al OIPA (act constitutiv și statut), document avizat de consiliul director.\nSe va lua în considerare atât documentul avizat de către Preşedintele Consiliului Director cât și de o altă persoană împuternicită de Consiliul Director conform prevederilor statutului.\nÎn acest caz, pe lângă documentul emis de OIPA din care să reiasă că solicitantul este membru al acesteia, solicitantul trebuie să prezinte şi Hotărârea Consiliului Director de împuternicire a Preşedintelui Consiliului Director sau a unei alte persoane din cadrul Consiliului Director, conform prevederilor statutului, în vederea semnării acestor documente."]
["15.2 PRECONTRACTELE CU MEMBRII OIPA în vederea procesării/ comercializării producției proprii."]
["16. PRECONTRACTELE CU PERSOANE JURIDICE prin care se realizează comercializarea produselor proprii"]
["17.1 FIŞA DE ÎNREGISTRARE CA PRODUCĂTOR ȘI/SAU PROCESATOR ÎN AGRICULTURĂ ECOLOGICĂ, ELIBERATA DE DAJ, ÎNSOȚITĂ DE CONTRACTUL ÎNCHEIAT CU UN ORGANISM DE INSPECȚIE ȘI CERTIFICARE (în cazul investițiilor noi sau în cazul modernizării exploatațiilor care obțin după implementarea proiectului, un produs ecologic)"]
["17.2 Certificat de conformitate a produselor agroalimentare ecologice emis de un organism de inspecţie şi certificare, conform prevederilor OUG 34/2000 privind produsele agroalimentare ecologice cu completările și modificările ulterioare pentru aprobarea regulilor privind organizarea sistemului de inspecție și certificare în agricultura ecologică (pentru modernizări în vederea obținerii unui produs existent)."]
["18. STUDIU OSPA JUDEŢEAN PRIVIND NOTA DE BONITARE A TERENURILOR AGRICOLE în cazul exploataţiilor agricole din sectorul vegetal, însoţit de aviz ICPA pentru încadrarea proiectului în potenţialul agricol."]
["19. ACORD de principiu privind includerea generatoarelor terestre antigrindină în Sistemul Naţional de Antigrindină şi Creştere a Precipitaţiilor (la depunere), emis de Autoritatea pentru Administrarea Sistemului Naţional Antigrindină şi de Creştere a Precipitaţiilor, emis de AASNACP."]
["20.1 Document emis de Cooperativa/Grupul de producatori din care sa reiasa ca solicitantul si, dacă este cazul, tertele persoane cu care acesta incheie precontracte, are/au calitatea de membru a/al acesteia/acestuia, insotit - statutul Cooperativei."]
["20.2 Precontractele cu un membru/membrii al/ai Cooperativei/ Grupului de producători sau direct cu Cooperativa/Grupul de producători din care face parte în vederea procesării/ comercializării producției proprii."]
["20.3 Hotărârea Adunării Generale a cooperativei privind necesitatea și utilitatea investiției."]
["21. Aviz de conformitate proiect cu obiectivele STRATEGIEI INTEGRATE DE DEZVOLTARE DURABILĂ A DELTEI DUNĂRII emis de Asociația pentru Dezvoltare Intercomunitară - ITI Delta Dunării"]
["22. Declarație privind prelucrarea datelor cu caracter personal."]
["23. ALTE DOCUMENTE JUSTIFICATIVE (se vor specifica după caz) pe care solicitantul le poate aduce în scopul susţinerii proiectului:"]
[]
[]
[]
[]
[]
[]
[]
[]
[]
["COEFICIENŢI PRODUCŢIE STANDARD 2013"]
["Coduri EUROSTAT",null,null,null,null,null,null,"Denumire culturi",null,null,null,null,null,null,null,null,null,null,null,null,null,null,null,null,null,null,"SO 2013 euro/ha",null,null,null,null,null,null,"Suprafaţa (ha)",null,null,null,null,null,null,"SO activitate existentă",null,null,null,null,null,null,"Suprafaţa (ha) în urma realizării investiţiei",null,null,null,null,null,null,"SO în urma realizării investiţiei"]
[0,null,null,null,null,null,null,1,null,null,null,null,null,null,null,null,null,null,null,null,null,null,null,null,null,null,2,null,null,null,null,null,null,3,null,null,null,null,null,null,4,null,null,null,null,null,null,5,null,null,null,null,null,null,6]
["B_1_1_1",null,null,null,null,null,null,"Grâu comun",null,null,null,null,null,null,null,null,null,null,null,null,null,null,null,null,null,null,614.09,null,null,null,null,null,null,null,null,null,null,null,null,null,{"$f":"AA1037*AH1037","v":0},null,null,null,null,null,null,null,null,null,null,null,null,null,{"$f":"AA1037*AV1037","v":0}]
["B_1_1_2",null,null,null,null,null,null,"Grâu dur",null,null,null,null,null,null,null,null,null,null,null,null,null,null,null,null,null,null,432.81,null,null,null,null,null,null,null,null,null,null,null,null,null,{"$f":"AA1038*AH1038","v":0},null,null,null,null,null,null,null,null,null,null,null,null,null,{"$f":"AA1038*AV1038","v":0}]
["B_1_1_3",null,null,null,null,null,null,"Secară",null,null,null,null,null,null,null,null,null,null,null,null,null,null,null,null,null,null,354.27,null,null,null,null,null,null,null,null,null,null,null,null,null,0,null,null,null,null,null,null,null,null,null,null,null,null,null,0]
["B_1_1_4",null,null,null,null,null,null,"Orz+Orzoaica",null,null,null,null,null,null,null,null,null,null,null,null,null,null,null,null,null,null,529.44000000000005,null,null,null,null,null,null,null,null,null,null,null,null,null,0,null,null,null,null,null,null,null,null,null,null,null,null,null,0]
["B_1_1_5",null,null,null,null,null,null,"Ovăz",null,null,null,null,null,null,null,null,null,null,null,null,null,null,null,null,null,null,331.88,null,null,null,null,null,null,null,null,null,null,null,null,null,0,null,null,null,null,null,null,null,null,null,null,null,null,null,0]
["B_1_1_6",null,null,null,null,null,null,"Porumb boabe",null,null,null,null,null,null,null,null,null,null,null,null,null,null,null,null,null,null,641.79999999999995,null,null,null,null,null,null,null,null,null,null,null,null,null,0,null,null,null,null,null,null,null,null,null,null,null,null,null,0]
["B_1_1_7",null,null,null,null,null,null,"Orez",null,null,null,null,null,null,null,null,null,null,null,null,null,null,null,null,null,null,913.26,null,null,null,null,null,null,null,null,null,null,null,null,null,0,null,null,null,null,null,null,null,null,null,null,null,null,null,0]
["B_1_1_99",null,null,null,null,null,null,"Alte cereale (sorgul, triticale, meiul, hrişca, iarba-cănăraşului, altele)",null,null,null,null,null,null,null,null,null,null,null,null,null,null,null,null,null,null,452.74,null,null,null,null,null,null,null,null,null,null,null,null,null,0,null,null,null,null,null,null,null,null,null,null,null,null,null,0]
["B_1_2_1",null,null,null,null,null,null,"Mazăre boabe, fasole boabe, lupin dulce",null,null,null,null,null,null,null,null,null,null,null,null,null,null,null,null,null,null,533.77,null,null,null,null,null,null,null,null,null,null,null,null,null,0,null,null,null,null,null,null,null,null,null,null,null,null,null,0]
["B_1_2_2",null,null,null,null,null,null,"Linte, bob, măzăriche şi năut",null,null,null,null,null,null,null,null,null,null,null,null,null,null,null,null,null,null,454.79,null,null,null,null,null,null,null,null,null,null,null,null,null,0,null,null,null,null,null,null,null,null,null,null,null,null,null,0]
["B_1_3",null,null,null,null,null,null,"Cartofi (inclusiv cartofi noi, material săditor, cartof dulce destinat consumului uman)",null,null,null,null,null,null,null,null,null,null,null,null,null,null,null,null,null,null,3167.88,null,null,null,null,null,null,null,null,null,null,null,null,null,0,null,null,null,null,null,null,null,null,null,null,null,null,null,0]
["B_1_4",null,null,null,null,null,null,"Sfeclă de zahăr",null,null,null,null,null,null,null,null,null,null,null,null,null,null,null,null,null,null,1449.74,null,null,null,null,null,null,null,null,null,null,null,null,null,{"$f":"AA1048*AH1048","v":0},null,null,null,null,null,null,null,null,null,null,null,null,null,0]
["B_1_5",null,null,null,null,null,null,"Plante rădăcinoase pentru nutreţ (sfecla furajeră, alte plante furajere din familia brasiceelor, morcovi furajeri, batata (cartof dulce), păstârnac, ignama, manioc, napi furajeri)",null,null,null,null,null,null,null,null,null,null,null,null,null,null,null,null,null,null,1101.45,null,null,null,null,null,null,null,null,null,null,null,null,null,{"$f":"AA1049*AH1049","v":0},null,null,null,null,null,null,null,null,null,null,null,null,null,0]
["B_1_6_1",null,null,null,null,null,null,"Tutun",null,null,null,null,null,null,null,null,null,null,null,null,null,null,null,null,null,null,1696.83,null,null,null,null,null,null,null,null,null,null,null,null,null,0,null,null,null,null,null,null,null,null,null,null,null,null,null,0]
["B_1_6_2",null,null,null,null,null,null,"Hamei",null,null,null,null,null,null,null,null,null,null,null,null,null,null,null,null,null,null,4105.24,null,null,null,null,null,null,null,null,null,null,null,null,null,0,null,null,null,null,null,null,null,null,null,null,null,null,null,0]
["B_1_6_4",null,null,null,null,null,null,"Rapiţă",null,null,null,null,null,null,null,null,null,null,null,null,null,null,null,null,null,null,647.72,null,null,null,null,null,null,null,null,null,null,null,null,null,0,null,null,null,null,null,null,null,null,null,null,null,null,null,0]
["B_1_6_5",null,null,null,null,null,null,"Floarea soarelui",null,null,null,null,null,null,null,null,null,null,null,null,null,null,null,null,null,null,564.52,null,null,null,null,null,null,null,null,null,null,null,null,null,0,null,null,null,null,null,null,null,null,null,null,null,null,null,0]
["B_1_6_6",null,null,null,null,null,null,"Soia",null,null,null,null,null,null,null,null,null,null,null,null,null,null,null,null,null,null,611,null,null,null,null,null,null,null,null,null,null,null,null,null,0,null,null,null,null,null,null,null,null,null,null,null,null,null,0]
["B_1_6_7",null,null,null,null,null,null,"In pentru ulei",null,null,null,null,null,null,null,null,null,null,null,null,null,null,null,null,null,null,1563.56,null,null,null,null,null,null,null,null,null,null,null,null,null,0,null,null,null,null,null,null,null,null,null,null,null,null,null,0]
["B_1_6_8",null,null,null,null,null,null,"Alte plante pentru ulei (ricin, şofrănaş, susan, arahide, mac, muştar, alte culturi oleaginoase)",null,null,null,null,null,null,null,null,null,null,null,null,null,null,null,null,null,null,374,null,null,null,null,null,null,null,null,null,null,null,null,null,{"$f":"AA1056*AH1056","v":0},null,null,null,null,null,null,null,null,null,null,null,null,null,0]
["B_1_6_9",null,null,null,null,null,null,"In textil",null,null,null,null,null,null,null,null,null,null,null,null,null,null,null,null,null,null,307.17,null,null,null,null,null,null,null,null,null,null,null,null,null,0,null,null,null,null,null,null,null,null,null,null,null,null,null,0]
["B_1_6_10",null,null,null,null,null,null,"Cânepă",null,null,null,null,null,null,null,null,null,null,null,null,null,null,null,null,null,null,518.11,null,null,null,null,null,null,null,null,null,null,null,null,null,0,null,null,null,null,null,null,null,null,null,null,null,null,null,0]
["B_1_6_12",null,null,null,null,null,null,"Plante medicinale şi aromatice inclusiv ceaiul, cafeaua şi cicoarea pentru cafea: muşeţel, mătrăguna, menta, mac, angelica,chimen, genţiana, iasomia, lavanda, levănţica, origanul, şofranul, salvia, valeriana, gălbeneaua, ghimbirul, etc",null,null,null,null,null,null,null,null,null,null,null,null,null,null,null,null,null,null,937.85,null,null,null,null,null,null,null,null,null,null,null,null,null,0,null,null,null,null,null,null,null,null,null,null,null,null,null,0]
["B_1_6_99",null,null,null,null,null,null,"Alte plante industriale- cicoarea, trestia de zahăr, alte plante tehnice nemenţionate în altă parte, sorgul tehnic (pentru mături)",null,null,null,null,null,null,null,null,null,null,null,null,null,null,null,null,null,null,717.56,null,null,null,null,null,null,null,null,null,null,null,null,null,0,null,null,null,null,null,null,null,null,null,null,null,null,null,0]
["B_1_7_1_1",null,null,null,null,null,null,"Legume proaspete, pepeni şi căpşuni - în câmp\n- conopidă, broccoli\n- legume pt. frunze (praz, salată, spanac, etc.), varza\n- tomate\n- porumb dulce\n- legume cultivate pentru fructe - vinete, ardei,dovleci şi dovlecei, castraveciori\n- legume cultivate pentru rădăcină, bulbi, tuberculi (excepţie cartofi): morcovi, păstârnac, ceapă, usturoi, napi\n- legume păstăi(fasole, mazăre cu excepţia lintei şi a năutului)\n- fructele plantelor neperene (căpşuni, pepeni galbeni, pepeni verzi, ananas)",null,null,null,null,null,null,null,null,null,null,null,null,null,null,null,null,null,null,6196.49,null,null,null,null,null,null,null,null,null,null,null,null,null,0,null,null,null,null,null,null,null,null,null,null,null,null,null,0]
["B_1_7_1_2",null,null,null,null,null,null,"Legume proaspete, pepeni şi căpşuni - în grădină destinate comercializării:\n- conopidă, broccoli\n- legume pt. frunze (praz, salată, spanac, etc.), varza\n- tomate\n- porumb dulce\n- legume cultivate pentru fructe - vinete, ardei,dovleci şi dovlecei, castraveciori\n- legume cultivate pentru rădăcină, bulbi, tuberculi (excepţie cartofi): morcovi, păstârnac, ceapă, usturoi, napi\n- legume păstăi(fasole, mazăre cu excepţia lintei şi a năutului)\n- fructele plantelor neperene (căpşuni, pepeni galbeni, pepeni verzi, ananas)",null,null,null,null,null,null,null,null,null,null,null,null,null,null,null,null,null,null,7176.16,null,null,null,null,null,null,null,null,null,null,null,null,null,0,null,null,null,null,null,null,null,null,null,null,null,null,null,0]
["B_1_7_2",null,null,null,null,null,null,"Legume proaspete, pepeni şi căpşuni - în sere şi solarii:\n- conopidă, broccoli\n- legume pt. frunze (praz, salată, spanac, etc.), varza\n- tomate\n- porumb dulce\n- legume cultivate pentru fructe - vinete, ardei,dovleci şi dovlecei, castraveciori\n- legume cultivate pentru rădăcină, bulbi, tuberculi (excepţie cartofi): morcovi, păstârnac, ceapă, usturoi, napi\n- legume păstăi(fasole, mazăre cu excepţia lintei şi a năutului)\n- fructele plantelor neperene (căpşuni, pepeni galbeni, pepeni verzi, ananas)",null,null,null,null,null,null,null,null,null,null,null,null,null,null,null,null,null,null,27507.66,null,null,null,null,null,null,null,null,null,null,null,null,null,0,null,null,null,null,null,null,null,null,null,null,null,null,null,0]
["B_1_8_1",null,null,null,null,null,null,"Flori - în câmp\n- bulbi de flori, cormi şi tuberculi\n- flori tăiate şi boboci\n- plante cu flori şi plante ornamentale\n- trandafiri pentru petale",null,null,null,null,null,null,null,null,null,null,null,null,null,null,null,null,null,null,25527.46,null,null,null,null,null,null,null,null,null,null,null,null,null,0,null,null,null,null,null,null,null,null,null,null,null,null,null,0]
["B_1_8_2",null,null,null,null,null,null,"Flori - în sere şi solarii\n- bulbi de flori, cormi şi tuberculi\n- flori tăiate şi boboci\n- plante cu flori şi plante ornamentale",null,null,null,null,null,null,null,null,null,null,null,null,null,null,null,null,null,null,83743.81,null,null,null,null,null,null,null,null,null,null,null,null,null,{"$f":"AA1065*AH1065","v":0},null,null,null,null,null,null,null,null,null,null,null,null,null,0]
["B_1_9_1",null,null,null,null,null,null,"Plante de nutreţ - iarba temporară - iarba semănată pe terenuri arabile cedate producţiilor furajere erbacee pe o perioadă mai scurtă de 5 ani şi chiar sub un an",null,null,null,null,null,null,null,null,null,null,null,null,null,null,null,null,null,null,266.22000000000003,null,null,null,null,null,null,null,null,null,null,null,null,null,0,null,null,null,null,null,null,null,null,null,null,null,null,null,0]
["B_1_9_2_1",null,null,null,null,null,null,"Plante de nutreţ - alte furaje verzi - porumb siloz",null,null,null,null,null,null,null,null,null,null,null,null,null,null,null,null,null,null,1029.19,null,null,null,null,null,null,null,null,null,null,null,null,null,0,null,null,null,null,null,null,null,null,null,null,null,null,null,0]
["B_1_9_2_2",null,null,null,null,null,null,"Plante de nutreţ - alte furaje verzi (culturi anuale de cereale recoltate verzi, sorgul anual, anumite graminee anuale cum este firuţa, cruciferele, faceea dacă sunt recoltate  verzi şi nu au fost menţionate în altă parte)",null,null,null,null,null,null,null,null,null,null,null,null,null,null,null,null,null,null,476.13,null,null,null,null,null,null,null,null,null,null,null,null,null,0,null,null,null,null,null,null,null,null,null,null,null,null,null,0]
["B_1_9_2_99",null,null,null,null,null,null,"Alte plante de nutreţ (diferite specii de trifoi anual sau peren- trifoi alb, trifoi roşu, trifoi de Alexandria - diferite varietăţi de lucernă)",null,null,null,null,null,null,null,null,null,null,null,null,null,null,null,null,null,null,662.78,null,null,null,null,null,null,null,null,null,null,null,null,null,0,null,null,null,null,null,null,null,null,null,null,null,null,null,0]
["B_1_10",null,null,null,null,null,null,"Seminţe şi seminiceri\n- semințe de graminee\n- seminţe pentru horticultură\n- seminţe şi răsaduri pentru teren arabil cu excepţia cerealelor, a boabelor de leguminoase uscate, a cartofilor, a plantelor oleaginoase",null,null,null,null,null,null,null,null,null,null,null,null,null,null,null,null,null,null,2993.73,null,null,null,null,null,null,null,null,null,null,null,null,null,0,null,null,null,null,null,null,null,null,null,null,null,null,null,0]
["B_1_11",null,null,null,null,null,null,"Alte plante (culturi de mică importanţă economică care nu pot fi încadrate în altă categorie)",null,null,null,null,null,null,null,null,null,null,null,null,null,null,null,null,null,null,592.99,null,null,null,null,null,null,null,null,null,null,null,null,null,0,null,null,null,null,null,null,null,null,null,null,null,null,null,0]
["B_3_1",null,null,null,null,null,null,"Păşuni şi fâneţe permanente - păşuni şi fâneţe",null,null,null,null,null,null,null,null,null,null,null,null,null,null,null,null,null,null,295.04000000000002,null,null,null,null,null,null,null,null,null,null,null,null,null,0,null,null,null,null,null,null,null,null,null,null,null,null,null,0]
["B_3_2",null,null,null,null,null,null,"Păşuni şi fâneţe permanente - pe terenuri accidentate - păşuni sărace, inclusiv lăstărişul, de obicei nefertilizate şi neîntrebuinţate - păşuni cu randament scăzut situate în locuri accidentate şi la altitudini mari, care nu sunt cosite - terenuri  tâncoase, terenuri mlăştinoase, bărăganuri",null,null,null,null,null,null,null,null,null,null,null,null,null,null,null,null,null,null,92.33,null,null,null,null,null,null,null,null,null,null,null,null,null,0,null,null,null,null,null,null,null,null,null,null,null,null,null,0]
["B_4_1_1_1",null,null,null,null,null,null,"Fructe, pomi şi arbuşti - climă temperată:\nMere\nPere\nPiersici şi nectarine\nAlte fructe vişine, cirese, caise, prune, gutui",null,null,null,null,null,null,null,null,null,null,null,null,null,null,null,null,null,null,2812.04,null,null,null,null,null,null,null,null,null,null,null,null,null,0,null,null,null,null,null,null,null,null,null,null,null,null,null,0]
["B_4_1_2",null,null,null,null,null,null,"Livezi de coacaz, smochin, zmeur, muri, cătină, afin, goji, agrişe, măceşe, soc, lonicera, coarne, aronia",null,null,null,null,null,null,null,null,null,null,null,null,null,null,null,null,null,null,3958.34,null,null,null,null,null,null,null,null,null,null,null,null,null,{"$f":"AA1075*AH1075","v":0},null,null,null,null,null,null,null,null,null,null,null,null,null,0]
["B_4_1_3",null,null,null,null,null,null,"Fructe, pomi şi arbuşti - nuci, alune, migdale, castane",null,null,null,null,null,null,null,null,null,null,null,null,null,null,null,null,null,null,1754.4,null,null,null,null,null,null,null,null,null,null,null,null,null,{"$f":"AA1076*AH1076","v":0},null,null,null,null,null,null,null,null,null,null,null,null,null,0]
["B_4_4_1",null,null,null,null,null,null,"Vii - vin nobil",null,null,null,null,null,null,null,null,null,null,null,null,null,null,null,null,null,null,1981.83,null,null,null,null,null,null,null,null,null,null,null,null,null,0,null,null,null,null,null,null,null,null,null,null,null,null,null,0]
["B_4_4_2",null,null,null,null,null,null,"Vii - alte vinuri",null,null,null,null,null,null,null,null,null,null,null,null,null,null,null,null,null,null,1889.96,null,null,null,null,null,null,null,null,null,null,null,null,null,0,null,null,null,null,null,null,null,null,null,null,null,null,null,0]
["B_4_4_3",null,null,null,null,null,null,"Vii – struguri de masa",null,null,null,null,null,null,null,null,null,null,null,null,null,null,null,null,null,null,2170.52,null,null,null,null,null,null,null,null,null,null,null,null,null,0,null,null,null,null,null,null,null,null,null,null,null,null,null,0]
["B_4_5",null,null,null,null,null,null,"Pepiniere",null,null,null,null,null,null,null,null,null,null,null,null,null,null,null,null,null,null,5614.25,null,null,null,null,null,null,null,null,null,null,null,null,null,0,null,null,null,null,null,null,null,null,null,null,null,null,null,0]
["B_4_6_1",null,null,null,null,null,null,"Alte culturi permanente: răchita, papura, bambus, salcie, brazi argintii altoiţi",null,null,null,null,null,null,null,null,null,null,null,null,null,null,null,null,null,null,487.35,null,null,null,null,null,null,null,null,null,null,null,null,null,0,null,null,null,null,null,null,null,null,null,null,null,null,null,0]
["B_6_1",null,null,null,null,null,null,"Ciupercării pe 100mp (Nr. recolte pe an - 4)\n(suprafața totală cultivată = suprafața de bază*numărul de cicluri)",null,null,null,null,null,null,null,null,null,null,null,null,null,null,null,null,null,null,4456.78,null,null,null,null,null,null,0,null,null,null,null,null,null,{"$f":"AA1082*AH1082/4","v":0},null,null,null,null,null,null,0,null,null,null,null,null,null,{"$f":"AA1082*AV1082/4","v":0}]
[null,null,null,null,null,null,null,"Nr. de cicluri activitate existentă *"]
[null,null,null,null,null,null,null,"Suprafata activitate existentă (stelaje) (mp) **"]
[null,null,null,null,null,null,null,"Nr. de cicluri conform Studiului de Fezabilitate***"]
[null,null,null,null,null,null,null,"Suprafata în urma realizării investiţie (stelaje) (mp)****"]
[null,null,null,null,null,null,null,"TOTAL vegetal",null,null,null,null,null,null,null,null,null,null,null,null,null,null,null,null,null,null,null,null,null,null,null,null,null,{"$f":"SUM(AH1037:AN1086)","v":0},null,null,null,null,null,null,{"$f":"SUM(AO1037:AU1086)","v":0},null,null,null,null,null,null,{"$f":"SUM(AV1037:BB1086)","v":0},null,null,null,null,null,null,{"$f":"SUM(BC1037:BI1086)","v":0}]
["B_1_7_2\n* CULTURA DE SALATĂ REALIZATĂ PRIN METODE HIDROPONICE SE POATE ASIMILA COEFICIENTULUI DE LA ACEST COD, CALCULUL DIMENSIUNII ECONOMICE REALIZÂNDU-SE ÎNMULȚIND SUPRAFAȚA DE BAZĂ CU NUMĂRUL DE RAFTURI."]
["B_6_1* SE VA COMPLETA CU NUMĂRUL DE CICLURI DIN ACTIVITATEA EXISTENTĂ, REALIZATE ÎN CADRUL UNUI AN.\n** SE VA COMPLETA CU SUPRAFAŢA CULTURII(MP) CU CIUPERCI, ACTIVITATE EXISTENTĂ; ÎN CAZUL ÎN CARE ÎN CADRUL CIUPERCĂRIEI SE UTILIZEAZĂ UN SISTEM DE CULTURĂ ÎN STELAJE, SE VA COMPLETA SUPRAFAŢA CULTURII(MP) FORMATĂ DIN SUPRAFAŢA UNUI STELAJ(MP)xNUMĂR DE STELAJE\n*** SE VA COMPLETA CU NUMĂRUL DE CICLURI PREVĂZUT A SE REALIZA ÎN STUDIUL DE FEZABILITATE, ÎN CADRUL UNUI AN.\n**** SE VA COMPLETA CU SUPRAFAŢA CULTURII(MP) CU CIUPERCI, ÎN URMA REALIZĂRII INVESTIŢIEI; ÎN CAZUL ÎN CARE ÎN CADRUL CIUPERCĂRIEI SE UTILIZEAZĂ UN SISTEM DE CULTURĂ ÎN STELAJE, SE VA COMPLETA SUPRAFAŢA CULTURII(MP) FORMATĂ DIN SUPRAFAŢA UNUI STELAJ(MP)xNUMĂR DE STELAJE"]
[]
["Coduri EUROSTAT",null,null,null,null,null,null,"Denumire specii animale",null,null,null,null,null,null,null,null,null,null,null,null,null,null,null,null,null,null,"SO 2013 euro/cap",null,null,null,null,null,null,"Număr capete",null,null,null,null,null,null,"SO activitate existentă",null,null,null,null,null,null,"Total capete animale în urma realizării investiţiei",null,null,null,null,null,null,"SO în urma realizării investiţiei"]
[0,null,null,null,null,null,null,1,null,null,null,null,null,null,null,null,null,null,null,null,null,null,null,null,null,null,2,null,null,null,null,null,null,3,null,null,null,null,null,null,4,null,null,null,null,null,null,5,null,null,null,null,null,null,6]
["C_1",null,null,null,null,null,null,"Ecvidee",null,null,null,null,null,null,null,null,null,null,null,null,null,null,null,null,null,null,1404.31,null,null,null,null,null,null,null,null,null,null,null,null,null,{"$f":"AA1093*AH1093","v":0},null,null,null,null,null,null,null,null,null,null,null,null,null,{"$f":"AA1093*AV1093","v":0}]
["C_2_1",null,null,null,null,null,null,"Bovine sub 1 an - total",null,null,null,null,null,null,null,null,null,null,null,null,null,null,null,null,null,null,216.38,null,null,null,null,null,null,null,null,null,null,null,null,null,{"$f":"AA1094*AH1094","v":0},null,null,null,null,null,null,null,null,null,null,null,null,null,{"$f":"AA1094*AV1094","v":0}]
["C_2_2",null,null,null,null,null,null,"Bovine sub 2 ani - masculi",null,null,null,null,null,null,null,null,null,null,null,null,null,null,null,null,null,null,344.4,null,null,null,null,null,null,null,null,null,null,null,null,null,0,null,null,null,null,null,null,null,null,null,null,null,null,null,0]
["C_2_3",null,null,null,null,null,null,"Bovine sub 2 ani - femele",null,null,null,null,null,null,null,null,null,null,null,null,null,null,null,null,null,null,341.49,null,null,null,null,null,null,null,null,null,null,null,null,null,0,null,null,null,null,null,null,null,null,null,null,null,null,null,0]
["C_2_4",null,null,null,null,null,null,"Bovine de 2 ani şi peste - masculi",null,null,null,null,null,null,null,null,null,null,null,null,null,null,null,null,null,null,817.88,null,null,null,null,null,null,null,null,null,null,null,null,null,0,null,null,null,null,null,null,null,null,null,null,null,null,null,0]
["C_2_5",null,null,null,null,null,null,"Bovine de 2 ani si peste - femele (juninci pentru îngrăşat, juninci pentru reproducţie)",null,null,null,null,null,null,null,null,null,null,null,null,null,null,null,null,null,null,801.38,null,null,null,null,null,null,null,null,null,null,null,null,null,0,null,null,null,null,null,null,null,null,null,null,null,null,null,0]
["C_2_6",null,null,null,null,null,null,"Vaci, bivolite pentru lapte",null,null,null,null,null,null,null,null,null,null,null,null,null,null,null,null,null,null,1200.46,null,null,null,null,null,null,null,null,null,null,null,null,null,0,null,null,null,null,null,null,null,null,null,null,null,null,null,0]
["C_2_99",null,null,null,null,null,null,"Bovine de 2 ani şi peste - alte vaci",null,null,null,null,null,null,null,null,null,null,null,null,null,null,null,null,null,null,515.85,null,null,null,null,null,null,null,null,null,null,null,null,null,0,null,null,null,null,null,null,null,null,null,null,null,null,null,0]
["C_3_1_1",null,null,null,null,null,null,"OI - mioare montate- oi de un an sau mai mult, destinate reproducerii, oile reformate care urmeaza sa fete",null,null,null,null,null,null,null,null,null,null,null,null,null,null,null,null,null,null,54.91,null,null,null,null,null,null,null,null,null,null,null,null,null,{"$f":"AA1101*AH1101","v":0},null,null,null,null,null,null,null,null,null,null,null,null,null,{"$f":"AA1101*AV1101","v":0}]
["C_3_1_99",null,null,null,null,null,null,"Oi - alte oi : miei, berbeci, oi reformate - oi sterpe care urmează a fi îngrăşate în vederea sacrificării",null,null,null,null,null,null,null,null,null,null,null,null,null,null,null,null,null,null,26.72,null,null,null,null,null,null,null,null,null,null,null,null,null,0,null,null,null,null,null,null,null,null,null,null,null,null,null,0]
["C_3_2_1",null,null,null,null,null,null,"Capre – capre montate - capre montate femele destinate reproducerii, capre re reformate care urmează să fete",null,null,null,null,null,null,null,null,null,null,null,null,null,null,null,null,null,null,1112.98,null,null,null,null,null,null,null,null,null,null,null,null,null,0,null,null,null,null,null,null,null,null,null,null,null,null,null,0]
["C_3_2_99",null,null,null,null,null,null,"Capre – alte capre: iezi, ţapi, capre reformate destinate sacrificării",null,null,null,null,null,null,null,null,null,null,null,null,null,null,null,null,null,null,39.67,null,null,null,null,null,null,null,null,null,null,null,null,null,0,null,null,null,null,null,null,null,null,null,null,null,null,null,0]
["C_4_1_1",null,null,null,null,null,null,"Porcine - tineret porcin sub 20 kg",null,null,null,null,null,null,null,null,null,null,null,null,null,null,null,null,null,null,33.36,null,null,null,null,null,null,null,null,null,null,null,null,null,0,null,null,null,null,null,null,null,null,null,null,null,null,null,0]
["C_4_1_2",null,null,null,null,null,null,"Porcine - scroafe pentru reproducţie peste 50 kg",null,null,null,null,null,null,null,null,null,null,null,null,null,null,null,null,null,null,262.55,null,null,null,null,null,null,null,null,null,null,null,null,null,0,null,null,null,null,null,null,null,null,null,null,null,null,null,0]
["C_4_1_99",null,null,null,null,null,null,"Porcine - alte porcine: porci la îngrăşat, vieri, scroafe destinate sacrificării",null,null,null,null,null,null,null,null,null,null,null,null,null,null,null,null,null,null,388.08,null,null,null,null,null,null,null,null,null,null,null,null,null,0,null,null,null,null,null,null,null,null,null,null,null,null,null,0]
["C_5_1",null,null,null,null,null,null,"Pui pentru carne *",null,null,null,null,null,null,null,null,null,null,null,null,null,null,null,null,null,null,473.59,null,null,null,null,null,null,null,null,null,null,null,null,null,0,null,null,null,null,null,null,null,null,null,null,null,null,null,0]
["C_5_2",null,null,null,null,null,null,"Găini ouătoare *",null,null,null,null,null,null,null,null,null,null,null,null,null,null,null,null,null,null,2156,null,null,null,null,null,null,null,null,null,null,null,null,null,0,null,null,null,null,null,null,null,null,null,null,null,null,null,0]
["C_5_3_1",null,null,null,null,null,null," curcani şi curci*",null,null,null,null,null,null,null,null,null,null,null,null,null,null,null,null,null,null,4205.5600000000004,null,null,null,null,null,null,null,null,null,null,null,null,null,0,null,null,null,null,null,null,null,null,null,null,null,null,null,0]
["C_5_3_2",null,null,null,null,null,null,"- raţe",null,null,null,null,null,null,null,null,null,null,null,null,null,null,null,null,null,null,2824.99,null,null,null,null,null,null,null,null,null,null,null,null,null,0,null,null,null,null,null,null,null,null,null,null,null,null,null,0]
["C_5_3_3",null,null,null,null,null,null,"- gâşte",null,null,null,null,null,null,null,null,null,null,null,null,null,null,null,null,null,null,3602.66,null,null,null,null,null,null,null,null,null,null,null,null,null,0,null,null,null,null,null,null,null,null,null,null,null,null,null,0]
["C_5_3_4",null,null,null,null,null,null,"- struţi",null,null,null,null,null,null,null,null,null,null,null,null,null,null,null,null,null,null,30083.5,null,null,null,null,null,null,null,null,null,null,null,null,null,0,null,null,null,null,null,null,null,null,null,null,null,null,null,0]
["C_5_3_99",null,null,null,null,null,null,"- alte păsări: bibilici, porumbei, potârnichi, fazani, prepeliţe",null,null,null,null,null,null,null,null,null,null,null,null,null,null,null,null,null,null,900.34,null,null,null,null,null,null,null,null,null,null,null,null,null,0,null,null,null,null,null,null,null,null,null,null,null,null,null,0]
["C_6",null,null,null,null,null,null,"Iepuri (femele iepuri)",null,null,null,null,null,null,null,null,null,null,null,null,null,null,null,null,null,null,13.91,null,null,null,null,null,null,null,null,null,null,null,null,null,0,null,null,null,null,null,null,null,null,null,null,null,null,null,0]
["C_7",null,null,null,null,null,null,"Familii de albine",null,null,null,null,null,null,null,null,null,null,null,null,null,null,null,null,null,null,59.62,null,null,null,null,null,null,null,null,null,null,null,null,null,0,null,null,null,null,null,null,null,null,null,null,null,null,null,0]
[null,null,null,null,null,null,null,"TOTAL zootehnic",null,null,null,null,null,null,null,null,null,null,null,null,null,null,null,null,null,null,null,null,null,null,null,null,null,null,null,null,null,null,null,null,{"$f":"SUM(AO1093:AU1116)","v":0},null,null,null,null,null,null,null,null,null,null,null,null,null,{"$f":"SUM(BC1093:BI1116)","v":0}]
[null,null,null,null,null,null,null,"TOTAL GENERAL",null,null,null,null,null,null,null,null,null,null,null,null,null,null,null,null,null,null,null,null,null,null,null,null,null,null,null,null,null,null,null,null,{"$f":"AO1087+AO1117","v":0},null,null,null,null,null,null,null,null,null,null,null,null,null,{"$f":"BC1087+BC1117","v":0}]
[]
["* Valoarea SO se referă la 100 capete"]
["DEFINIŢIA ŞI PRINCIPIILE DE CALCULARE A PRODUCŢIILOR STANDARD\nSO 2013\nExploataţia profesională este o exploataţie agricolă suficient de mare încât să ofere o activitate de bază pentru şeful exploataţiei şi un venit suficient pentru susţinerea lui şi a familiei sale.\n(a) Valoarea producției standard reprezintă valoarea monetară a producției agricole brute la prețul de la poarta exploatației. Această valoare este suma\ndintre valoarea produsului principal (produselor principale) și cea a produsului secundar (produselor secundare). Valorile se calculează înmulțind producția per unitate cu prețul de la poarta exploatației. TVA-ul, taxele pe produse și plățile directe nu sunt incluse.\n(b) Perioada de producție Producțiile standard corespund unei perioade de producție de 12 luni (an calendaristic sau an de producție agricolă). Pentru\nprodusele vegetale și animale în cazul cărora perioada de producție este mai mică de 12 luni sau depășește această perioadă, se calculează o producție\nstandard corespunzătoare creșterii sau producției pe o perioadă de 12 luni.\n(c) Unități\n1. Producțiile standard corespunzătoare caracteristicilor culturilor se determină pe baza suprafeței exprimate în hectare.\nCu toate acestea, pentru ciuperci, producțiile standard se determină pe baza producției brute pentru toate recoltele anuale succesive și se exprimă per 100 m2 de suprafață cultivată. În vederea utilizării lor în contextul RICA, aceste producții standard pentru ciuperci se împart la numărul de recolte anuale\nsuccesive care este comunicat Comisiei Europene.\n2. Producțiile standard corespunzătoare caracteristicilor efectivului de animale se determină pe cap de animal, cu excepția păsărilor de curte, pentru care se exprimă per 100 de capete, și a albinelor, pentru care se determină per stup.\n3. Datele de bază pentru determinarea producțiilor standard, precum și producțiile standard calculate se stabilesc în euro. Pentru statele membre care nu au aderat la uniunea economică și monetară, producțiile standard se convertesc în euro, utilizându-se cursurile de schimb medii pentru perioada de referință.\nAceste cursuri de schimb medii se calculează pe baza cursurilor de schimb oficiale publicate de Comisie (Eurostat).\n(d) Defalcarea producțiilor standard\nÎn funcție de caracteristicile culturii vegetale și ale efectivului de animale producțiile standard se determină pentru toate caracteristicile agricole care sunt în exploatația agricolă.\nDimensiunea economică a unei exploataţii agricole reprezintă valoarea SO totală a exploataţiei, exprimată în euro, corespunzătoare sumei SO calculată\npentru fiecare dintre producţiile vegetale ori animale obţinute în exploataţia respectivă într-o perioadă de un an calendaristic sau an agricol.\nÎn cadrul măsurilor de Finanţare din cadrul Programului Naţional de Dezvoltare Rurală este necesară determinarea dimensiunii economice a exploataţiilor agricole care accesează fondurile europene.\nAceste instrucţiuni sprijină experţii verificatori de la nivel central şi pe cei judeţeni în rezolvarea atribuţiilor ce le revin în procesul de verificare a dimensiunii economice, dimensiune rezultată în urma aplicării coeficienţilor standard output SO.\nAceştia se introduc ca atare şi se aplică la efectivul din teren la data aplicării cererii de Finanţare pentru măsurile de dezvoltare rurală. Pentru cazul\nexploataţiilor de îngrăşare a animalelor în mai multe cicluri pe an, dimensiunea economică se calculează în baza unui număr mediu.\n1.Culturi\nPentru toate tipurile de culturi (excepţie ciupercile) se aplică formula:\nSO 2013 = nr. ha cultura x coeficient cultura SO 2013\nIndiferent ce se obţine dintr-o cultură - făina, mălai, tărâţe, conserve, compot, dulceaţă, ţuică) - acestea sunt produse procesate fiind considerate ca venituri din alte activităţi ale exploataţiei agricole şi care nu intră în calculul dimensionării economice. Excepţie face obţinerea vinului.\nPentru exploatații care au mai multe culturi în cadrul unei categorii, cum ar fi ”Legume proaspete pepeni și căpșuni - în câmp deschis \" sau - ”Fructe din zone cu climă temperată”, coeficientul SO corespunde mediei ponderate a SO - urilor producțiilor incluse în această categorie. Este la latitudinea statelor membre să decidă care producție trebuie să fie inclusă în calcul în funcție de semnificația acesteia.\nÎn cazul în care pozițiile sunt subdivizate în sub poziții Statele Membre pot da un singur coeficient regional pentru o poziție principală; în acest caz, coeficientul pentru poziția principală se utilizează și pentru sub pozițiile aferente ex. ”Legume proaspete, pepeni şi căpşuni - în câmp, Flori, Fructe, pomi şi arbuşti - climă temperată” etc.\nTratamentul cazurilor speciale\nSe stabilesc regulile următoare pentru calcularea producţiilor standard pentru anumite tipuri de caracteristici:\nPârloage (terenuri scoase temporar din circuitul agricol) fără subvenţii\nProducţia standard corespunzătoare pârloagelor fără niciun fel de subvenţii se ia în considerare la calcularea producţiei standard totale a exploataţiei numai în cazul în care există alte producţii standard pozitive pe exploataţie.\nPârloage pentru care s-au acordat subvenţii, fără uz economic, şi păşuni permanente care nu mai sunt utilizate în producţie şi care sunt eligibile pentru plata\nsubvenţiilor\nAvând în vedere că producţia de pe terenurile în sistem de ajutor fără uz economic este limitată la plăţile directe, producţiile standard ale acestor terenuri se consideră\negale cu zero.\nGrădinile familiale\nAvând în vedere că produsele grădinilor familiale sunt în mod obişnuit destinate consumului propriu al exploatantului şi nu comercializării, producţiile standard ale\nacestora se consideră egale cu zero.\nCultura ciupercilor\nPentru ciuperci cod B_6_1, producțiile standard se determină pe baza producției brute pentru toate recoltele anuale succesive și se exprimă per 100 m2 de suprafață\ncultivată.\nSe va dimensiona astfel:\nSuprafața totală a culturilor succesive = suprafaţa de bază (care poate fi supraetajată) x numărul de recolte - cicluri - complete\nPentru România s-au stabilit 4 cicluri de producţie.\nExemplu de calcul:\nPentru o suprafaţă totală de 200 mp:\nSO 2013 = 2 x 4456,78/4 cicluri = 2228,39 euro\nSeminţe şi semininceri\nCulturile de graminee (grâu, orz, orzoaică, ovăz, porumb, alte cereale) - loturi semincere se vor încadra la categoria de baza a culturii. Ca urmare la\ncategoria B_1_10 Seminţe şi semininceri vor fi incluse următoarele:\n- Seminţe de graminee altele decât cele de la categoriile B_1_1_1, B_1_1_2, B_1_1_3, B_1_1_4, B_1_1_5, B_1_1_6, B_1_1_7, B_1_1_99\n- Seminţe pentru horticultura\n- Seminţe şi răsaduri pentru teren arabil cu excepţia cerealelor, a boabelor de leguminoase uscate, a cartofilor, a plantelor oleaginoase\nFuraje\nÎn cazul în care, pe exploataţie, nu există erbivore (ecvidee, bovine, ovine şi caprine), furajele (rădăcinoase furajere şi brasicacee, plante verzi, păşuni şi fâneţe) se\nconsideră ca fiind destinate comercializării şi fac parte din producţia culturilor de câmp.\nÎn cazul în care, pe exploataţie, există erbivore, furajele se consideră a fi destinate hrănirii acestora şi fac parte din producţia corespunzătoare erbivorelor şi furajelor.\n2. Animale\nLa calcularea SO, procesarea produselor agricole nu trebuie luată în considerare chiar dacă această activitate este strâns legată de producție (lapte în unt,\nsmântână, brânză). Prin urmare, în cazul în care într-o regiune laptele este transformat în brânză, în calcularea SO pentru vacile de lapte numai valoarea laptelui va fi\nluată în considerare și nu valoarea brânzei.\nPentru toate speciile de animale se aplică formula:\nSO 2013 = nr. capete specie x coeficient specie SO 2013\nmai puţin cazul păsărilor de curte la care coeficientul calculat este la 100 capete."]
[]
[]
[]
[]
[]
[]
[]
["Exploataţia de creştere a cabalinelor\nÎn concordanţă cu codurile utilizate pentru coeficienţii producție standard (standard output, SO) se disting următoarele categorii de cabaline:\nC_1 Ecvidee: caii (inclusiv caii de curse și de călărie), măgarii, catârii, bardoii, etc.\n- Evaluarea cabalinelor s-a efectuat ţinând cont de valoarea orelor de muncă pe care acestea le efectuează în exploataţie ca producţie principală şi de\nvaloarea mânjilor fătaţi ca producţie secundară.\n- Cabalinele şi produsele acestora din anchetele RICA nu sunt destinate consumului uman ci deservesc munca în exploataţie.\nExemplu de calcul:\nExploataţia deţine:\n- 4 cai\n- 2 mânji\nDimensiunea economică a exploataţiei va fi:\nSO 2013 = 4 x 2052,50 = 8210 euro\nExploataţia de creştere bovine\nÎn concordanţă cu codurile utilizate pentru coeficienţii producție standard ( standard output, SO) se disting următoarele categorii de bovine:\nC_2_1. Bovine sub un an, masculi și femele\nC_2_2. Bovine între unu și doi ani, masculi\nC_2_3. Bovine între unu și doi ani, femele. Cu excepția bovinelor femele care au fătat deja.\nC_2_4. Bovine masculi de doi ani și de peste doi ani\nC_2_5. Juninci de reproducție. Bovine femele de doi ani sau mai mult, care nu au fătat încă și care sunt destinate reproducerii.\nC_2_5. Juninci pentru îngrășat. Bovine femele de doi ani sau mai mult, care nu au fătat încă și care nu sunt destinate reproducerii.\nC_2_6. Vaci de lapte. Bovine femele care au fătat (inclusiv cele de sub doi ani), care sunt ținute exclusiv sau în principal pentru producția de lapte destinat\nconsumului uman sau obținerii de produse lactate. Sunt incluse vacile de lapte reformate.\nC_2_6. Bivolițe. Bivolițele care au fătat (inclusiv cele de sub doi ani) care sunt ținute exclusiv sau în principal pentru producția de lapte destinat consumului\numan sau obținerii de produse lactate. Sunt incluse bivolițele reformate.\nC_2_99. Alte vaci:\n1. Bovine femele care au fătat (inclusiv cele de sub doi ani), care sunt ținute exclusiv sau în principal pentru producția de viței și al căror lapte nu este utilizat\npentru consumul uman sau obținerea de produse lactate.\n2. Vaci pentru muncă.\n3. Vaci reformate care nu sunt de lapte (îngrăşate sau nu înaintea sacrificării)\nCategoriile C_2_1:C_2_5 și C_2_99 includ și categoriile corespunzătoare de bivoli și bivolițe.\nPentru categoria C_2_1 Bovine sub un an se întâlnesc următoarele situaţii:\n· dacă în exploataţie se găsesc vaci de lapte cod C_2_6 atunci calculul dimensiunii economice se face prin însumarea producţiilor standard pentru vaci de\nlapte şi a producţiilor standard pentru viţeii sub 1 an al căror număr depăşeşte numărul vacilor de lapte;\n· dacă în exploatație nu se găsesc vaci de lapte atunci se iau în considerare producțiile standard corespunzătoare viţeilor sub 1 an pentru numărul care\nexistă în acel moment în exploataţie.\n· dacă în exploataţie sunt bovine femele care au fătat codul C_2_99, ţinute exclusiv sau în principal pentru producția de viței și al căror lapte nu este utilizat\npentru consumul uman sau obținerea de produse lactate, calculul dimensiunii economice se face prin însumarea producţiilor standard pentru bovine femele\ncare au fătat codul C_2_99 şi a producţiilor standard pentru viţeii sub 1 an al căror număr depăşeşte numărul bovinelor femele care au fătat cod C_2_99.\nExemple de calcul:\n1) Exploataţia deţine următoarele categorii de bovine:\n- 10 vaci de lapte care au fătat 12 viţei,\n- 2 tauri mai mari de doi ani,\n- 3 viţele mai mari de 2 ani destinate sacrificării,\n- 3 bovine femele care au fătat 3 viţei, bovine ţinute exclusiv pentru producţia de viţei\nDimensiunea economică a exploataţiei va fi:\nSO 2013 = 10 x 1200,46 + 2 x 216,38 + 2 x 817,88 + 3 x 801,38 + 3 x 515,85 = 18024,81 Euro\n2) Exploataţia deţine următoarele categorii de bovine:\n- 25 viţei bovine sub un an achiziţionaţi\n- 7 bovine femele care au fătat 9 viţei, bovine ţinute exclusiv pentru producţia de viţei\nDimensiunea economică a exploataţiei va fi:\nSO 2013 = 25 x 216,38 + 7 x 515,85 +2 x 216,38 = 9453,21 Euro\nExploataţia de creştere ovine şi caprine\nÎn concordanţă cu codurile utilizate pentru coeficienţii producție standard ( standard output, SO) se disting următoarele categorii de ovine şi caprine:\nC_3_1_1. Oi, femele de reproducție. Oi de un an sau mai mult destinate reproducției.\nC_3_1_99. Alte ovine. Ovine de toate vârstele, cu excepția oilor.\nC_3_2_1. Caprine, femele de reproducție\nC_3_2_99. Alte caprine. Caprine, altele decât femelele de reproducție.\nProducțiile standard corespunzătoare altor ovine - miei se iau în considerare la calcularea producției standard totale a exploatației numai în cazul în care în\nexploatație nu există nicio femelă ovină de reproducție.\nProducțiile standard corespunzătoare altor caprine - iezi se iau în considerare la calcularea producției standard totale a exploatației numai în cazul în care în\nexploatație nu există nicio femelă caprină de reproducție\nAcest lucru se datorează faptului că mieii/iezii sunt consideraţi producţia principală a oilor/caprelor, valoarea acestora fiind inclusă în coeficientul standard\noutput al oilor, respectiv caprelor.\nExemplu de calcul:\nExploataţia deţine următoarele categorii de ovine şi caprine:\n- 250 oi,\n- 270 miei,\n- 10 berbeci,\n- 12 oi sterpe,\n- 25 iezi\nSO 2013 = 250 x 54,91 + 10 x 26,72 +12 x26,72 + 25 x 39,67 = 15307,09 Euro\nExploataţia de creştere porcine :\nÎn concordanţă cu codurile utilizate pentru coeficienţii producție standard ( standard output, SO) se disting următoarele categorii de porcine:\nC_4_1. Purcei cu greutatea în viu sub 20 kg Purcei cu greutatea în viu sub 20 kg.\nC_4_2. Scroafe de reproducție de 50 kg și peste această greutate Scroafe de reproducție de 50 de kilograme sau mai mult, cu excepția scroafelor reformate\n(a se vedea categoria C_4_99, „Alte porcine”).\nC_4_99. Porci pentru îngrășat Porci pentru îngrășat cu greutatea în viu de 20 kg sau mai mult, cu excepția scroafelor reformate și a vierilor reformați (a se\nvedea categoria C_4_99, „Alte porcine”).\nC_4_99. Alte porcine Porci cu greutatea în viu de 20 kg sau mai mult, cu excepția scroafelor de reproducție (a se vedea categoria C_4_2) și a porcilor pentru\nîngrășat (a se vedea categoria C_4_99).\nProducțiile standard corespunzătoare purceilor se iau în considerare la calcularea producției standard totale a exploatației numai în cazul în care în\nexploatație nu există nicio scroafă de reproducție.\nAcest lucru se datorează faptului că purceii sub 20 kg sunt consideraţi producţia principală a scroafelor de reproducţie, valoarea acestora fiind inclusă în\ncoeficientul standard output al scroafelor.\nExemplu de calcul:\nExploataţia deţine:\n- 12 scroafe,\n- 40 purcei sub 20 kg,\n- 35 porci pentru îngrăşat,\n- 2 vieri\nSO 2013 = 12 x 262,55 + 35 x 388,08 + 2 x 388,08 = 17509,56 Euro\nIn cazul în care exploataţia îşi desfăşoară activitatea pe mai multe cicluri de producţie (îngrăşare), calculul dimensiunii se va face astfel:\n- SO 2013 total = număr mediu porci îngrăşat x SO 2013 porci îngrăşat unde numărul mediu este exprimat ca număr cu o zecimală şi se calculează\nproporţional cu durata prezenţei porcilor de îngrăşat în exploataţie în timpul anului;\n- Numărul mediu = nr. total porci îngrăşat x numărul de zile (sau luni) prezenţi în exploataţie/365zile (sau 12 luni)\nExemplu de calcul: exploataţia îngraşă porci în trei cicluri prin achiziţionarea unui nr. total de 1800 porci de îngrăşat:\n- Numărul mediu = 1800 x 112 zile prezenţi în exploataţie/365 zile an = 552,3 porci îngrăşat\n- Va rezulta dimensiunea exploataţiei ca fiind:\nSO 2013 TOTAL = 552,3 x 388,08 = 214336,58 euro.\nExploataţia de creştere păsări de curte\nÎn concordanţă cu codurile utilizate pentru coeficienții producție standard ( standard output, SO) se disting următoarele categorii de păsări de curte:\nC_5_1 pui pentru carne\nC_5_2 găini ouătoare: puicuțele (găini tinere care nu au început să ouă), găinile ouătoare, găinile reformate și cocoșii de reproducție pentru găini ouătoare.\nC_5_3_1 Curcani şi curci\nC_5_3_2 Raţe\nC_5_3_3 Gâşte\nC_5_3_4 Struţi\nC_5_3_99 Alte păsări: bibilici, porumbei, potârnichi, fazani, prepeliţe\nNu se includ puişorii de o zi în nicio categorie de păsări.\nPuişorii de o zi, care nu reprezintă o categorie, ca atare, dar sunt incluşi în categoria reziduală \"Alte animale\", sunt principalul produs al găinilor\nde reproducție. Pentru acest lucru nu se calculează coeficient SO aferent acestei categorii.\nExploataţiile cu incubatoare pentru obţinerea puişorilor de o zi ar trebui să-şi dimensioneze unitatea prin alte metode decât cea a utilizării coeficienţilor SO,\neventual cu producţia de puişori(valoare sau număr) previzionată.\n- Exploataţiile care îşi desfăşoară activitatea pe mai multe cicluri de producţie de pui de carne într-un an contabil se vor dimensiona la depunerea cererii de\nfinanţare cu efectivul mediu de păsări (a tuturor ciclurilor) conform următoarei formule:\nSO 2013 total = număr mediu pui de carne x SO 2013 pui carne/100 unde numărul mediu este exprimat în cazul păsărilor ca număr întreg şi se\ncalculează proporţional cu durata prezenţei lor în exploataţie în timpul anului\nExemplu de calcul\nExploataţia achiziţionează 1000000 pui de carne în timpul unui an în mai multe cicluri:\n- Numărul mediu = nr. total păsări x numărul de luni prezente în exploataţie/12 luni = 1000000 x 2/12 = 166667 pui de carne\n- Coeficientul standard output SO aferent categoriei C_5_1 Pui de carne = 473,59 euro/100 capete\n- Va rezulta dimensiunea exploataţiei ca fiind:\nSO 2013 TOTAL = 166667 x 473,59/100 = 789318,25 euro.\nRegulamentele care stau la baza calculului SO sunt următoarele:\n• Regulamentul (CE) nr. 1217/2009 al Consiliului privind crearea unei reţele de colectare de informaţii contabile privind veniturile şi activitatea\neconomică a exploataţiilor agricole în Uniunea Europeană;\n• Documentul Comitetului Comunitar RICA RI/CC 1680 v.4 Martie 2015 privind Definițiile chestionarului utilizat în anchetă;\n• Regulamentul de punere în aplicare (UE) 220/ 3 februarie 2015 al Comisiei de stabilire a normelor de aplicare a Regulamentului (CE) nr.\n1217/2009 al Consiliului privind crearea unei rețele de colectare de informații contabile privind veniturile și activitatea economică a exploatațiilor agricole în\nUniunea Europeană;\n• Documentul Comitetului Comunitar RICA RI/CC 1500 v.4 Iunie 2016 Manual de tipologie"]
[]
[]
["F. DECLARAŢIE PE PROPRIA RĂSPUNDERE A SOLICITANTULUI"]
["Prin această declaraţie solicitantul"]
[]
["care solicită asistență financiară nerambursabilă prin programul FEADR pentru proiectul intitulat"]
[]
["prin reprezentant legal"]
[]
["cunoscând prevederile legii penale cu privire la falsul în declarații:"]
[null,null,null,"1. Declar că proiectul propus asistenței financiare nerambursabile FEADR nu beneficiază de altă finanțare din programe de finanțare nerambursabilă. De asemenea mă angajez ca în cazul în care proiectul va fi selectat pentru finanțare FEADR, nu voi depune acest proiect la nici un alt program de finanțare nerambursabilă la care proiectul poate fi în întregime sau parțial eligibil pentru asistență."]
[]
[null,null,null,"2. Declar că îndeplinesc condițiile de eligibilitate prevăzute în fișa sub-măsurii și Ghidul Solicitantului și mă angajez să le respect pe perioada de valabilitate a contractului de finanțare și monitorizare a investiției, inclusiv criteriile de selecție pentru care proiectul a fost punctat."]
[null,null,null,"3. Declar că toate informațiile din prezenta cerere de finanțare și din documentele anexate sunt corecte și mă angajez să respect condițiile cerute în reglementările referitoare la prezentul program și pe cele legate de proiectul anexat și să furnizez periodic, la cerere, documentele justificative necesare."]
[null,null,null,"4. Declar pe propria răspundere că orice modificări aduse dreptului de proprietate sau de folosinţă vor fi notificate AFIR în termen de trei zile de la data încheierii lor. De asemenea, mă angajez, ca pe perioada de valabilitate a contractului de finanţare şi monitorizare a investiţiei să nu diminuez suprafaţa şi/sau infrastructura cuprinsă în proiect."]
[null,null,null,"5. Declar că eu și organizația mea (UAT sau ONG) nu ne aflăm într-unul din următoarele cazuri:"]
[null,null,null,"Acuzat din cauza unei greșeli privind conduita profesională având ca soluție finală res judicata (împotriva căreia nici un apel nu este posibil)"]
[null,null,null,"Vinovat de grave deficiențe de conduită profesională dovedite prin orice mijloace pe care Agenția le poate justifica."]
[null,null,null,"Vinovat de faptul că nu am prezentat informaţiile cerute de Autoritatea Contractantă ca o condiţie de participare la licitaţie sau contractare"]
[null,null,null,"Încălcarea prevederilor contractuale prin care nu mi-am îndeplinit obligațiile contractuale în legătură cu un alt contract cu Agenția sau alte contracte finanțate din fonduri comunitare."]
[null,null,null,"Încercarea de a obține informații confidențiale sau de influențare a Agenției în timpul procesului de evaluare a proiectului și nu voi face presiuni la adresa evaluatorului."]
["6.",null,null,null,null,"Declar că organizaţia pe care o reprezint ARE datorii către institutii de credit şi/sau instituţii financiare bancare / nebancare pentru care prezint graficul de rambursare"]
[null,null,null,null,null,"Declar că organizaţia pe care o reprezint NU are datorii către instituţii de credit şi/sau instituţii financiare bancare / nebancare"]
["7.",null,null,null,null,"Declar pe propria răspundere că în cazul în care nu respect oricare din punctele prevazute în această declaraţie proiectul să devină neeligibil în baza criteriului \"Eligibilitatea solicitantului\" sau contractul să fie reziliat"]
["8.",null,null,null,null,"Declar pe propria răspundere că:"]
[null,null,null,null,null,"Nu sunt înregistrat în scopuri TVA și că mă angajez să notific Agenției orice modificare a situatiei privind înregistrarea ca plătitor de TVA, în maximum 10 (zece) zile de la data înregistrării în scopuri TVA."]
[null,null,null,null,null,"Sunt înregistrat în scopuri de TVA (certificat de înregistrare fiscală în scopuri de TVA)."]
["9.",null,null,null,null,"Declar pe propria răspundere că nu am înscrisuri care privesc sancțiuni economico-financiare în cazierul judiciar pe care mă oblig să îl depun la încheierea contractului de finanţare . Prin prezenta îmi exprim consimțământul ca AFIR să solicite instituțiilor abilitate conform legii, extrasul de pe cazierul judiciar privind situația mea.\n(Până la reglementarea posibilităţii aplicării de către experţii evaluatori AFIR a normelor metodologice aferente Legii nr. 290/2004 privind cazierul judiciar, cu modificările şi completările ulterioare, solicitantul are obligaţia depunerii documentului justificativ mai sus enunţat.)"]
["10.",null,null,null,null,"Declar pe propria raspundere că nu am fapte înscrise în cazierul fiscal."]
["11.",null,null,null,null,"Declar pe propria răspundere că toate cheltuielile neeligibile vor fi suportate de solicitant şi că acestea vor fi realizate până la finalizarea proiectului."]
["12.",null,null,null,null,"Declar pe propria răspundere că dosarul cererii de finanţare în original, va fi identic cu dosarul cererii de finanţare depus online. În caz contrar, proiectul nu va fi contractat."]
["13.",null,null,null,null,"Declar că mă angajez să îndeplinesc - Cerinţele minime obligatorii de respectare a bunelor practici agricole privind gestionarea gunoiului de grajd."]
["14.",null,null,null,null,"Mă angajez ca în termenul prevăzut în „Notificărea beneficiarului privind selectarea cererii de finanţare şi semnarea contractului de finanţare”, să prezint documentul privind cofinanţarea proiectului şi Angajamentul responsabilului legal al proiectului că nu va utiliza în alte scopuri 50% din cofinanțarea privată, în cazul prezentării cofinanţării prin extras de cont."]
["15.",null,null,null,null,"Mă angajez ca în maxim 4 luni de la data primirii \"Notificării beneficiarului privind selectarea cererii de finantare și semnarea contractului de finanțare\" să prezint documentul ANPM pentru proiect. Prin excepţie de la acest termen, în cazul în care proiectul se supune procedurilor de evaluare a impactului asupra mediului şi de evaluare adecvată sau doar de evaluare adecvată, mă angajez să prezint Acordul de mediu/Avizul Natura 2000 în termen de maximum 7 luni de la primirea Notificării solicitantului privind selectarea cererii de finanţare şi semnarea contractului de finanţare."]
["16.",null,null,null,null,"Mă angajez ca pe durata de execuție a contractului să-mi menţin cel puţin încadrarea în dimensiunea SO a exploataţiei agricole, fără a reduce dimensiunea economică a exploatației agricole, prevazută la depunerea cererii de finanțare, cu mai mult de 15% și fără a scădea, în nicio situație, sub pragul minim de 4.000 SO stabilit prin condițiile de eligibilitate."]
["17.",null,null,null,null,"Sunt de acord ca AFIR sa publice pe site, să consulte și să prelucreze, prin operațiunile prevăzute de legislația în vigoare în vederea desfășurării activității specifice, datele mele cu caracter personal, furnizate AFIR, cu respectarea legislaţiei europene şi naţionale privind transparenţa, publicarea datelor cu caracter personal şi prelucrarea acestora."]
[]
[null,"Semnătura reprezentant legal şi ştampila (după caz)",null,null,null,null,null,null,null,null,null,null,null,null,null,null,null,null,null,null,null,null,null,null,null,null,null,null,null,null,null,null,null,null,null,null,null,null,null,null,null," Data:"]
[]
[]
[]
["Anexa INDICATORI DE MONITORIZARE"]
["Măsura M1/2A  - Investiţii în exploatatii agricole in teritoriul MVS"]
[]
["1. Cod RO"]
["2. Cod CAEN"]
["3. Tipul beneficiarului",null,null,null,null,null,null,null,null,null,null,null,null,null,null,null,null,"Solicitanţi înfiinţaţi în baza OUG 44/2008",null,null,null,null,null,null,null,null,null,null,null,"Bărbaţi",null,null,null,null,null,null,null,null,null,null,null,"< 40"]
[null,null,null,null,null,null,null,null,null,null,null,null,null,null,null,null,null,null,null,null,null,null,null,null,null,null,null,null,null,null,null,null,null,null,null,null,null,null,null,null,null,">= 40"]
[null,null,null,null,null,null,null,null,null,null,null,null,null,null,null,null,null,null,null,null,null,null,null,null,null,null,null,null,null,"Femei",null,null,null,null,null,null,null,null,null,null,null,"< 40"]
[null,null,null,null,null,null,null,null,null,null,null,null,null,null,null,null,null,null,null,null,null,null,null,null,null,null,null,null,null,null,null,null,null,null,null,null,null,null,null,null,null,">= 40"]
[null,null,null,null,null,null,null,null,null,null,null,null,null,null,null,null,null,"Persoană juridică"]
["4. Tipul de zonă",null,null,null,null,null,null,null,null,null,null,null,null,null,null,null,null,"Zonă normală"]
[null,null,null,null,null,null,null,null,null,null,null,null,null,null,null,null,null,"Zonă montană"]
[null,null,null,null,null,null,null,null,null,null,null,null,null,null,null,null,null,"Zonă constrângeri specifice"]
[null,null,null,null,null,null,null,null,null,null,null,null,null,null,null,null,null,"Zonă constrângeri semnificative"]
["5. Tipul producţiei",null,null,null,null,null,null,null,null,null,null,null,null,null,null,null,null,"Ecologică"]
[null,null,null,null,null,null,null,null,null,null,null,null,null,null,null,null,null,"Convenţională"]
["6. Numărul de exploataţii sprijinite"]
["7. Dimensiunea economică a exploataţiei",null,null,null,null,null,null,null,null,null,null,null,null,null,null,null,null,"8.000 - 11.999 SO (mică)"]
[null,null,null,null,null,null,null,null,null,null,null,null,null,null,null,null,null,"12.000 – 250.000 SO (medie)"]
[null,null,null,null,null,null,null,null,null,null,null,null,null,null,null,null,null,">250.000 SO (mare)"]
["8. Suprafaţa exploataţiilor agricole sprijinite (Ha)"]
["9. Suprafaţa vizată de investiţii pentru sisteme de irigaţii (Ha)"]
["10. Tip ramură agricolă",null,null,null,null,null,null,null,null,null,null,null,null,null,null,null,null,"Albine"]
[null,null,null,null,null,null,null,null,null,null,null,null,null,null,null,null,null,"Culturi de câmp"]
[null,null,null,null,null,null,null,null,null,null,null,null,null,null,null,null,null,"Horticultură"]
[null,null,null,null,null,null,null,null,null,null,null,null,null,null,null,null,null,"Viticultură"]
[null,null,null,null,null,null,null,null,null,null,null,null,null,null,null,null,null,"Creștere bovine pentru carne"]
[null,null,null,null,null,null,null,null,null,null,null,null,null,null,null,null,null,"Creștere bovine pentru lapte"]
[null,null,null,null,null,null,null,null,null,null,null,null,null,null,null,null,null,"Creștere ovine și caprine"]
[null,null,null,null,null,null,null,null,null,null,null,null,null,null,null,null,null,"Porcine"]
[null,null,null,null,null,null,null,null,null,null,null,null,null,null,null,null,null,"Păsări de curte"]
[null,null,null,null,null,null,null,null,null,null,null,null,null,null,null,null,null,"Mixte - culturi mixte"]
[null,null,null,null,null,null,null,null,null,null,null,null,null,null,null,null,null,"Mixte - culturi si animale cu exceptia albinelor"]
[null,null,null,null,null,null,null,null,null,null,null,null,null,null,null,null,null,"Albine"]
[null,null,null,null,null,null,null,null,null,null,null,null,null,null,null,null,null,"Altele"]
["11. Categoria investiţiei",null,null,null,null,null,null,null,null,null,null,null,null,null,null,null,null,"Utilaje şi echipamente"]
[null,null,null,null,null,null,null,null,null,null,null,null,null,null,null,null,null,"Construcţii agricole (inclusiv echipamentele asociate)"]
[null,null,null,null,null,null,null,null,null,null,null,null,null,null,null,null,null,"Alte investiţii agricole"]
["12. Tipul investiţiei",null,null,null,null,null,null,null,null,null,null,null,null,null,null,null,null,"a. Investiții în înființarea, extinderea şi/sau modernizarea fermelor zootehnice, inclusiv tehnologii eficiente de reducere a poluării și respectarea standardelor Uniunii şi cele pentru depozitarea/ gestionarea adecvată a gunoiului de grajd;"]
[null,null,null,null,null,null,null,null,null,null,null,null,null,null,null,null,null,"b. Investiții în înființarea, extinderea şi/sau modernizarea fermelor vegetale, inclusiv capacități de stocare, condiționare, sortare, ambalare a producției vegetale pentru creșterea valorii adăugate a produselor;"]
[null,null,null,null,null,null,null,null,null,null,null,null,null,null,null,null,null,"c. Investiții în scopul îndeplinirii standardelor comunitare în cazul tinerilor fermieri în conformitate cu art 17 (5) al Reg. 1305/2013;"]
[null,null,null,null,null,null,null,null,null,null,null,null,null,null,null,null,null,"d. Înființare şi/sau modernizarea căilor de acces în cadrul fermei, inclusiv utilităţi şi racordări;"]
[null,null,null,null,null,null,null,null,null,null,null,null,null,null,null,null,null,"e. Investiții în procesarea produselor agricole la nivel de fermă, precum și investiții în vederea comercializării;"]
[null,null,null,null,null,null,null,null,null,null,null,null,null,null,null,null,null,"f. Investiții în înființarea/înlocuirea plantațiilor pentru strugurii de masă și alte culturi perene"]
[null,null,null,null,null,null,null,null,null,null,null,null,null,null,null,null,null,"g. Investitii privind înființarea, extinderea şi/sau modernizarea fermelor, altele decat cele mentionate la punctele a-f"]
["13. Număr capete de animale \n\nBeneficiarii ale caror tipuri de investitii NU vizeaza cresterea animalelor, vor completa fiecare subcategorie cu valoarea “0”; \nbeneficiarii ale caror tipuri de investitii vizeaza cresterea animalelor, vor completa valorile pe care le detin, in dreptul subcategoriilor corespunzatoare (ex: bovine, ovine, caprine, etc), iar restul subcategoriilor vor fi completate cu “0”. ",null,null,null,null,null,null,null,null,null,null,null,null,null,null,null,null,"Tauri, vaci şi alte bovine de mai mult de 2 ani şi cabaline de mai mult de 6 luni"]
[null,null,null,null,null,null,null,null,null,null,null,null,null,null,null,null,null,"Bovine între 6 luni şi 2 ani"]
[null,null,null,null,null,null,null,null,null,null,null,null,null,null,null,null,null,"Bovine de mai puţin de 6 luni"]
[null,null,null,null,null,null,null,null,null,null,null,null,null,null,null,null,null,"Ovine"]
[null,null,null,null,null,null,null,null,null,null,null,null,null,null,null,null,null,"Caprine"]
[null,null,null,null,null,null,null,null,null,null,null,null,null,null,null,null,null,"Scroafe de reproducţie > 50 kg"]
[null,null,null,null,null,null,null,null,null,null,null,null,null,null,null,null,null,"Alte porcine"]
[null,null,null,null,null,null,null,null,null,null,null,null,null,null,null,null,null,"Găini outoare"]
[null,null,null,null,null,null,null,null,null,null,null,null,null,null,null,null,null,"Alte păsări de curte"]
["11. Categoria investiţiei",null,null,null,null,null,null,null,null,null,null,null,null,null,null,null,null,"M01 - Transfer de cunoştinţe şi acţiuni de informare"]
[null,null,null,null,null,null,null,null,null,null,null,null,null,null,null,null,null,"M02 - Servicii de consiliere"]
[null,null,null,null,null,null,null,null,null,null,null,null,null,null,null,null,null,"M16 - Cooperare"]
[]
["*Pentru indicatorii de tip numeric care nu fac obiectul investiției se va completa valoarea zero.\nIndic. nr.1 - reprezintă codul de inregistrare al beneficiarului în Registrul Fermierului la APIA\nIndic. nr.2 - reprezintă codul CAEN pentru investiţia vizată prin proiect\nIndic. nr. 3, 4, 5, 7, 10, 12 - se va bifa doar o singura categorie/ categoria majoritară\nIndic. nr. 6 - se completează numărul exploataţiilor sprijinite prin proiect; in cazul investitiilor colective realizate de formele asociative ale fermierilor (cooperative/grupuri de producatori) se va mentiona nr. de exploatatii care fac parte din formele asociative implicate/sprijinite in proiect.\nIndic. nr. 8 - se completează suprafaţa (Ha) exploataţiilor agricole sprijinite prin proiect\nIndic. nr.9 - se completează suprafaţa (Ha) vizată de investiţii pentru sisteme de irigaţii\nIndic. nr. 11 - se va bifa categoria majoritară.\nÎn categoria \"Utilaje şi echipamente\" se vor încadra investiţii precum: investiţii privind achiziţia de tractoare, combine, maşini, utilaje, echipamente agricole etc, canalizare/ instalaţii de tratare a apelor uzate, instalaţii de irigat, instalatii pentru procesarea complexa a furajelor pentru animale.\nÎn categoria \"Construcţii agricole\" se vor încadra investiţii precum: construirea şi/ sau modernizarea clădirilor utilizate pentru producţia agricolă la nivel de fermă, fose septice si platforme gunoi de grajd, alte construcţii în fermă cum ar fi: sere, depozite, mici adaposturi pentru prepararea nutreturilor combinate, instalatii necesare depozitarii in conditii optime.\nÎn categoria \"Alte investiţii agricole\" se vor încadra tipurile de investiţii care nu se încadrează în primele două categorii.\nIndic. nr. 13 - Beneficiarii ale caror tipuri de investitii NU vizeaza cresterea animalelor, vor completa fiecare subcategorie cu valoarea “0”; beneficiarii ale caror tipuri de investitii vizeaza cresterea animalelor, vor completa valorile pe care le detin, in dreptul subcategoriilor corespunzatoare (ex: bovine, ovine, caprine, etc), iar restul subcategoriilor vor fi completate cu “0”.\nIndic. nr. 14 - se va completa din momentul demararii M01, M02, respectiv M16"]
[]
[]
[]
[]
[]
[]
["Factori de risc"]
["I1. Valoarea sprijinului public nerambursabil (EURO)",null,null,null,null,null,null,null,null,null,null,null,null,null,null,null,null,null,null,null,null,null,null,null,null,null,null,null,null,null,null,null,null,null,null,null,null,null,null,null,null,null,null,null,null,null,null,null,null,null,"Punctaj obţinut"]
["• proiecte cu valoarea sprijinului nerambursabil < 100 000 euro",null,null,null,null,null,null,null,null,null,null,null,null,null,null,null,null,null,null,null,null,null,null,null,null,null,null,null,null,null,null,null,null,null,null,null,null,null,null,null,null,null,null,null,null,null,null,null,null,null,2]
["• proiecte cu valoarea sprijinului nerambursabil între 100.000 – 500.000 euro",null,null,null,null,null,null,null,null,null,null,null,null,null,null,null,null,null,null,null,null,null,null,null,null,null,null,null,null,null,null,null,null,null,null,null,null,null,null,null,null,null,null,null,null,null,null,null,null,null,3]
["• proiecte cu valoarea sprijinului nerambursabil între 500.001 – 1.000.000 euro",null,null,null,null,null,null,null,null,null,null,null,null,null,null,null,null,null,null,null,null,null,null,null,null,null,null,null,null,null,null,null,null,null,null,null,null,null,null,null,null,null,null,null,null,null,null,null,null,null,4]
["• proiecte cu valoarea sprijinului nerambursabil între 1.000.001 – 2.000.000 euro",null,null,null,null,null,null,null,null,null,null,null,null,null,null,null,null,null,null,null,null,null,null,null,null,null,null,null,null,null,null,null,null,null,null,null,null,null,null,null,null,null,null,null,null,null,null,null,null,null,5]
[]
["I2. Complexitatea investiţiei"]
["Beneficiari Privaţi/Publici",null,null,null,null,null,null,null,null,null,null,null,null,null,null,null,null,null,null,null,null,null,null,null,null,null,null,null,null,null,null,null,null,null,null,null,null,null,null,null,null,null,null,null,null,null,null,null,null,null,"Punctaj obţinut"]
["• Investiţie nouă",null,null,null,null,null,null,null,null,null,null,null,null,null,null,null,null,null,null,null,null,null,null,null,null,null,null,null,null,null,null,null,null,null,null,null,null,null,null,null,null,null,null,null,null,null,null,null,null,null,5]
["• Modernizări cu C şi/sau M",null,null,null,null,null,null,null,null,null,null,null,null,null,null,null,null,null,null,null,null,null,null,null,null,null,null,null,null,null,null,null,null,null,null,null,null,null,null,null,null,null,null,null,null,null,null,null,null,null,4]
["• Modernizări prin achiziţie simplă(utilaje)",null,null,null,null,null,null,null,null,null,null,null,null,null,null,null,null,null,null,null,null,null,null,null,null,null,null,null,null,null,null,null,null,null,null,null,null,null,null,null,null,null,null,null,null,null,null,null,null,null,3]
[]
["I3. Intensitatea sprijinului (procent contribuţie publică)",null,null,null,null,null,null,null,null,null,null,null,null,null,null,null,null,null,null,null,null,null,null,null,null,null,null,null,null,null,null,null,null,null,null,null,null,null,null,null,null,null,null,null,null,null,null,null,null,null,"Punctaj obţinut"]
["70% -90%",null,null,null,null,null,null,null,null,null,null,null,null,null,null,null,null,null,null,null,null,null,null,null,null,null,null,null,null,null,null,null,null,null,null,null,null,null,null,null,null,null,null,null,null,null,null,null,null,null,5]
["50%-69%",null,null,null,null,null,null,null,null,null,null,null,null,null,null,null,null,null,null,null,null,null,null,null,null,null,null,null,null,null,null,null,null,null,null,null,null,null,null,null,null,null,null,null,null,null,null,null,null,null,4]
["<50%",null,null,null,null,null,null,null,null,null,null,null,null,null,null,null,null,null,null,null,null,null,null,null,null,null,null,null,null,null,null,null,null,null,null,null,null,null,null,null,null,null,null,null,null,null,null,null,null,null,1]
[]
["I4. Riscul proiectului d.p.d.v. al % raportului între cheltuielile suportate de solicitant şi Valoarea ajutorului nerambursabil.\nCheltuielile suportate de solicitant = Total valoare proiect (fără TVA) – Valoarea\najutorului nerambursabil solicitat.\n\n        Total valoare proiect(fără TVA)-Valoarea ajutorului nerambursabil solicitat\n% = --------------------------------------------------------------------------------------- x 100\n                                Valoarea ajutorului nerambursabil solicitat",null,null,null,null,null,null,null,null,null,null,null,null,null,null,null,null,null,null,null,null,null,null,null,null,null,null,null,null,null,null,null,null,null,null,null,null,null,null,null,null,null,null,null,null,null,null,null,null,null,"Punctaj obţinut"]
["• > 200%",null,null,null,null,null,null,null,null,null,null,null,null,null,null,null,null,null,null,null,null,null,null,null,null,null,null,null,null,null,null,null,null,null,null,null,null,null,null,null,null,null,null,null,null,null,null,null,null,null,5]
["• Între 176 şi 200%",null,null,null,null,null,null,null,null,null,null,null,null,null,null,null,null,null,null,null,null,null,null,null,null,null,null,null,null,null,null,null,null,null,null,null,null,null,null,null,null,null,null,null,null,null,null,null,null,null,4]
["• Între 151 şi 175%",null,null,null,null,null,null,null,null,null,null,null,null,null,null,null,null,null,null,null,null,null,null,null,null,null,null,null,null,null,null,null,null,null,null,null,null,null,null,null,null,null,null,null,null,null,null,null,null,null,3]
["• Între 121 şi 150%",null,null,null,null,null,null,null,null,null,null,null,null,null,null,null,null,null,null,null,null,null,null,null,null,null,null,null,null,null,null,null,null,null,null,null,null,null,null,null,null,null,null,null,null,null,null,null,null,null,2]
["• < 121%",null,null,null,null,null,null,null,null,null,null,null,null,null,null,null,null,null,null,null,null,null,null,null,null,null,null,null,null,null,null,null,null,null,null,null,null,null,null,null,null,null,null,null,null,null,null,null,null,null,1]
[]
["I5. Capacitatea societăţii de a manageria proiectul, experienţă în derularea afacerilor",null,null,null,null,null,null,null,null,null,null,null,null,null,null,null,null,null,null,null,null,null,null,null,null,null,null,null,null,null,null,null,null,null,null,null,null,null,null,null,null,null,null,null,null,null,null,null,null,null,"Punctaj obţinut"]
["• Firmă nouă sau fără activitate",null,null,null,null,null,null,null,null,null,null,null,null,null,null,null,null,null,null,null,null,null,null,null,null,null,null,null,null,null,null,null,null,null,null,null,null,null,null,null,null,null,null,null,null,null,null,null,null,null,5]
["• Firmă cu experienţă dar care nu a participat la alt proiect comunitar sau nu a obţinut asistenţă financiară nerambursabilă din partea altui instrument financiar",null,null,null,null,null,null,null,null,null,null,null,null,null,null,null,null,null,null,null,null,null,null,null,null,null,null,null,null,null,null,null,null,null,null,null,null,null,null,null,null,null,null,null,null,null,null,null,null,null,4]
["• Firmă cu experienţă care a finalizat un proiect comunitar sau a obţinut din asistenţă financiară nerambursabilă din partea altui instrument financiar",null,null,null,null,null,null,null,null,null,null,null,null,null,null,null,null,null,null,null,null,null,null,null,null,null,null,null,null,null,null,null,null,null,null,null,null,null,null,null,null,null,null,null,null,null,null,null,null,null,3]
["TOTAL",null,null,null,null,null,null,null,null,null,null,null,null,null,null,null,null,null,null,null,null,null,null,null,null,null,null,null,null,null,null,null,null,null,null,null,null,null,null,null,null,null,null,null,null,null,null,null,null,null,{"$f":"BJ1*0.3+BJ2*0.25+BJ3*0.2+BJ4*0.15+BJ5*0.1","v":3.1}]
[]
[null,null,"Codul unic de înregistrare APIA"]
[null,null,"În cazul în care nu aveți un cod unic de înregistrare APIA, completați acest formular."]
["FORMULAR"]
["de înscriere în Registrul unic de identificare pentru solicitanţii de finanţare prin măsurile"]
["Programului naţional de dezvoltare rurală 2014 - 2020"]
[]
["Denumire solicitant:"]
[]
["Categorie Solicitant:"]
[]
["Sediul / Adresa"]
[]
["Ţara",null,null,null,null,"România",null,null,null,null,null,null,null,null,"Judeţul",null,null,null,null,null,null,null,null,null,null,null,null,null,null,null,null,null,null,"oraşul"]
[]
["comuna",null,null,null,null,null,null,null,null,null,null,null,null,null,null,null,null,null,null,null,null,"satul",null,null,null,null,null,null,null,null,null,null,null,null,null,null,null,null,null,"strada"]
[]
["nr.",null,null,null,null,null,null,null,"bl.",null,null,null,null,null,"et.",null,null,null,null,"ap.",null,null,null,null,null,"sectorul",null,null,null,null,null,null,null,null,null,null,null,null,"codul poştal"]
[]
["Număr de telefon",null,null,null,null,null,null,null,null,null,null,null,null,null,null,null,null,null,null,null,null,null,null,"Fax",null,null,null,null,null,null,null,null,null,null,null,null,null,null,"E-mail"]
[]
["Număr de înregistrare în registrul comerțului/Registrul asociațiilor și fundațiilor"]
[]
["CUI / CIF"]
[]
["Cod CAEN pentru activitatea principală"]
[]
["Cod CAEN pentru activitatea secundară pentru care se solicită înregistrarea în Registrul unic de identificare"]
[]
["Cod IBAN"]
[]
["deschis la Banca"]
[]
["Sucursala / Agenție"]
[]
["Prin reprezentant legal, doamna/domnul"]
[]
["cu CNP",null,null,null,null,null,null,null,null,null,null,null,null,null,null,"solicit înscrierea în Registrul unic de îdentificare - Agenţia de Plăţi şi Intervenţie pentru Agricultură."]
[]
["Am luat la cunoştinţă că orice modificare a informaţiilor de mai sus trebuie furnizată către APIA în termen de maximum 10 zile\nlucrătoare de la producerea acestora.\nDeclar pe propria răspundere că cele de mai sus sunt conforme cu realitatea.\nSunt de acord ca datele din cerere să fie introduse în baza de date a Sistemului Integrat de Administrare şi Control, procesate şi\nverificate în vederea înscrierii în Registrul unic de identificare şi transmise autorităţilor responsabile în vederea elaborării de studii\nstatistice şi de evaluări economice, în condiţiile Legii nr. 677-2001 pentru protecţia persoanelor cu privire la prelucrarea datelor cu\ncaracter personal şi libera circulaţie a acestor date, cu modificarile şi completările ulterioare."]
[]
["Reprezentant legal",null,null,null,null,null,null,null,null,null,null,null,null,null,null,null,null,null,null,null,null,null,null,null,null,null,null,null,null,null,null,null,null,null,null,null,null,null,null,null,null,null,null,"Data:"]
[]
["Numele şi prenumele"]
[]
["Semnătura "]

{"sheet":"Anexa 1 HG_907","index":1,"n_rows":98,"n_cols":52,"rows_kept":98,"cut":false,"hidden":false,"merged":[[96,0,96,41],[96,42,96,50],[96,51,96,60],[97,0,97,41],[97,42,97,60],[99,0,99,42],[94,0,94,3],[94,4,94,41],[94,42,94,50],[94,51,94,60],[95,0,95,41],[95,42,95,50],[95,51,95,60],[92,0,92,3],[92,4,92,41],[92,42,92,50],[92,51,92,60],[93,0,93,3],[93,4,93,41],[93,42,93,50],[93,51,93,60],[90,0,90,3],[90,4,90,41],[90,42,90,50],[90,51,90,60],[91,0,91,3],[91,4,91,41],[91,42,91,50],[91,51,91,60],[88,0,88,3],[88,4,88,41],[88,42,88,50],[88,51,88,60],[89,0,89,3],[89,4,89,41],[89,42,89,50],[89,51,89,60],[86,0,86,3],[86,4,86,41],[86,42,86,50],[86,51,86,60],[87,0,87,3],[87,4,87,41],[87,42,87,50],[87,51,87,60],[84,0,84,3],[84,4,84,41],[84,42,84,50],[84,51,84,60],[85,0,85,3],[85,4,85,41],[85,42,85,50],[85,51,85,60],[82,0,82,3],[82,4,82,41],[82,42,82,50],[82,51,82,60],[83,0,83,3],[83,4,83,41],[83,42,83,50],[83,51,83,60],[80,0,80,3],[80,4,80,41],[80,42,80,50],[80,51,80,60],[81,0,81,3],[81,4,81,41],[81,42,81,50],[81,51,81,60],[78,0,78,3],[78,4,78,41],[78,42,78,50],[78,51,78,60],[79,0,79,3],[79,4,79,41],[79,42,79,50],[79,51,79,60],[76,0,76,3],[76,4,76,41],[76,42,76,50],[76,51,76,60],[77,0,77,3],[77,4,77,41],[77,42,77,50],[77,51,77,60],[74,0,74,3],[74,4,74,41],[74,42,74,50],[74,51,74,60],[75,0,75,3],[75,4,75,41],[75,42,75,50],[75,51,75,60],[72,0,72,3],[72,4,72,41],[72,42,72,50],[72,51,72,60],[73,0,73,3],[73,4,73,41],[73,42,73,50],[73,51,73,60],[70,0,70,3],[70,4,70,41],[70,42,70,50],[70,51,70,60],[71,0,71,3],[71,4,71,41],[71,42,71,50],[71,51,71,60],[68,0,68,3],[68,4,68,41],[68,42,68,50],[68,51,68,60],[69,0,69,3],[69,4,69,41],[69,42,69,50],[69,51,69,60],[66,0,66,3],[66,4,66,41],[66,42,66,50],[66,51,66,60],[67,0,67,3],[67,4,67,41],[67,42,67,50],[67,51,67,60],[64,0,64,3],[64,4,64,41],[64,42,64,50],[64,51,64,60],[65,0,65,3],[65,4,65,41],[65,42,65,50],[65,51,65,60],[62,0,62,3],[62,4,62,41],[62,42,62,50],[62,51,62,60],[63,0,63,3],[63,4,63,41],[63,42,63,50],[63,51,63,60],[60,0,60,3],[60,4,60,41],[60,42,60,50],[60,51,60,60],[61,0,61,3],[61,4,61,41],[61,42,61,50],[61,51,61,60],[57,0,57,60],[58,0,58,3],[58,4,58,41],[58,42,58,50],[58,51,58,60],[59,0,59,3],[59,4,59,41],[59,42,59,50],[59,51,59,60],[53,7,53,41],[53,42,53,50],[53,51,53,60],[54,7,54,60],[55,0,55,60],[56,0,56,60],[47,0,47,41],[47,42,47,60],[49,0,49,42],[50,7,50,41],[51,7,51,41],[51,42,52,60],[52,7,52,41],[45,0,45,41],[45,42,45,50],[45,51,45,60],[46,0,46,41],[46,42,46,50],[46,51,46,60],[43,0,43,3],[43,4,43,41],[43,42,43,50],[43,51,43,60],[44,0,44,3],[44,4,44,41],[44,42,44,50],[44,51,44,60],[41,0,41,3],[41,4,41,41],[41,42,41,50],[41,51,41,60],[42,0,42,3],[42,4,42,41],[42,42,42,50],[42,51,42,60],[39,0,39,3],[39,4,39,41],[39,42,39,50],[39,51,39,60],[40,0,40,3],[40,4,40,41],[40,42,40,50],[40,51,40,60],[37,0,37,3],[37,4,37,41],[37,42,37,50],[37,51,37,60],[38,0,38,3],[38,4,38,41],[38,42,38,50],[38,51,38,60],[35,0,35,3],[35,4,35,41],[35,42,35,50],[35,51,35,60],[36,0,36,3],[36,4,36,41],[36,42,36,50],[36,51,36,60],[33,0,33,3],[33,4,33,41],[33,42,33,50],[33,51,33,60],[34,0,34,3],[34,4,34,41],[34,42,34,50],[34,51,34,60],[31,0,31,3],[31,4,31,41],[31,42,31,50],[31,51,31,60],[32,0,32,3],[32,4,32,41],[32,42,32,50],[32,51,32,60],[29,0,29,3],[29,4,29,41],[29,42,29,50],[29,51,29,60],[30,0,30,3],[30,4,30,41],[30,42,30,50],[30,51,30,60],[27,0,27,3],[27,4,27,41],[27,42,27,50],[27,51,27,60],[28,0,28,3],[28,4,28,41],[28,42,28,50],[28,51,28,60],[25,0,25,3],[25,4,25,41],[25,42,25,50],[25,51,25,60],[26,0,26,3],[26,4,26,41],[26,42,26,50],[26,51,26,60],[23,0,23,3],[23,4,23,41],[23,42,23,50],[23,51,23,60],[24,0,24,3],[24,4,24,41],[24,42,24,50],[24,51,24,60],[21,0,21,3],[21,4,21,41],[21,42,21,50],[21,51,21,60],[22,0,22,3],[22,4,22,41],[22,42,22,50],[22,51,22,60],[19,0,19,3],[19,4,19,41],[19,42,19,50],[19,51,19,60],[20,0,20,3],[20,4,20,41],[20,42,20,50],[20,51,20,60],[17,0,17,3],[17,4,17,41],[17,42,17,50],[17,51,17,60],[18,0,18,3],[18,4,18,41],[18,42,18,50],[18,51,18,60],[15,0,15,3],[15,4,15,41],[15,42,15,50],[15,51,15,60],[16,0,16,3],[16,4,16,41],[16,42,16,50],[16,51,16,60],[13,0,13,3],[13,4,13,41],[13,42,13,50],[13,51,13,60],[14,0,14,3],[14,4,14,41],[14,42,14,50],[14,51,14,60],[11,0,11,3],[11,4,11,41],[11,42,11,50],[11,51,11,60],[12,0,12,3],[12,4,12,41],[12,42,12,50],[12,51,12,60],[10,0,10,3],[10,4,10,41],[10,42,10,50],[10,51,10,60],[4,7,4,60],[5,0,5,60],[6,0,6,60],[7,0,7,60],[8,0,8,3],[8,4,8,41],[8,42,8,50],[8,51,8,60],[0,7,0,41],[1,7,1,41],[1,42,2,60],[2,7,2,41],[3,7,3,41],[3,42,3,50],[3,51,3,60],[9,0,9,3],[9,4,9,41],[9,42,9,50],[9,51,9,60]]}
[null,null,null,null,null,null,null,"MINISTERUL AGRICULTURII ŞI DEZVOLTĂRII RURALE"]
[null,null,null,null,null,null,null,null,null,null,null,null,null,null,null,null,null,null,null,null,null,null,null,null,null,null,null,null,null,null,null,null,null,null,null,null,null,null,null,null,null,null,"Anexa A1 HG_907"]
[null,null,null,null,null,null,null,"AGENŢIA PENTRU FINANŢAREA INVESTIŢIILOR RURALE"]
[null,null,null,null,null,null,null,null,null,null,null,null,null,null,null,null,null,null,null,null,null,null,null,null,null,null,null,null,null,null,null,null,null,null,null,null,null,null,null,null,null,null,null,null,null,null,null,null,null,null,null,"Aprilie 2017"]
[null,null,null,null,null,null,null,"Deviz financiar- Capitolul 3 - Cheltuieli pentru proiectare şi asistenţa tehnică - EURO"]
["Nr.2"]
[]
["(Titlu deviz)"]
["Nr.crt",null,null,null,"Specificaţie",null,null,null,null,null,null,null,null,null,null,null,null,null,null,null,null,null,null,null,null,null,null,null,null,null,null,null,null,null,null,null,null,null,null,null,null,null,"Valoare eligibilă",null,null,null,null,null,null,null,null,"Valoare\nneeligibilă"]
["3.1",null,null,null,"Cheltuieli pentru studii ",null,null,null,null,null,null,null,null,null,null,null,null,null,null,null,null,null,null,null,null,null,null,null,null,null,null,null,null,null,null,null,null,null,null,null,null,null,{"$f":"SUM(AQ11:AY13)","v":0},null,null,null,null,null,null,null,null,{"$f":"SUM(AZ11:BI13)","v":0}]
[null,null,null,null,"3.1.1 Studii de teren: studii geotehnice, geologice, hidrologice, hidrogeotehnice, fotogrammetrice, topografica şi de stabilitate ale terenului pe care se amplasează obiectivul de investiţie"]
[null,null,null,null,"3.1.2 Raport privind impactul asupra mediului"]
[null,null,null,null,"3.1.3 Studii de specialitate necesare în funcţie de specificul investiţiei"]
["3.2",null,null,null,"Documentaţii-suport şi cheltuieli pentru obţinerea de avize, acorduri şi autorizaţii",null,null,null,null,null,null,null,null,null,null,null,null,null,null,null,null,null,null,null,null,null,null,null,null,null,null,null,null,null,null,null,null,null,null,null,null,null,{"$f":"SUM(AQ15:AY23)","v":0},null,null,null,null,null,null,null,null,{"$f":"SUM(AZ15:BI23)","v":0}]
[null,null,null,null,"1. obţinerea/prelungirea valabilităţii ceritificatului de urbanism"]
[null,null,null,null,"2. obţinerea/prelungirea valabilităţii autorizaţiei de construire/desfiinţare"]
[null,null,null,null,"3. obţinerea avizelor şi acordurilor pentru racorduri şi branşamente la reţele publice de alimentare cu apă, canalizare, alimentare cu gaze, alimentare cu agent termic, energie electrică, telefonie"]
[null,null,null,null,"4. obţinerea certificatului de nomenclatură stradală şi adresă"]
[null,null,null,null,"5. întocmirea documentaţiei, obţinerea numărului cadastral provizoriu şi înregistrarea terenului în cartea funciară"]
[null,null,null,null,"6. obţinerea actului administrativ al autorităţii competente pentru protecţia mediului"]
[null,null,null,null,"7. obţinerea avizului de protecţie civilă"]
[null,null,null,null,"8. avizul de specialitate în cazul obiectivelor de patrimoniu"]
[null,null,null,null,"9. alte avize, acorduri şi autorizaţii"]
["3.3",null,null,null,"Cheltuieli pentru expertizarea tehnică a construcţiilor existente, a structurilor şi/sau, după caz, a proiectelor tehnice, inclusiv întocmirea de către expertul tehnic a raportului de expertiză tehnică"]
["3.4",null,null,null,"Cheltuieli pentru certificarea performanţei energetice şi auditul energetic al clădirilor"]
["3.5",null,null,null,"Cheltuieli pentru proiectare",null,null,null,null,null,null,null,null,null,null,null,null,null,null,null,null,null,null,null,null,null,null,null,null,null,null,null,null,null,null,null,null,null,null,null,null,null,{"$f":"SUM(AQ27:AY32)","v":0},null,null,null,null,null,null,null,null,{"$f":"SUM(AZ27:BI32)","v":0}]
[null,null,null,null,"3.5.1 Temă de proiectare"]
[null,null,null,null,"3.5.2 Studiu de prefezabilitate"]
[null,null,null,null,"3.5.3 Studiu de fezabilitate/documentaţie de avizare a lucrărilor de intervenţii şi deviz general"]
[null,null,null,null,"3.5.4 Documentaţiile tehnice necesare în vederea obţinerii avizelor/acordurilor/ autorizaţiilor"]
[null,null,null,null,"3.5.5 Verificarea tehnică de calitate a proiectului tehnic şi a detaliilor de execuţie"]
[null,null,null,null,"3.5.6 Proiect tehnic şi detalii de execuţie"]
["3.6",null,null,null,"Cheltuieli aferente organizării şi derulării procedurilor de achiziţii publice",null,null,null,null,null,null,null,null,null,null,null,null,null,null,null,null,null,null,null,null,null,null,null,null,null,null,null,null,null,null,null,null,null,null,null,null,null,{"$f":"SUM(AQ34:AY37)","v":0},null,null,null,null,null,null,null,null,{"$f":"SUM(AZ34:BI37)","v":0}]
[null,null,null,null,"1. Cheltuieli aferente întocmirii documentaţiei de atribuire şi multiplicării acesteia (exclusiv cele cumpărate de ofertanţi)"]
[null,null,null,null,"2. Cheltuieli cu onorariile, transportul, cazarea şi diurna membrilor desemnaţi în comisiile de evaluare"]
[null,null,null,null,"3. Anunţuri de intenţie, de participare şi de atribuire a contractelor, corespondenţă prin poştă, fax, poştă electronică în legătură cu procedurile de achiziţie publică"]
[null,null,null,null,"4. Cheltuieli aferente organizării şi derulării procedurilor de achiziţii publice"]
["3.7",null,null,null,"Cheltuieli pentru consultanţă",null,null,null,null,null,null,null,null,null,null,null,null,null,null,null,null,null,null,null,null,null,null,null,null,null,null,null,null,null,null,null,null,null,null,null,null,null,{"$f":"SUM(AQ39:AY40)","v":0},null,null,null,null,null,null,null,null,{"$f":"SUM(AZ39:BI40)","v":0}]
[null,null,null,null,"3.7.1 Managementul de proiect pentru obiectivul de investiţii"]
[null,null,null,null,"3.7.2 Auditul financiar"]
["3.8",null,null,null,"Cheltuieli pentru asistenţă tehnică",null,null,null,null,null,null,null,null,null,null,null,null,null,null,null,null,null,null,null,null,null,null,null,null,null,null,null,null,null,null,null,null,null,null,null,null,null,{"$f":"AQ42+AQ45","v":0},null,null,null,null,null,null,null,null,{"$f":"AZ42+AZ45","v":0}]
[null,null,null,null,"3.8.1. Asistenţă tehnică din partea proiectantului",null,null,null,null,null,null,null,null,null,null,null,null,null,null,null,null,null,null,null,null,null,null,null,null,null,null,null,null,null,null,null,null,null,null,null,null,null,{"$f":"SUM(AQ43:AY44)","v":0},null,null,null,null,null,null,null,null,{"$f":"SUM(AZ43:BI44)","v":0}]
[null,null,null,null,"\n1.1. pe perioada de execuţie a lucrărilor"]
[null,null,null,null,"1.2. pentru participarea proiectantului la fazele incluse în programul de control al lucrărilor de execuţie, avizat de către Inspectoratul de Stat în Construcţii"]
[null,null,null,null,"3.8.2 Dirigenţie de şantier, asigurată de personal tehnic de specialitate, autorizat"]
["Total valoare fără TVA",null,null,null,null,null,null,null,null,null,null,null,null,null,null,null,null,null,null,null,null,null,null,null,null,null,null,null,null,null,null,null,null,null,null,null,null,null,null,null,null,null,{"$f":"AQ10+AQ14+AQ24+AQ25+AQ26+AQ33+AQ38+AQ41","v":0},null,null,null,null,null,null,null,null,{"$f":"AZ10+AZ14+AZ24+AZ25+AZ26+AZ33+AZ38+AZ41","v":0}]
["Valoare TVA (aferentă cheltuielilor eligibile şi neeligibile)"]
["TOTAL DEVIZ FINANCIAR 1 (inclusiv TVA)",null,null,null,null,null,null,null,null,null,null,null,null,null,null,null,null,null,null,null,null,null,null,null,null,null,null,null,null,null,null,null,null,null,null,null,null,null,null,null,null,null,{"$f":"SUM(AQ46:BI47)","v":0}]
[]
[]
[null,null,null,null,null,null,null,"MINISTERUL AGRICULTURII ŞI DEZVOLTĂRII RURALE"]
[null,null,null,null,null,null,null,null,null,null,null,null,null,null,null,null,null,null,null,null,null,null,null,null,null,null,null,null,null,null,null,null,null,null,null,null,null,null,null,null,null,null,"Anexa A1 HG_907"]
[null,null,null,null,null,null,null,"AGENŢIA PENTRU FINANŢAREA INVESTIŢIILOR RURALE"]
[null,null,null,null,null,null,null,null,null,null,null,null,null,null,null,null,null,null,null,null,null,null,null,null,null,null,null,null,null,null,null,null,null,null,null,null,null,null,null,null,null,null,null,null,null,null,null,null,null,null,null,"Aprilie 2017"]
[null,null,null,null,null,null,null,"Deviz financiar- Capitolul 3 - Cheltuieli pentru proiectare şi asistenţa tehnică - EURO"]
["Nr.3"]
[]
["(Titlu deviz)"]
["Nr.crt",null,null,null,"Specificaţie",null,null,null,null,null,null,null,null,null,null,null,null,null,null,null,null,null,null,null,null,null,null,null,null,null,null,null,null,null,null,null,null,null,null,null,null,null,"Valoare eligibilă",null,null,null,null,null,null,null,null,"Valoare\nneeligibilă"]
["3.1",null,null,null,"Cheltuieli pentru studii ",null,null,null,null,null,null,null,null,null,null,null,null,null,null,null,null,null,null,null,null,null,null,null,null,null,null,null,null,null,null,null,null,null,null,null,null,null,{"$f":"SUM(AQ61:AY63)","v":0},null,null,null,null,null,null,null,null,{"$f":"SUM(AZ61:BI63)","v":0}]
[null,null,null,null,"3.1.1 Studii de teren: studii geotehnice, geologice, hidrologice, hidrogeotehnice, fotogrammetrice, topografica şi de stabilitate ale terenului pe care se amplasează obiectivul de investiţie"]
[null,null,null,null,"3.1.2 Raport privind impactul asupra mediului"]
[null,null,null,null,"3.1.3 Studii de specialitate necesare în funcţie de specificul investiţiei"]
["3.2",null,null,null,"Documentaţii-suport şi cheltuieli pentru obţinerea de avize, acorduri şi autorizaţii",null,null,null,null,null,null,null,null,null,null,null,null,null,null,null,null,null,null,null,null,null,null,null,null,null,null,null,null,null,null,null,null,null,null,null,null,null,{"$f":"SUM(AQ65:AY73)","v":0},null,null,null,null,null,null,null,null,{"$f":"SUM(AZ65:BI73)","v":0}]
[null,null,null,null,"1. obţinerea/prelungirea valabilităţii ceritificatului de urbanism"]
[null,null,null,null,"2. obţinerea/prelungirea valabilităţii autorizaţiei de construire/desfiinţare"]
[null,null,null,null,"3. obţinerea avizelor şi acordurilor pentru racorduri şi branşamente la reţele publice de alimentare cu apă, canalizare, alimentare cu gaze, alimentare cu agent termic, energie electrică, telefonie"]
[null,null,null,null,"4. obţinerea certificatului de nomenclatură stradală şi adresă"]
[null,null,null,null,"5. întocmirea documentaţiei, obţinerea numărului cadastral provizoriu şi înregistrarea terenului în cartea funciară"]
[null,null,null,null,"6. obţinerea actului administrativ al autorităţii competente pentru protecţia mediului"]
[null,null,null,null,"7. obţinerea avizului de protecţie civilă"]
[null,null,null,null,"8. avizul de specialitate în cazul obiectivelor de patrimoniu"]
[null,null,null,null,"9. alte avize, acorduri şi autorizaţii"]
["3.3",null,null,null,"Cheltuieli pentru expertizarea tehnică a construcţiilor existente, a structurilor şi/sau, după caz, a proiectelor tehnice, inclusiv întocmirea de către expertul tehnic a raportului de expertiză tehnică"]
["3.4",null,null,null,"Cheltuieli pentru certificarea performanţei energetice şi auditul energetic al clădirilor"]
["3.5",null,null,null,"Cheltuieli pentru proiectare",null,null,null,null,null,null,null,null,null,null,null,null,null,null,null,null,null,null,null,null,null,null,null,null,null,null,null,null,null,null,null,null,null,null,null,null,null,{"$f":"SUM(AQ77:AY82)","v":0},null,null,null,null,null,null,null,null,{"$f":"SUM(AZ77:BI82)","v":0}]
[null,null,null,null,"3.5.1 Temă de proiectare"]
[null,null,null,null,"3.5.2 Studiu de prefezabilitate"]
[null,null,null,null,"3.5.3 Studiu de fezabilitate/documentaţie de avizare a lucrărilor de intervenţii şi deviz general"]
[null,null,null,null,"3.5.4 Documentaţiile tehnice necesare în vederea obţinerii avizelor/acordurilor/ autorizaţiilor"]
[null,null,null,null,"3.5.5 Verificarea tehnică de calitate a proiectului tehnic şi a detaliilor de execuţie"]
[null,null,null,null,"3.5.6 Proiect tehnic şi detalii de execuţie"]
["3.6",null,null,null,"Cheltuieli aferente organizării şi derulării procedurilor de achiziţii publice",null,null,null,null,null,null,null,null,null,null,null,null,null,null,null,null,null,null,null,null,null,null,null,null,null,null,null,null,null,null,null,null,null,null,null,null,null,{"$f":"SUM(AQ84:AY87)","v":0},null,null,null,null,null,null,null,null,{"$f":"SUM(AZ84:BI87)","v":0}]
[null,null,null,null,"1. Cheltuieli aferente întocmirii documentaţiei de atribuire şi multiplicării acesteia (exclusiv cele cumpărate de ofertanţi)"]
[null,null,null,null,"2. Cheltuieli cu onorariile, transportul, cazarea şi diurna membrilor desemnaţi în comisiile de evaluare"]
[null,null,null,null,"3. Anunţuri de intenţie, de participare şi de atribuire a contractelor, corespondenţă prin poştă, fax, poştă electronică în legătură cu procedurile de achiziţie publică"]
[null,null,null,null,"4. Cheltuieli aferente organizării şi derulării procedurilor de achiziţii publice"]
["3.7",null,null,null,"Cheltuieli pentru consultanţă",null,null,null,null,null,null,null,null,null,null,null,null,null,null,null,null,null,null,null,null,null,null,null,null,null,null,null,null,null,null,null,null,null,null,null,null,null,{"$f":"SUM(AQ89:AY90)","v":0},null,null,null,null,null,null,null,null,{"$f":"SUM(AZ89:BI90)","v":0}]
[null,null,null,null,"3.7.1 Managementul de proiect pentru obiectivul de investiţii"]
[null,null,null,null,"3.7.2 Auditul financiar"]
["3.8",null,null,null,"Cheltuieli pentru asistenţă tehnică",null,null,null,null,null,null,null,null,null,null,null,null,null,null,null,null,null,null,null,null,null,null,null,null,null,null,null,null,null,null,null,null,null,null,null,null,null,{"$f":"AQ92+AQ95","v":0},null,null,null,null,null,null,null,null,{"$f":"AZ92+AZ95","v":0}]
[null,null,null,null,"3.8.1. Asistenţă tehnică din partea proiectantului",null,null,null,null,null,null,null,null,null,null,null,null,null,null,null,null,null,null,null,null,null,null,null,null,null,null,null,null,null,null,null,null,null,null,null,null,null,{"$f":"SUM(AQ93:AY94)","v":0},null,null,null,null,null,null,null,null,{"$f":"SUM(AZ93:BI94)","v":0}]
[null,null,null,null,"\n1.1. pe perioada de execuţie a lucrărilor"]
[null,null,null,null,"1.2. pentru participarea proiectantului la fazele incluse în programul de control al lucrărilor de execuţie, avizat de către Inspectoratul de Stat în Construcţii"]
[null,null,null,null,"3.8.2 Dirigenţie de şantier, asigurată de personal tehnic de specialitate, autorizat"]
["Total valoare fără TVA",null,null,null,null,null,null,null,null,null,null,null,null,null,null,null,null,null,null,null,null,null,null,null,null,null,null,null,null,null,null,null,null,null,null,null,null,null,null,null,null,null,{"$f":"AQ60+AQ64+AQ74+AQ75+AQ76+AQ83+AQ88+AQ91","v":0},null,null,null,null,null,null,null,null,{"$f":"AZ60+AZ64+AZ74+AZ75+AZ76+AZ83+AZ88+AZ91","v":0}]
["Valoare TVA (aferentă cheltuielilor eligibile şi neeligibile)"]
["TOTAL DEVIZ FINANCIAR 1 (inclusiv TVA)",null,null,null,null,null,null,null,null,null,null,null,null,null,null,null,null,null,null,null,null,null,null,null,null,null,null,null,null,null,null,null,null,null,null,null,null,null,null,null,null,null,{"$f":"SUM(AQ96:BI97)","v":0}]

{"sheet":"Anexa 2 HG_907","index":2,"n_rows":63,"n_cols":52,"rows_kept":63,"cut":false,"hidden":false,"merged":[[59,0,59,41],[59,42,59,50],[59,51,59,60],[60,0,60,41],[60,42,60,60],[57,0,57,3],[57,4,57,41],[57,42,57,50],[57,51,57,60],[58,0,58,41],[58,42,58,50],[58,51,58,60],[55,0,55,3],[55,4,55,41],[55,42,55,50],[55,51,55,60],[56,0,56,3],[56,4,56,41],[56,42,56,50],[56,51,56,60],[52,0,52,60],[53,0,53,3],[53,4,53,41],[53,42,53,50],[53,51,53,60],[54,0,54,3],[54,4,54,41],[54,42,54,50],[54,51,54,60],[49,0,49,60],[50,0,50,3],[50,4,50,41],[50,42,50,50],[50,51,50,60],[51,0,51,3],[51,4,51,41],[51,42,51,50],[51,51,51,60],[47,0,47,3],[47,4,47,41],[47,42,47,50],[47,51,47,60],[48,0,48,3],[48,4,48,41],[48,42,48,50],[48,51,48,60],[45,0,45,3],[45,4,45,41],[45,42,45,50],[45,51,45,60],[46,0,46,3],[46,4,46,41],[46,42,46,50],[46,51,46,60],[43,0,43,3],[43,4,43,41],[43,42,43,50],[43,51,43,60],[44,0,44,3],[44,4,44,41],[44,42,44,50],[44,51,44,60],[41,0,41,3],[41,4,41,41],[41,42,41,50],[41,51,41,60],[42,0,42,41],[42,42,42,50],[42,51,42,60],[36,7,36,60],[37,0,37,60],[38,0,38,60],[39,0,39,60],[40,0,40,3],[40,4,40,41],[40,42,40,60],[33,7,33,41],[33,42,34,60],[34,7,34,41],[35,7,35,41],[35,42,35,50],[35,51,35,60],[27,0,27,41],[27,42,27,50],[27,51,27,60],[28,0,28,41],[28,42,28,60],[32,7,32,41],[25,0,25,3],[25,4,25,41],[25,42,25,50],[25,51,25,60],[26,0,26,41],[26,42,26,50],[26,51,26,60],[23,0,23,3],[23,4,23,41],[23,42,23,50],[23,51,23,60],[24,0,24,3],[24,4,24,41],[24,42,24,50],[24,51,24,60],[20,0,20,60],[21,0,21,3],[21,4,21,41],[21,42,21,50],[21,51,21,60],[22,0,22,3],[22,4,22,41],[22,42,22,50],[22,51,22,60],[17,0,17,60],[18,0,18,3],[18,4,18,41],[18,42,18,50],[18,51,18,60],[19,0,19,3],[19,4,19,41],[19,42,19,50],[19,51,19,60],[15,0,15,3],[15,4,15,41],[15,42,15,50],[15,51,15,60],[16,0,16,3],[16,4,16,41],[16,42,16,50],[16,51,16,60],[13,0,13,3],[13,4,13,41],[13,42,13,50],[13,51,13,60],[14,0,14,3],[14,4,14,41],[14,42,14,50],[14,51,14,60],[11,0,11,3],[11,4,11,41],[11,42,11,50],[11,51,11,60],[12,0,12,3],[12,4,12,41],[12,42,12,50],[12,51,12,60],[9,0,9,3],[9,4,9,41],[9,42,9,50],[9,51,9,60],[10,0,10,41],[10,42,10,50],[10,51,10,60],[4,7,4,60],[5,0,5,60],[6,0,6,60],[7,0,7,60],[8,0,8,3],[8,4,8,41],[8,42,8,60],[0,7,0,41],[1,7,1,41],[1,42,2,60],[2,7,2,41],[3,7,3,41],[3,42,3,50],[3,51,3,60]]}
[null,null,null,null,null,null,null,"MINISTERUL AGRICULTURII ŞI DEZVOLTĂRII RURALE"]
[null,null,null,null,null,null,null,null,null,null,null,null,null,null,null,null,null,null,null,null,null,null,null,null,null,null,null,null,null,null,null,null,null,null,null,null,null,null,null,null,null,null,"Anexa A2 HG_907"]
[null,null,null,null,null,null,null,"AGENŢIA PENTRU FINANŢAREA INVESTIŢIILOR RURALE"]
[null,null,null,null,null,null,null,null,null,null,null,null,null,null,null,null,null,null,null,null,null,null,null,null,null,null,null,null,null,null,null,null,null,null,null,null,null,null,null,null,null,null,null,null,null,null,null,null,null,null,null,"Aprilie 2017"]
[null,null,null,null,null,null,null,"DEVIZUL OBIECTULUI *"]
["Nr.2"]
[]
[]
["Nr. crt.",null,null,null,"Denumire",null,null,null,null,null,null,null,null,null,null,null,null,null,null,null,null,null,null,null,null,null,null,null,null,null,null,null,null,null,null,null,null,null,null,null,null,null,"Valoarea pe categorii de lucrări, fară TVA - EURO"]
[null,null,null,null,"Cap. 4 - Cheltuieli pentru investiţia de bază",null,null,null,null,null,null,null,null,null,null,null,null,null,null,null,null,null,null,null,null,null,null,null,null,null,null,null,null,null,null,null,null,null,null,null,null,null,"Valoare eligibilă",null,null,null,null,null,null,null,null,"Valoare\nneeligibilă"]
["I - LUCRĂRI DE CONSTRUCŢII ŞI INSTALAŢII"]
["4.1",null,null,null,"Construcţii şi instalaţii"]
[null,null,null,null,"4.1.1 Terasamente, sistematizare pe verticală şi amenajări exterioare"]
[null,null,null,null,"4.1.2 Rezistenţă"]
[null,null,null,null,"4.1.3 Arhitectură"]
[null,null,null,null,"4.1.4 Instalaţii"]
[null,null,null,null,"TOTAL I ( fără TVA)",null,null,null,null,null,null,null,null,null,null,null,null,null,null,null,null,null,null,null,null,null,null,null,null,null,null,null,null,null,null,null,null,null,null,null,null,null,{"$f":"SUM(AQ12:AY16)","v":0},null,null,null,null,null,null,null,null,{"$f":"SUM(AZ12:BI16)","v":0}]
["II - MONTAJ"]
["4.2",null,null,null,"Montaj utilaje, echipamente tehnologice şi funcţionale"]
[null,null,null,null,"TOTAL II ( fără TVA)",null,null,null,null,null,null,null,null,null,null,null,null,null,null,null,null,null,null,null,null,null,null,null,null,null,null,null,null,null,null,null,null,null,null,null,null,null,{"$f":"SUM(AQ19)","v":0},null,null,null,null,null,null,null,null,{"$f":"SUM(AZ19)","v":0}]
["III - PROCURARE"]
["4.3",null,null,null,"Utilaje, echipamente tehnologice şi funcţionale care necesită montaj"]
["4.4",null,null,null,"Utilaje, echipamente tehnologice şi funcţionale care nu necesită montaj şi echipamente de transport"]
["4.5",null,null,null,"Dotări"]
["4.6",null,null,null,"Active necorporale"]
[null,null,null,null,"TOTAL III ( fără TVA)",null,null,null,null,null,null,null,null,null,null,null,null,null,null,null,null,null,null,null,null,null,null,null,null,null,null,null,null,null,null,null,null,null,null,null,null,null,{"$f":"SUM(AQ22:AY25)","v":0},null,null,null,null,null,null,null,null,{"$f":"SUM(AZ22:BI25)","v":0}]
["TOTAL ( TOTAL I + TOTAL II +TOTAL III) fără TVA",null,null,null,null,null,null,null,null,null,null,null,null,null,null,null,null,null,null,null,null,null,null,null,null,null,null,null,null,null,null,null,null,null,null,null,null,null,null,null,null,null,{"$f":"AQ26+AQ20+AQ17","v":0},null,null,null,null,null,null,null,null,{"$f":"AZ26+AZ20+AZ17","v":0}]
["TVA aferent cheltuielilor eligibile şi neeligibile"]
["TOTAL DEVIZ PE OBIECT (inclusiv TVA)",null,null,null,null,null,null,null,null,null,null,null,null,null,null,null,null,null,null,null,null,null,null,null,null,null,null,null,null,null,null,null,null,null,null,null,null,null,null,null,null,null,{"$f":"AQ27+AZ27+AQ28+AZ28","v":0}]
[]
[null,"*) Se înscrie denumirea obiectului de construcţie sau intervenţie"]
[]
[null,null,null,null,null,null,null,"MINISTERUL AGRICULTURII ŞI DEZVOLTĂRII RURALE"]
[null,null,null,null,null,null,null,null,null,null,null,null,null,null,null,null,null,null,null,null,null,null,null,null,null,null,null,null,null,null,null,null,null,null,null,null,null,null,null,null,null,null,"Anexa A2 HG_907"]
[null,null,null,null,null,null,null,"AGENŢIA PENTRU FINANŢAREA INVESTIŢIILOR RURALE"]
[null,null,null,null,null,null,null,null,null,null,null,null,null,null,null,null,null,null,null,null,null,null,null,null,null,null,null,null,null,null,null,null,null,null,null,null,null,null,null,null,null,null,null,null,null,null,null,null,null,null,null,"Aprilie 2017"]
[null,null,null,null,null,null,null,"DEVIZUL OBIECTULUI *"]
["Nr.3"]
[]
[]
["Nr. crt.",null,null,null,"Denumire",null,null,null,null,null,null,null,null,null,null,null,null,null,null,null,null,null,null,null,null,null,null,null,null,null,null,null,null,null,null,null,null,null,null,null,null,null,"Valoarea pe categorii de lucrări, fară TVA - EURO"]
[null,null,null,null,"Cap. 4 - Cheltuieli pentru investiţia de bază",null,null,null,null,null,null,null,null,null,null,null,null,null,null,null,null,null,null,null,null,null,null,null,null,null,null,null,null,null,null,null,null,null,null,null,null,null,"Valoare eligibilă",null,null,null,null,null,null,null,null,"Valoare\nneeligibilă"]
["I - LUCRĂRI DE CONSTRUCŢII ŞI INSTALAŢII"]
["4.1",null,null,null,"Construcţii şi instalaţii"]
[null,null,null,null,"4.1.1 Terasamente, sistematizare pe verticală şi amenajări exterioare"]
[null,null,null,null,"4.1.2 Rezistenţă"]
[null,null,null,null,"4.1.3 Arhitectură"]
[null,null,null,null,"4.1.4 Instalaţii"]
[null,null,null,null,"TOTAL I ( fără TVA)",null,null,null,null,null,null,null,null,null,null,null,null,null,null,null,null,null,null,null,null,null,null,null,null,null,null,null,null,null,null,null,null,null,null,null,null,null,{"$f":"SUM(AQ44:AY48)","v":0},null,null,null,null,null,null,null,null,{"$f":"SUM(AZ44:BI48)","v":0}]
["II - MONTAJ"]
["4.2",null,null,null,"Montaj utilaje, echipamente tehnologice şi funcţionale"]
[null,null,null,null,"TOTAL II ( fără TVA)",null,null,null,null,null,null,null,null,null,null,null,null,null,null,null,null,null,null,null,null,null,null,null,null,null,null,null,null,null,null,null,null,null,null,null,null,null,{"$f":"SUM(AQ51)","v":0},null,null,null,null,null,null,null,null,{"$f":"SUM(AZ51)","v":0}]
["III - PROCURARE"]
["4.3",null,null,null,"Utilaje, echipamente tehnologice şi funcţionale care necesită montaj"]
["4.4",null,null,null,"Utilaje, echipamente tehnologice şi funcţionale care nu necesită montaj şi echipamente de transport"]
["4.5",null,null,null,"Dotări"]
["4.6",null,null,null,"Active necorporale"]
[null,null,null,null,"TOTAL III ( fără TVA)",null,null,null,null,null,null,null,null,null,null,null,null,null,null,null,null,null,null,null,null,null,null,null,null,null,null,null,null,null,null,null,null,null,null,null,null,null,{"$f":"SUM(AQ54:AY57)","v":0},null,null,null,null,null,null,null,null,{"$f":"SUM(AZ54:BI57)","v":0}]
["TOTAL ( TOTAL I + TOTAL II +TOTAL III) fără TVA",null,null,null,null,null,null,null,null,null,null,null,null,null,null,null,null,null,null,null,null,null,null,null,null,null,null,null,null,null,null,null,null,null,null,null,null,null,null,null,null,null,{"$f":"AQ58+AQ52+AQ49","v":0},null,null,null,null,null,null,null,null,{"$f":"AZ58+AZ52+AZ49","v":0}]
["TVA aferent cheltuielilor eligibile şi neeligibile"]
["TOTAL DEVIZ PE OBIECT (inclusiv TVA)",null,null,null,null,null,null,null,null,null,null,null,null,null,null,null,null,null,null,null,null,null,null,null,null,null,null,null,null,null,null,null,null,null,null,null,null,null,null,null,null,null,{"$f":"AQ59+AZ59+AQ60+AZ60","v":0}]
[]
[null,"*) Se înscrie denumirea obiectului de construcţie sau intervenţie"]

{"sheet":"Anexa 3 HG_907","index":3,"n_rows":82,"n_cols":52,"rows_kept":82,"cut":false,"hidden":false,"merged":[[80,0,80,3],[80,4,80,41],[80,42,80,50],[80,51,80,60],[81,0,81,3],[81,4,81,41],[81,42,81,60],[78,0,78,3],[78,4,78,41],[78,42,78,50],[78,51,78,60],[79,0,79,3],[79,4,79,41],[79,42,79,50],[79,51,79,60],[76,0,76,3],[76,4,76,41],[76,42,76,50],[76,51,76,60],[77,0,77,3],[77,4,77,41],[77,42,77,50],[77,51,77,60],[74,0,74,3],[74,4,74,41],[74,42,74,50],[74,51,74,60],[75,0,75,3],[75,4,75,41],[75,42,75,50],[75,51,75,60],[72,0,72,3],[72,4,72,41],[72,42,72,50],[72,51,72,60],[73,0,73,3],[73,4,73,41],[73,42,73,50],[73,51,73,60],[70,0,70,3],[70,4,70,41],[70,42,70,50],[70,51,70,60],[71,0,71,3],[71,4,71,41],[71,42,71,50],[71,51,71,60],[67,0,67,60],[68,0,68,3],[68,4,68,41],[68,42,68,50],[68,51,68,60],[69,0,69,3],[69,4,69,41],[69,42,69,50],[69,51,69,60],[64,0,64,3],[64,4,64,41],[64,42,64,50],[64,51,64,60],[65,0,65,60],[66,0,66,3],[66,4,66,41],[66,42,66,50],[66,51,66,60],[62,0,62,3],[62,4,62,41],[62,42,62,50],[62,51,62,60],[63,0,63,41],[63,42,63,60],[60,0,60,3],[60,4,60,41],[60,42,60,50],[60,51,60,60],[61,0,61,3],[61,4,61,41],[61,42,61,50],[61,51,61,60],[59,0,59,3],[59,4,59,41],[59,42,59,50],[59,51,59,60],[56,0,56,3],[56,4,56,41],[56,42,56,50],[56,51,56,60],[57,0,57,3],[57,4,57,41],[57,42,57,50],[57,51,57,60],[52,0,52,3],[52,4,52,41],[52,42,52,50],[52,51,52,60],[53,0,53,3],[53,4,53,41],[53,42,53,50],[53,51,53,60],[58,0,58,3],[58,4,58,41],[58,42,58,50],[58,51,58,60],[49,0,49,60],[50,0,50,60],[51,0,51,3],[51,4,51,41],[51,42,51,50],[51,51,51,60],[82,0,82,44],[43,7,43,41],[43,42,44,60],[44,7,44,41],[45,7,45,41],[45,42,45,50],[45,51,45,60],[46,7,46,60],[47,0,47,60],[48,0,48,60],[54,0,54,3],[54,4,54,41],[54,42,54,50],[54,51,54,60],[55,0,55,3],[55,4,55,41],[55,42,55,50],[55,51,55,60],[38,0,38,3],[38,4,38,41],[38,42,38,50],[38,51,38,60],[39,0,39,3],[39,4,39,41],[39,42,39,60],[36,0,36,3],[36,4,36,41],[36,42,36,50],[36,51,36,60],[37,0,37,3],[37,4,37,41],[37,42,37,50],[37,51,37,60],[34,0,34,3],[34,4,34,41],[34,42,34,50],[34,51,34,60],[35,0,35,3],[35,4,35,41],[35,42,35,50],[35,51,35,60],[32,0,32,3],[32,4,32,41],[32,42,32,50],[32,51,32,60],[33,0,33,3],[33,4,33,41],[33,42,33,50],[33,51,33,60],[30,0,30,3],[30,4,30,41],[30,42,30,50],[30,51,30,60],[31,0,31,3],[31,4,31,41],[31,42,31,50],[31,51,31,60],[28,0,28,3],[28,4,28,41],[28,42,28,50],[28,51,28,60],[29,0,29,3],[29,4,29,41],[29,42,29,50],[29,51,29,60],[25,0,25,60],[26,0,26,3],[26,4,26,41],[26,42,26,50],[26,51,26,60],[27,0,27,3],[27,4,27,41],[27,42,27,50],[27,51,27,60],[22,0,22,3],[22,4,22,41],[22,42,22,50],[22,51,22,60],[23,0,23,60],[24,0,24,3],[24,4,24,41],[24,42,24,50],[24,51,24,60],[20,0,20,3],[20,4,20,41],[20,42,20,50],[20,51,20,60],[21,0,21,41],[21,42,21,60],[18,0,18,3],[18,4,18,41],[18,42,18,50],[18,51,18,60],[19,0,19,3],[19,4,19,41],[19,42,19,50],[19,51,19,60],[16,0,16,3],[16,4,16,41],[16,42,16,50],[16,51,16,60],[17,0,17,3],[17,4,17,41],[17,42,17,50],[17,51,17,60],[14,0,14,3],[14,4,14,41],[14,42,14,50],[14,51,14,60],[15,0,15,3],[15,4,15,41],[15,42,15,50],[15,51,15,60],[13,0,13,3],[13,4,13,41],[13,42,13,50],[13,51,13,60],[10,0,10,3],[10,4,10,41],[10,42,10,50],[10,51,10,60],[11,0,11,3],[11,4,11,41],[11,42,11,50],[11,51,11,60],[7,0,7,60],[8,0,8,60],[9,0,9,3],[9,4,9,41],[9,42,9,50],[9,51,9,60],[12,0,12,3],[12,4,12,41],[12,42,12,50],[12,51,12,60],[1,7,1,41],[1,42,2,60],[2,7,2,41],[3,7,3,41],[3,42,3,50],[3,51,3,60],[4,7,4,60],[5,0,5,60],[6,0,6,60]]}
[]
[null,null,null,null,null,null,null,"MINISTERUL AGRICULTURII ŞI DEZVOLTĂRII RURALE",null,null,null,null,null,null,null,null,null,null,null,null,null,null,null,null,null,null,null,null,null,null,null,null,null,null,null,null,null,null,null,null,null,null,"Anexa A3 HG_907"]
[]
[null,null,null,null,null,null,null,"AGENŢIA PENTRU FINANŢAREA INVESTIŢIILOR RURALE",null,null,null,null,null,null,null,null,null,null,null,null,null,null,null,null,null,null,null,null,null,null,null,null,null,null,null,null,null,null,null,null,null,null,null,null,null,null,null,null,null,null,null,"Aprilie 2017"]
[]
["Nr.2"]
[]
[]
["Deviz capitolul 2- Cheltuieli pentru asigurarea utilităţilor necesare obiectivului - EURO"]
["Nr. crt.",null,null,null,"Specificaţie",null,null,null,null,null,null,null,null,null,null,null,null,null,null,null,null,null,null,null,null,null,null,null,null,null,null,null,null,null,null,null,null,null,null,null,null,null,"Valoare eligibilă",null,null,null,null,null,null,null,null,"Valoare\nneeligibilă"]
[1,null,null,null,"Alimentare cu apă"]
[2,null,null,null,"Canalizare"]
[3,null,null,null,"Alimentare cu gaze naturale"]
[4,null,null,null,"Alimentare cu agent termic"]
[5,null,null,null,"Alimentare cu energie electrică"]
[6,null,null,null,"Telecomunicaţii (telefonie, radio-tv,etc)"]
[7,null,null,null,"Drumuri de acces"]
[8,null,null,null,"Căi ferate industriale"]
[9,null,null,null,"Alte utilitati"]
[null,null,null,null,"TOTAL DEVIZ CAPITOLUL 2",null,null,null,null,null,null,null,null,null,null,null,null,null,null,null,null,null,null,null,null,null,null,null,null,null,null,null,null,null,null,null,null,null,null,null,null,null,{"$f":"SUM(AQ11:AY19)","v":0},null,null,null,null,null,null,null,null,{"$f":"SUM(AZ11:BI19)","v":0}]
[null,null,null,null,"Valoare TVA aferentă cheltuielilor eligibile şi neeligibile"]
["TOTAL DEVIZ CAPITOLUL 2 (inclusiv TVA)",null,null,null,null,null,null,null,null,null,null,null,null,null,null,null,null,null,null,null,null,null,null,null,null,null,null,null,null,null,null,null,null,null,null,null,null,null,null,null,null,null,{"$f":"AQ20+AZ20+AQ21+AZ21","v":0}]
[]
[" Deviz capitolul 5 - Alte cheltuieli - EURO"]
["Nr. crt.",null,null,null,"Specificaţie",null,null,null,null,null,null,null,null,null,null,null,null,null,null,null,null,null,null,null,null,null,null,null,null,null,null,null,null,null,null,null,null,null,null,null,null,null,"Valoare eligibilă",null,null,null,null,null,null,null,null,"Valoare\nneeligibilă"]
[]
["5.1 ",null,null,null,"Organizare de şantier",null,null,null,null,null,null,null,null,null,null,null,null,null,null,null,null,null,null,null,null,null,null,null,null,null,null,null,null,null,null,null,null,null,null,null,null,null,{"$f":"SUM(AQ28:AY29)","v":0},null,null,null,null,null,null,null,null,{"$f":"SUM(AZ28:BI29)","v":0}]
[null,null,null,null,"5.1.1 Lucrări de construcţii şi instalaţii aferente organizării de şantier"]
[null,null,null,null,"5.1.2 Cheltuieli conexe organizării de şantier"]
["5.2",null,null,null,"Comisioane, cote, taxe, costul creditului",null,null,null,null,null,null,null,null,null,null,null,null,null,null,null,null,null,null,null,null,null,null,null,null,null,null,null,null,null,null,null,null,null,null,null,null,null,{"$f":"SUM(AQ32:AY35)","v":0},null,null,null,null,null,null,null,null,{"$f":"SUM(AZ31:BI35)","v":0}]
[null,null,null,null,"5.2.1. Comisioanele şi dobânzile aferente creditului băncii finanţatoare"]
[null,null,null,null,"5.2.2. Cota aferentă ISC pentru controlul calităţii lucrărilor de construcţii"]
[null,null,null,null,"5.2.3. Cota aferentă ISC pentru controlul statului în amenajarea teritoriului, urbanism şi pentru autorizarea lucrărilor de construcţii"]
[null,null,null,null,"5.2.4. Cota aferentă Casei Sociale a Constructorilor - CSC"]
[null,null,null,null,"5.2.5. Taxe pentru acorduri, avize conforme şi autorizaţia de construire/ desfiinţare"]
["5.3",null,null,null," Cheltuieli diverse si neprevazute"]
["5.4",null,null,null," Cheltuieli pentru informare şi publicitate"]
[null,null,null,null,"TOTAL DEVIZ CAPITOLUL 5",null,null,null,null,null,null,null,null,null,null,null,null,null,null,null,null,null,null,null,null,null,null,null,null,null,null,null,null,null,null,null,null,null,null,null,null,null,{"$f":"AQ27+AQ30+AQ36","v":0},null,null,null,null,null,null,null,null,{"$f":"AZ27+AZ30+AZ36+AZ37","v":0}]
[null,null,null,null,"VALOARE TVA aferentă cheltuielilor eligibile şi neeligibile"]
[null,null,null,null,"TOTAL DEVIZ CAPITOLUL 5 ( inclusiv TVA)",null,null,null,null,null,null,null,null,null,null,null,null,null,null,null,null,null,null,null,null,null,null,null,null,null,null,null,null,null,null,null,null,null,null,null,null,null,{"$f":"AQ38+AZ38+AQ39+AZ39","v":0}]
[]
[]
[]
[null,null,null,null,null,null,null,"MINISTERUL AGRICULTURII ŞI DEZVOLTĂRII RURALE",null,null,null,null,null,null,null,null,null,null,null,null,null,null,null,null,null,null,null,null,null,null,null,null,null,null,null,null,null,null,null,null,null,null,"Anexa A3 HG_907"]
[]
[null,null,null,null,null,null,null,"AGENŢIA PENTRU FINANŢAREA INVESTIŢIILOR RURALE",null,null,null,null,null,null,null,null,null,null,null,null,null,null,null,null,null,null,null,null,null,null,null,null,null,null,null,null,null,null,null,null,null,null,null,null,null,null,null,null,null,null,null,"Aprilie 2017"]
[]
["Nr.3"]
[]
[]
["Deviz capitolul 2- Cheltuieli pentru asigurarea utilităţilor necesare obiectivului - EURO"]
["Nr. crt.",null,null,null,"Specificaţie",null,null,null,null,null,null,null,null,null,null,null,null,null,null,null,null,null,null,null,null,null,null,null,null,null,null,null,null,null,null,null,null,null,null,null,null,null,"Valoare eligibilă",null,null,null,null,null,null,null,null,"Valoare\nneeligibilă"]
[1,null,null,null,"Alimentare cu apă"]
[2,null,null,null,"Canalizare"]
[3,null,null,null,"Alimentare cu gaze naturale"]
[4,null,null,null,"Alimentare cu agent termic"]
[5,null,null,null,"Alimentare cu energie electrică"]
[6,null,null,null,"Telecomunicaţii (telefonie, radio-tv,etc)"]
[7,null,null,null,"Drumuri de acces"]
[8,null,null,null,"Căi ferate industriale"]
[9,null,null,null,"Alte utilitati"]
[null,null,null,null,"TOTAL DEVIZ CAPITOLUL 2",null,null,null,null,null,null,null,null,null,null,null,null,null,null,null,null,null,null,null,null,null,null,null,null,null,null,null,null,null,null,null,null,null,null,null,null,null,{"$f":"SUM(AQ53:AY61)","v":0},null,null,null,null,null,null,null,null,{"$f":"SUM(AZ53:BI61)","v":0}]
[null,null,null,null,"Valoare TVA aferentă cheltuielilor eligibile şi neeligibile"]
["TOTAL DEVIZ CAPITOLUL 2 (inclusiv TVA)",null,null,null,null,null,null,null,null,null,null,null,null,null,null,null,null,null,null,null,null,null,null,null,null,null,null,null,null,null,null,null,null,null,null,null,null,null,null,null,null,null,{"$f":"AQ62+AZ62+AQ63+AZ63","v":0}]
[]
[" Deviz capitolul 5 - Alte cheltuieli - EURO"]
["Nr. crt.",null,null,null,"Specificaţie",null,null,null,null,null,null,null,null,null,null,null,null,null,null,null,null,null,null,null,null,null,null,null,null,null,null,null,null,null,null,null,null,null,null,null,null,null,"Valoare eligibilă",null,null,null,null,null,null,null,null,"Valoare\nneeligibilă"]
[]
["5.1 ",null,null,null,"Organizare de şantier",null,null,null,null,null,null,null,null,null,null,null,null,null,null,null,null,null,null,null,null,null,null,null,null,null,null,null,null,null,null,null,null,null,null,null,null,null,{"$f":"SUM(AQ70:AY71)","v":0},null,null,null,null,null,null,null,null,{"$f":"SUM(AZ70:BI71)","v":0}]
[null,null,null,null,"5.1.1 Lucrări de construcţii şi instalaţii aferente organizării de şantier"]
[null,null,null,null,"5.1.2 Cheltuieli conexe organizării de şantier"]
["5.2",null,null,null,"Comisioane, cote, taxe, costul creditului",null,null,null,null,null,null,null,null,null,null,null,null,null,null,null,null,null,null,null,null,null,null,null,null,null,null,null,null,null,null,null,null,null,null,null,null,null,{"$f":"SUM(AQ74:AY77)","v":0},null,null,null,null,null,null,null,null,{"$f":"SUM(AZ73:BI77)","v":0}]
[null,null,null,null,"5.2.1. Comisioanele şi dobânzile aferente creditului băncii finanţatoare"]
[null,null,null,null,"5.2.2. Cota aferentă ISC pentru controlul calităţii lucrărilor de construcţii"]
[null,null,null,null,"5.2.3. Cota aferentă ISC pentru controlul statului în amenajarea teritoriului, urbanism şi pentru autorizarea lucrărilor de construcţii"]
[null,null,null,null,"5.2.4. Cota aferentă Casei Sociale a Constructorilor - CSC"]
[null,null,null,null,"5.2.5. Taxe pentru acorduri, avize conforme şi autorizaţia de construire/ desfiinţare"]
["5.3",null,null,null," Cheltuieli diverse si neprevazute"]
["5.4",null,null,null," Cheltuieli pentru informare şi publicitate"]
[null,null,null,null,"TOTAL DEVIZ CAPITOLUL 5",null,null,null,null,null,null,null,null,null,null,null,null,null,null,null,null,null,null,null,null,null,null,null,null,null,null,null,null,null,null,null,null,null,null,null,null,null,{"$f":"AQ69+AQ72+AQ78","v":0},null,null,null,null,null,null,null,null,{"$f":"AZ69+AZ72+AZ78+AZ79","v":0}]
[null,null,null,null,"VALOARE TVA aferentă cheltuielilor eligibile şi neeligibile"]
[null,null,null,null,"TOTAL DEVIZ CAPITOLUL 5 ( inclusiv TVA)",null,null,null,null,null,null,null,null,null,null,null,null,null,null,null,null,null,null,null,null,null,null,null,null,null,null,null,null,null,null,null,null,null,null,null,null,null,{"$f":"AQ80+AZ80+AQ81+AZ81","v":0}]